Workbook

Sheet Title Page
A1: U.S. EPA Office of Ground Water and Drinking Water
A2: Work Breakdown Structure (WBS) Model for Granular Activated Carbon (GAC) System Treatment
A3: Release Date: March 2023
A4: · The primary purpose of this model is to assist EPA in estimating national compliance costs.
A5: · As such, the costs are intended to be representative of the central tendency of typical facilities.
A6: · The default settings, however, do not account for all of the site-specific factors that could affect the cost of any given individual facility or project.
A7: · Still, other uses of the model might be reasonable if sufficient care is taken by the user to account for site- or project-specific factors.
A8: · The model results are point estimates shown to the nearest $1, but this precision is not meant to imply that the results are accurate to $1.
A9: · Instead, users should review all documentation, modify inputs/assumptions as appropriate to their specific purpose, and form their own informed opinions about the accuracy and suitability of the results.
A10: · Use of this model requires Excel 2007 or later.
A11: · The model should be opened as Read-only, so that any changes you make are saved under a new file name.
A12: · To function properly, macros ("active content") must be enabled. If a security warning appears, click "options" and "enable this content."
A13: · For further information see the following document distributed with this file:
A14: USEPA. 2023. Work Breakdown Structure-Based Cost Model for Granular Activated Carbon (GAC) System Drinking Water Treatment. Office of Water.
A15: · To begin using the model, go to the INPUT sheet.

Sheet Index
A1: INDEX
A2: This page provides an index to all user-adjustable inputs and assumptions. Click on a variable name to go directly to the adjustable cells.
A4: User-adjustable Input or Assumption | B4: Variable Name and Link
A5: Percent removal or Total Theoretical Empty Bed Contact Time (EBCT) | B5: EBCT_I
A6: Access space per pump for custom designed systems | B6: space_pumps_cust
A7: Access space per pump for pre-engineered packages | B7: space_pumps_pre
A8: Add a redundant pressure vessel per x parallel lines | B8: redund_freq
A9: Add coagulant to holding tank? | B9: coag_res
A10: Additional building after… | B10: add_2nd_building
A11: Additional freeboard | B11: sec_cont_freeboard
A12: Additional pH meters (pressure systems) | B12: add_pH_controls
A13: Additional pH meters (pressure systems) for small systems | B13: add_pH_controls_small
A14: Additional sampling ports | B14: add_ports
A15: Additional turbitidy meters | B15: add_turb
A16: Additional turbitidy meters (pressure systems) | B16: add_turb_p
A17: Additional turbitidy meters (pressure systems) for small systems | B17: add_turb_small_p
A18: Additional turbitidy meters for small systems | B18: add_turb_small
A19: Add-on (pre- or post-treatment) | B19: addon_I
A20: Air conditioning EER | B20: EER
A21: Annual contactor materials cost as a percent of capital | B21: Materials_pct
A22: Annual cooling degree days | B22: cool_DD
A23: Annual heating degree days | B23: heat_DD
A24: Apply POTW discharge base charge (i.e., $/month) | B24: POTW_base_fee
A25: Apply POTW discharge TSS charge (i.e., $/lb of TSS over limit below) | B25: POTW_TSS_fee
A26: Apply POTW discharge volume charge (i.e., $/1000 gallons) | B26: POTW_volume_fee
A27: Average annual pan evaporation rate | B27: pan_evap
A28: Average annual precipitation | B28: precip
A29: Average Flow (including bypass) | B29: average_flow_I
A30: Backwash basin depth to volume ratio | B30: back_ratio
A31: Backwash freeboard | B31: back_freeboard
A32: Backwash pipe length multiplier | B32: back_pipe_mult
A33: Backwash pump head | B33: back_pump_head
A34: Backwash pumping | B34: no_backwash_I
A35: Backwash storage | B35: no_back_tank_I
A36: Backwash storage volume | B36: back_multiplier
A37: Backwash time | B37: backwash_time
A38: Basin excavation depth above which deeper boreholes are needed | B38: deep_bore_need
A39: Basin freeboard above filter media at full expansion | B39: basin_freeboard
A40: Basin length | B40: basin_length
A41: Basin width | B41: basin_width
A42: Bed depth | B42: basin_op_depth
A43: Bed depth | B43: bed_depth
A44: Bedding depth below pipe | B44: bedding_depth
A45: Bedding depth surrounding the pipe | B45: bedding_pct
A46: Borehole depth (pressure systems) | B46: bore_depth_p
A47: Borehole depth for deep basins | B47: bore_depth_max
A48: Borehole depth for shallow basins | B48: bore_depth_min
A49: Borehole needed every x square feet | B49: hole_per_sf
A50: Boreholes per job | B50: hole_per_job
A51: Builder's risk insurance percentage | B51: br_ins_pct
A52: Building height (gravity systems) | B52: Building_height_g
A53: Bypass pipe length multiplier | B53: bp_pipe_mult
A54: Carbon expansion during backwash | B54: bed_expansion
A55: Carbon life, 1st Freundlich constant (Kf), or Sorption capacity | B55: freund_1
A56: Characteristics of holding tank solids or Characteristics of evaporation pond solids | B56: solids_haz_I
A57: Chemical pipe length multiplier | B57: chem_pipe_mult
A58: Chemical resistant coating coverage | B58: sec_cont_coating_cvg
A59: Chemical tank mixer horsepower | B59: cmix_hp_per
A60: City Index for Total Capital Cost | B60: City_Index
A61: City Index for Total O&M Cost | B61: OM_City_Index
A62: Clean holding tanks/basins when solids accumulation =x% of capacity | B62: htank_clean_pct
A63: Clearance space beneath the ceiling | B63: ceiling_clearance
A64: Clerical LOE as a percent of average technical labor | B64: Clerical_percent
A65: Climate for estimating evaporation pond greenhouse gas emissions | B65: GHG_pond_climate
A66: Coefficient of passive pressure | B66: Coeff_Kp
A67: Component level | B67: component_level_I
A68: Component Level | B68: Range Name
A69: Computer workstations per x operators | B69: workstation_ratio
A70: Concrete pad thickness | B70: pad_thick
A71: Concrete pad thickness for small systems | B71: pad_thick_small
A72: Concrete thickness for basins | B72: conc_thick
A73: Contaminant removal input type | B73: EBCT_type_I
A74: Cooling table for buildings 500 square feet or greater | B74: cooling_table
A75: Cooling table for buildings less than 500 ft2 | B75: cooling_table_shed
A76: Cooling ventilation/infiltration load | B76: cool_viload
A77: Cost estimating method | B77: curve
A78: Cost for parts & maintenance for pumps | B78: booster_pump_maintenance
A79: Days of coagulant storage | B79: cstore_days
A80: Days of winter (i.e., days of storage during periods with no net evaporation) | B80: winter_days
A81: Default number of backwash basins | B81: back_basins_default
A82: Default number of residuals basins | B82: hbasins_default
A83: Design Flow (including bypass) | B83: design_flow_I
A84: Design safety factor for standby power | B84: std_safety_factor
A85: Diameter or blank | B85: comm_diam
A86: Discharge option for spent backwash | B86: res_s2_opt_I
A87: Disposal method for non-hazardous secondary solids | B87: solids_method
A88: Distance between drain field trenches | B88: sept_trench_dist
A89: Distance to discharge or recycle point | B89: add_res_pipe_length
A90: Drive controllers per backwash pump | B90: S_back_pump
A91: Drive controllers per booster pump | B91: S_booster_pump
A92: Drive controllers per coagulant mixer | B92: S_mixer
A93: Drive controllers per eductor | B93: S_eductor
A94: Drive controllers per residuals pump | B94: S_res_pump
A95: Drive controllers per slurry pump system | B95: S_slurry
A96: Electric resistance heating efficiency | B96: resist_eff
A97: Electrical percentage | B97: elect_pct
A98: Engineering percentage for large systems | B98: eng_pct_large
A99: Engineering percentage for medium systems | B99: eng_pct_medium
A100: Engineering percentage for small systems | B100: eng_pct_small
A101: Ethernet modules | B101: plc_ethernet_standalone
A102: Ethernet modules in add-on scenario | B102: plc_ethernet_addon
A103: Evaporation pond dike cross-sectional area | B103: dike_xsection
A104: Evaporation pond freeboard | B104: ep_freeboard
A105: Evaporation pond safety factor | B105: ep_safety_factor
A106: Evaporation pond solids density | B106: ep_solids_density
A107: Evaporation pond solids removal frequency | B107: dredging_freq
A108: Evaporation ratio | B108: evap_ratio
A109: Ferric chloride dosage | B109: coag_dose
A110: Ferric chloride sludge production factor | B110: coag_spf
A111: Ferric chloride solution concentration | B111: coag_pct
A112: Ferric chloride solution density | B112: coag_density
A113: Financing percentage | B113: finance_pct
A114: Financing percentage for small systems | B114: finance_pct_small
A115: Fire Buffer for Buildings | B115: fire_buffer
A116: Flow meters for backwash line | B116: tot_fm_back
A117: Flow meters for influent and treated water line | B117: fm_in
A118: Flow meters for influent and treated water line in add-on scenario | B118: fm_in_addon
A119: Flow meters for process line per vessel | B119: fm_proc
A120: Flow meters for residuals line | B120: tot_fm_res
A121: Frost depth | B121: frost
A122: GAC bulk density | B122: GAC_density
A123: GAC transfer method | B123: transfer_method_I
A124: GAC type | B124: GHG_GAC_type
A125: Head loss sensors per contactor | B125: head_tank
A126: Head loss sensors per contactor for small systems | B126: head_tank_small
A127: Heat pump cooling mode EER | B127: hp_EER
A128: Heat pump heating coefficient of performance | B128: COP
A129: Heating Oil Heat Content | B129: diesel_heat_content
A130: Heating table for buildings 500 square feet or greater | B130: heating_table
A131: Heating table for buildings less than 500 ft2 | B131: heating_table_shed
A132: Heating ventilation/infiltration load | B132: heat_viload
A133: Height (straight) or Length (straight) | B133: comm_height_length
A134: High/Low alarms per backwash tank | B134: alarm_back
A135: High/Low alarms per holding tank/basin | B135: alarm_res
A136: Holding basin depth to volume ratio | B136: holding_ratio
A137: Holding basin freeboard | B137: holding_freeboard
A138: Holding tank for spent backwash | B138: res_s1_opt_I
A139: Holding tank/basin capacity safety factor | B139: res_cap_factor
A140: Holding tank/basin mixer horsepower (if coagulant is used) | B140: hmix_hp_per
A141: Holding tank/basin solids density | B141: ht_solids_density
A142: Holding tank/basin solids transfer method | B142: res_transfer_method
A143: Holding tank/basin suspended solids removal efficiency with coagulant | B143: coag_TSSrem
A144: Holding tank/basin suspended solids removal efficiency without coagulant | B144: htank_TSSrem
A145: Hours per media changeout | B145: uloe_throwaway
A146: I/O port table | B146: port_table
A147: Include architectural fee for small systems? | B147: include_arch_small
A148: Include architectural fee? | B148: include_arch
A149: Include buildings? | B149: include_buildings_I
A150: Include concrete pad in total capital cost? | B150: include_pad
A151: Include construction management cost for pre-engineered packages? | B151: include_cm_pre
A152: Include construction management cost? | B152: include_cm
A153: Include contingency costs for high cost systems? | B153: include_conting_high
A154: Include contingency costs for low cost systems? | B154: include_conting_low
A155: Include contingency costs for medium cost systems? | B155: include_conting_medium
A156: Include cooling in standby power | B156: need_cool
A157: Include geotechnical costs for high cost gravity systems? | B157: include_geo_high_g
A158: Include geotechnical costs for high cost pressure systems? | B158: include_geo_high
A159: Include geotechnical costs for low cost gravity systems? | B159: include_geo_low_g
A160: Include geotechnical costs for low cost pressure systems? | B160: include_geo_low
A161: Include geotechnical costs for medium cost gravity systems? | B161: include_geo_medium_g
A162: Include geotechnical costs for medium cost pressure systems? | B162: include_geo_medium
A163: Include heating in standby power | B163: need_heat
A164: Include HVAC? | B164: include_HVAC_I
A165: Include land? | B165: include_land_I
A166: Include mixers for chemical tanks | B166: include_cmix
A167: Include NEPA compliance costs? | B167: include_NEPA
A168: Include performance bond cost? | B168: include_bond
A169: Include permit costs? | B169: include_permits
A170: Include pilot study costs in add-on scenario? | B170: include_pilot_addon
A171: Include pilot study costs? | B171: include_pilot
A172: Include piping to discharge point in add-on scenario | B172: include_add_res_pipe_addon
A173: Include PLC rack/power supplies in add-on scenario | B173: plc_rack_addon
A174: Include printers in add-on scenario | B174: printer_addon
A175: Include residuals pumps in add-on scenario | B175: res_pump_addon
A176: Include secondary containment (for ferric chloride residuals coagulant) | B176: include_sec_cont
A177: Include sitework costs? | B177: include_sitework
A178: Include standby power costs for small systems? | B178: include_standby_small
A179: Include standby power costs in add-on scenario? | B179: include_standby_addon
A180: Include standby power costs? | B180: include_standby
A181: Include workstations in add-on scenario | B181: workstation_addon
A182: Include yard piping costs in add-on scenario? | B182: include_yardpipe_addon
A183: Include yard piping costs? | B183: include_yardpipe
A184: Influent and treated water pipe length multiplier | B184: in_out_pipe_mult
A185: Installation, Transportatation, and O&P percentage | B185: inst_pct
A186: Instrumentation and control percentage | B186: i_c_pct
A187: Interval Between backwashes | B187: back_interval_I
A188: Labor hours per week for contact basins | B188: Weekly_labor
A189: Legal percentage | B189: legal_pct
A190: Level switch/alarms per GAC basin | B190: level_switch_g
A191: Level switch/alarms per GAC basin for small systems | B191: level_switch_small_g
A192: Level switch/alarms per pressure vessel | B192: level_switch
A193: Level switch/alarms per pressure vessel for small systems | B193: level_switch_small
A194: Lighting power per sf, high-quality buildings | B194: lighting_power_high
A195: Lighting power per sf, low-quality buildings and sheds | B195: lighting_power_low
A196: Lighting power per sf, mid-quality buildings | B196: lighting_power_mid
A197: Linear feet bored per day | B197: hole_per_day
A198: Loading rate maximum | B198: load_max
A199: Loading rate minimum | B199: load_min
A200: Long term acceptance rate | B200: sept_LTAR
A201: Maintenance LOE assumptions for chemical supply systems | B201: uloe_chem_maint
... 219 more rows

Sheet INPUT
A1: GRANULAR ACTIVATED CARBON (GAC) SYSTEM DESIGN AND COST INPUT
E3: STEP 1
E4: Select Contaminant | H4: =IF(VLOOKUP(contam_type,contam_lookup,2,FALSE)="Other","For other contaminants, the buttons shown in Step 3 will enter flows only, and clear all other inputs. Advanced users can change this behavior by entering inputs on the Standard Inputs sheet.",IF(VLOOKUP(contam_type,contam_lookup,2,FALSE)="Atrazine","Standard designs for atrazine assume treatment of unfiltered surface water","Standard designs for this contaminant assume treatment of groundwater")) -> Standard designs for this contaminant assume treatment of groundwater
H5: =IF(VLOOKUP(contam_type,contam_lookup,2,FALSE)="Other","","Users wishing to simulate the cost impact of different water quality should review model documentation, then adjust the appropriate inputs manually (e.g., bed volumes before breakthrough and backwash frequency)") -> Users wishing to simulate the cost impact of different water quality should review model documentation, then adjust the appropriate inputs manually (e.g., bed volumes before breakthrough and backwash frequency)
E6: STEP 2
E7: Select Design Type
C9: =CHOOSE(contam_type,'Standard Inputs'!BB9,'Standard Inputs'!BB25,'Standard Inputs'!BB41,'Standard Inputs'!BB57,'Standard Inputs'!BB73,'Standard Inputs'!BB89,'Standard Inputs'!BB105,'Standard Inputs'!BB121,'Standard Inputs'!BB137,'Standard Inputs'!BB153,'Standard Inputs'!BB169,'Standard Inputs'!BB185,'Standard Inputs'!BB201,'Standard Inputs'!BB217,'Standard Inputs'!BB233,'Standard Inputs'!BB249,'Standard Inputs'!BB265,'Standard Inputs'!BB281,'Standard Inputs'!BB297,'Standard Inputs'!BB313,'Standard Inputs'!BB329,'Standard Inputs'!BB345) -> TRUE | D9: =CHOOSE(contam_type,'Standard Inputs'!BC9,'Standard Inputs'!BC25,'Standard Inputs'!BC41,'Standard Inputs'!BC57,'Standard Inputs'!BC73,'Standard Inputs'!BC89,'Standard Inputs'!BC105,'Standard Inputs'!BC121,'Standard Inputs'!BC137,'Standard Inputs'!BC153,'Standard Inputs'!BC169,'Standard Inputs'!BC185,'Standard Inputs'!BC201,'Standard Inputs'!BC217,'Standard Inputs'!BC233,'Standard Inputs'!BC249,'Standard Inputs'!BC265,'Standard Inputs'!BC281,'Standard Inputs'!BC297,'Standard Inputs'!BC313,'Standard Inputs'!BC329,'Standard Inputs'!BC345) -> TRUE | E9: STEP 3 | H9: =IF(C9,"<- Using this design",IF(D9,"<- You modified this design","")) -> <- Using this design | I9: The standard design buttons are for EPA's use in estimating national costs, but other users might find them useful as a starting point. See documentation for more information.
C10: =CHOOSE(contam_type,'Standard Inputs'!BB10,'Standard Inputs'!BB26,'Standard Inputs'!BB42,'Standard Inputs'!BB58,'Standard Inputs'!BB74,'Standard Inputs'!BB90,'Standard Inputs'!BB106,'Standard Inputs'!BB122,'Standard Inputs'!BB138,'Standard Inputs'!BB154,'Standard Inputs'!BB170,'Standard Inputs'!BB186,'Standard Inputs'!BB202,'Standard Inputs'!BB218,'Standard Inputs'!BB234,'Standard Inputs'!BB250,'Standard Inputs'!BB266,'Standard Inputs'!BB282,'Standard Inputs'!BB298,'Standard Inputs'!BB314,'Standard Inputs'!BB330,'Standard Inputs'!BB346) -> FALSE | D10: =CHOOSE(contam_type,'Standard Inputs'!BC10,'Standard Inputs'!BC26,'Standard Inputs'!BC42,'Standard Inputs'!BC58,'Standard Inputs'!BC74,'Standard Inputs'!BC90,'Standard Inputs'!BC106,'Standard Inputs'!BC122,'Standard Inputs'!BC138,'Standard Inputs'!BC154,'Standard Inputs'!BC170,'Standard Inputs'!BC186,'Standard Inputs'!BC202,'Standard Inputs'!BC218,'Standard Inputs'!BC234,'Standard Inputs'!BC250,'Standard Inputs'!BC266,'Standard Inputs'!BC282,'Standard Inputs'!BC298,'Standard Inputs'!BC314,'Standard Inputs'!BC330,'Standard Inputs'!BC346) -> FALSE | E10: Select one of the eight standard designs at right OR select "CLEAR FOR MANUAL ENTRY" | H10: =IF(C10,"<- Using this design",IF(D10,"<- You modified this design","")) -> 
C11: =CHOOSE(contam_type,'Standard Inputs'!BB11,'Standard Inputs'!BB27,'Standard Inputs'!BB43,'Standard Inputs'!BB59,'Standard Inputs'!BB75,'Standard Inputs'!BB91,'Standard Inputs'!BB107,'Standard Inputs'!BB123,'Standard Inputs'!BB139,'Standard Inputs'!BB155,'Standard Inputs'!BB171,'Standard Inputs'!BB187,'Standard Inputs'!BB203,'Standard Inputs'!BB219,'Standard Inputs'!BB235,'Standard Inputs'!BB251,'Standard Inputs'!BB267,'Standard Inputs'!BB283,'Standard Inputs'!BB299,'Standard Inputs'!BB315,'Standard Inputs'!BB331,'Standard Inputs'!BB347) -> FALSE | D11: =CHOOSE(contam_type,'Standard Inputs'!BC11,'Standard Inputs'!BC27,'Standard Inputs'!BC43,'Standard Inputs'!BC59,'Standard Inputs'!BC75,'Standard Inputs'!BC91,'Standard Inputs'!BC107,'Standard Inputs'!BC123,'Standard Inputs'!BC139,'Standard Inputs'!BC155,'Standard Inputs'!BC171,'Standard Inputs'!BC187,'Standard Inputs'!BC203,'Standard Inputs'!BC219,'Standard Inputs'!BC235,'Standard Inputs'!BC251,'Standard Inputs'!BC267,'Standard Inputs'!BC283,'Standard Inputs'!BC299,'Standard Inputs'!BC315,'Standard Inputs'!BC331,'Standard Inputs'!BC347) -> FALSE
C12: =CHOOSE(contam_type,'Standard Inputs'!BB12,'Standard Inputs'!BB28,'Standard Inputs'!BB44,'Standard Inputs'!BB60,'Standard Inputs'!BB76,'Standard Inputs'!BB92,'Standard Inputs'!BB108,'Standard Inputs'!BB124,'Standard Inputs'!BB140,'Standard Inputs'!BB156,'Standard Inputs'!BB172,'Standard Inputs'!BB188,'Standard Inputs'!BB204,'Standard Inputs'!BB220,'Standard Inputs'!BB236,'Standard Inputs'!BB252,'Standard Inputs'!BB268,'Standard Inputs'!BB284,'Standard Inputs'!BB300,'Standard Inputs'!BB316,'Standard Inputs'!BB332,'Standard Inputs'!BB348) -> FALSE | D12: =CHOOSE(contam_type,'Standard Inputs'!BC12,'Standard Inputs'!BC28,'Standard Inputs'!BC44,'Standard Inputs'!BC60,'Standard Inputs'!BC76,'Standard Inputs'!BC92,'Standard Inputs'!BC108,'Standard Inputs'!BC124,'Standard Inputs'!BC140,'Standard Inputs'!BC156,'Standard Inputs'!BC172,'Standard Inputs'!BC188,'Standard Inputs'!BC204,'Standard Inputs'!BC220,'Standard Inputs'!BC236,'Standard Inputs'!BC252,'Standard Inputs'!BC268,'Standard Inputs'!BC284,'Standard Inputs'!BC300,'Standard Inputs'!BC316,'Standard Inputs'!BC332,'Standard Inputs'!BC348) -> FALSE
C13: =CHOOSE(contam_type,'Standard Inputs'!BB13,'Standard Inputs'!BB29,'Standard Inputs'!BB45,'Standard Inputs'!BB61,'Standard Inputs'!BB77,'Standard Inputs'!BB93,'Standard Inputs'!BB109,'Standard Inputs'!BB125,'Standard Inputs'!BB141,'Standard Inputs'!BB157,'Standard Inputs'!BB173,'Standard Inputs'!BB189,'Standard Inputs'!BB205,'Standard Inputs'!BB221,'Standard Inputs'!BB237,'Standard Inputs'!BB253,'Standard Inputs'!BB269,'Standard Inputs'!BB285,'Standard Inputs'!BB301,'Standard Inputs'!BB317,'Standard Inputs'!BB333,'Standard Inputs'!BB349) -> FALSE | D13: =CHOOSE(contam_type,'Standard Inputs'!BC13,'Standard Inputs'!BC29,'Standard Inputs'!BC45,'Standard Inputs'!BC61,'Standard Inputs'!BC77,'Standard Inputs'!BC93,'Standard Inputs'!BC109,'Standard Inputs'!BC125,'Standard Inputs'!BC141,'Standard Inputs'!BC157,'Standard Inputs'!BC173,'Standard Inputs'!BC189,'Standard Inputs'!BC205,'Standard Inputs'!BC221,'Standard Inputs'!BC237,'Standard Inputs'!BC253,'Standard Inputs'!BC269,'Standard Inputs'!BC285,'Standard Inputs'!BC301,'Standard Inputs'!BC317,'Standard Inputs'!BC333,'Standard Inputs'!BC349) -> FALSE
C14: =CHOOSE(contam_type,'Standard Inputs'!BB14,'Standard Inputs'!BB30,'Standard Inputs'!BB46,'Standard Inputs'!BB62,'Standard Inputs'!BB78,'Standard Inputs'!BB94,'Standard Inputs'!BB110,'Standard Inputs'!BB126,'Standard Inputs'!BB142,'Standard Inputs'!BB158,'Standard Inputs'!BB174,'Standard Inputs'!BB190,'Standard Inputs'!BB206,'Standard Inputs'!BB222,'Standard Inputs'!BB238,'Standard Inputs'!BB254,'Standard Inputs'!BB270,'Standard Inputs'!BB286,'Standard Inputs'!BB302,'Standard Inputs'!BB318,'Standard Inputs'!BB334,'Standard Inputs'!BB350) -> FALSE | D14: =CHOOSE(contam_type,'Standard Inputs'!BC14,'Standard Inputs'!BC30,'Standard Inputs'!BC46,'Standard Inputs'!BC62,'Standard Inputs'!BC78,'Standard Inputs'!BC94,'Standard Inputs'!BC110,'Standard Inputs'!BC126,'Standard Inputs'!BC142,'Standard Inputs'!BC158,'Standard Inputs'!BC174,'Standard Inputs'!BC190,'Standard Inputs'!BC206,'Standard Inputs'!BC222,'Standard Inputs'!BC238,'Standard Inputs'!BC254,'Standard Inputs'!BC270,'Standard Inputs'!BC286,'Standard Inputs'!BC302,'Standard Inputs'!BC318,'Standard Inputs'!BC334,'Standard Inputs'!BC350) -> FALSE
C15: =CHOOSE(contam_type,'Standard Inputs'!BB15,'Standard Inputs'!BB31,'Standard Inputs'!BB47,'Standard Inputs'!BB63,'Standard Inputs'!BB79,'Standard Inputs'!BB95,'Standard Inputs'!BB111,'Standard Inputs'!BB127,'Standard Inputs'!BB143,'Standard Inputs'!BB159,'Standard Inputs'!BB175,'Standard Inputs'!BB191,'Standard Inputs'!BB207,'Standard Inputs'!BB223,'Standard Inputs'!BB239,'Standard Inputs'!BB255,'Standard Inputs'!BB271,'Standard Inputs'!BB287,'Standard Inputs'!BB303,'Standard Inputs'!BB319,'Standard Inputs'!BB335,'Standard Inputs'!BB351) -> FALSE | D15: =CHOOSE(contam_type,'Standard Inputs'!BC15,'Standard Inputs'!BC31,'Standard Inputs'!BC47,'Standard Inputs'!BC63,'Standard Inputs'!BC79,'Standard Inputs'!BC95,'Standard Inputs'!BC111,'Standard Inputs'!BC127,'Standard Inputs'!BC143,'Standard Inputs'!BC159,'Standard Inputs'!BC175,'Standard Inputs'!BC191,'Standard Inputs'!BC207,'Standard Inputs'!BC223,'Standard Inputs'!BC239,'Standard Inputs'!BC255,'Standard Inputs'!BC271,'Standard Inputs'!BC287,'Standard Inputs'!BC303,'Standard Inputs'!BC319,'Standard Inputs'!BC335,'Standard Inputs'!BC351) -> FALSE
C16: =CHOOSE(contam_type,'Standard Inputs'!BB16,'Standard Inputs'!BB32,'Standard Inputs'!BB48,'Standard Inputs'!BB64,'Standard Inputs'!BB80,'Standard Inputs'!BB96,'Standard Inputs'!BB112,'Standard Inputs'!BB128,'Standard Inputs'!BB144,'Standard Inputs'!BB160,'Standard Inputs'!BB176,'Standard Inputs'!BB192,'Standard Inputs'!BB208,'Standard Inputs'!BB224,'Standard Inputs'!BB240,'Standard Inputs'!BB256,'Standard Inputs'!BB272,'Standard Inputs'!BB288,'Standard Inputs'!BB304,'Standard Inputs'!BB320,'Standard Inputs'!BB336,'Standard Inputs'!BB352) -> FALSE | D16: =CHOOSE(contam_type,'Standard Inputs'!BC16,'Standard Inputs'!BC32,'Standard Inputs'!BC48,'Standard Inputs'!BC64,'Standard Inputs'!BC80,'Standard Inputs'!BC96,'Standard Inputs'!BC112,'Standard Inputs'!BC128,'Standard Inputs'!BC144,'Standard Inputs'!BC160,'Standard Inputs'!BC176,'Standard Inputs'!BC192,'Standard Inputs'!BC208,'Standard Inputs'!BC224,'Standard Inputs'!BC240,'Standard Inputs'!BC256,'Standard Inputs'!BC272,'Standard Inputs'!BC288,'Standard Inputs'!BC304,'Standard Inputs'!BC320,'Standard Inputs'!BC336,'Standard Inputs'!BC352) -> FALSE
H17: =IF(COUNTIF(H9:H16,"")=8,"Using a manual design","") ->  | I17: =IF(COUNTIF(H9:H16,"")=8,"Fill in all gold cells below, then consider using AutoSize button","") -> 
E18: STEP 4
E19: (Optional for standard designs) | G19: =IF(input_complete,IF('Standard Inputs'!AX363,"Input Complete -- Results Ready","Input Complete -- Press 'Generate Results'"),"Input Incomplete -- Check for Error Messages Below") -> Input Complete -- Results Ready | I19: =IF(C20,"","Fill in all gold cells below. If errors persist, consider using AutoSize button.") -> 
C20: =AND(C34,C43,C53,C65:C70,C78:C81,C89,C107,C117) -> TRUE | E20: Enter or change values in the gold and blue cells below, under "Manual Inputs"
E22: STEP 5 | I22: ="Resulting Costs (in year "&TEXT(current_year_cl,0)&" dollars, see OUTPUT sheet for details)" -> Resulting Costs (in year 2021 dollars, see OUTPUT sheet for details)
E23: =IF(G19="input complete -- results ready","Results are ready (no need to click button)","Click here to generate results -->") -> Results are ready (no need to click button) | I23: ="Direct Capital Cost: " & IF(input_status<>"input complete -- results ready",input_status,IF(Missing_Cost,"Missing cost!",IF(cost_buildup_error,"Cost buildup error!",IF(ISERROR(direct_cost),"Calculation error!",TEXT(direct_cost,"$0,0"))))) -> Direct Capital Cost: $38,151
I24: ="Total Capital Cost: " & IF(input_status<>"input complete -- results ready",input_status,IF(Missing_Cost,"Missing cost!",IF(cost_buildup_error,"Cost buildup error!",IF(ISERROR(system_cost),"Calculation error!",TEXT(system_cost,"$0,0"))))) -> Total Capital Cost: $76,131
I25: ="Annualized Capital Cost: "&IF(input_status<>"Input Complete -- Results Ready",input_status,IF(Missing_Cost,"Missing Price!",IF(cost_buildup_error,"Cost buildup error!",IF(ISERROR(Annualized_Capital_Cost),"Calculation error!",TEXT(Annualized_Capital_Cost,"$0,0")&" per year"&" (over "&useful_life&" years at "&Discount_rate*100&"%)")))) -> Annualized Capital Cost: $8,031 per year (over 16.1 years at 7%)
E26: MANUAL INPUTS | I26: ="Annual O&M Cost: " &IF(input_status<>"input complete -- results ready",input_status,IF(ISERROR(OM_cost),"Calculation error!",TEXT(OM_cost,"$0,0")&" per year")) -> Annual O&M Cost: $2,987 per year
E27: Cells in gold are required; cells in blue are optional | I27: ="Total Annualized Cost: "&IF(input_status<>"input complete -- results ready",input_status,IF(Missing_Cost,"Missing Price!",IF(cost_buildup_error,"Cost buildup error!",IF(ISERROR(Annualized_Cost),"Calculation error!",TEXT(Annualized_Cost,"$0,0")&" per year ("&TEXT(TAC_pct_cap,"0%")&" capital, "&TEXT(TAC_pct_OM,"0%")&" O&M")&")"))) -> Total Annualized Cost: $11,019 per year (73% capital, 27% O&M)
B28: Used? | C28: Valid input? | D28: Invalid reason? | H28: Select units | I28: =IF(input_status="Input Incomplete -- check for error messages below","",IF(Missing_Cost,"A price is not available for at least one required component. See Use? column on OUTPUT sheet.",IF(cost_buildup_error,"There is an Excel error in the price for at least one component. Please see the Use? column on OUTPUT sheet.",""))) -> 
E29: Design Flow (including bypass) | F29: design_flow_I | G29: 0.03 | H29: MGD
E30: Average Flow (including bypass) | F30: average_flow_I | G30: 0.007 | H30: MGD
E31: For information:
E32: Treatment system design flow | G32: =IF(ISERROR(design_flow),"",IF(df_units="gpm",design_flow_rate, design_flow)) -> 0.03 | H32: =df_units -> MGD
E33: Bypass design flow | G33: =IF(ISERROR(design_flow),"",IF(df_units="gpm",bp_flow_rate, bp_flow_rate*60*24/10^6)) -> 0 | H33: =df_units -> MGD | I33: ="Current bypass percentage is "&TEXT(bp_pct,"0%")&". Go to Critical Design Assumptions (link below) to change this value." -> Current bypass percentage is 0%. Go to Critical Design Assumptions (link below) to change this value.
C34: =IF(OR(df_units="",af_units=""),FALSE,IF(average_flow>design_flow,FALSE,IF(OR(design_flow_I=0,average_flow_I=0),FALSE,IF(average_flow_I<design_flow_I*min_avg_flow,FALSE,TRUE)))) -> TRUE | D34: =IF(OR(df_units="",af_units=""),"Choose units for design and average flow",IF(average_flow>design_flow,"The average flow should not be greater than the design flow",IF(OR(design_flow_I=0,average_flow_I=0),"Input incomplete",IF(average_flow_I<design_flow_I*min_avg_flow,"The averageflow must be at least "&min_avg_flow&"times design flow","OK")))) -> OK | H34: =IF(C34,"System size inputs OK",D34) -> System size inputs OK | I34: Adjust bypass percentage
C36: =NOT(freund_type_I="") -> TRUE | E36: Select carbon life input type | F36: freund_type_I | G36: carbon life value- bed volumes | H36: <-- pick one | I36: Guidance: Carbon life is best determined by pilot or RSSCT tests. Use theoretical calculation methods (e.g., Freundlich isotherms) only in the absence of such data for initial assessment of carbon life and suitability of GAC for treatment.
C37: =NOT(freund_1="") -> TRUE | E37: =CHOOSE(freund_type," Carbon life"," 1st Freundlich constant (Kf)"," Sorption capacity"," Carbon life") -> Carbon life | F37: freund_1 | G37: 66600 | H37: =CHOOSE(freund_type,"months","(ug/g)(L/ug)^(1/n)","mg/g","bed volumes") -> bed volumes
B38: =OR(freund_type=2,freund_type=3) -> FALSE | C38: =IF(B38,NOT(freund_2=""),TRUE) -> TRUE | E38: =CHOOSE(freund_type," no additonal input required"," 2nd Freundlich constant (1/n)"," Bohart and Adams quasi-chemical rate constant (k)"," no additonal input required") -> no additonal input required | F38: freund_2 | H38: =CHOOSE(freund_type,"not required","dimensionless","L/mg-sec","not required") -> not required | I38: See Freundlich isotherm reference data
B39: =OR(freund_type=2,freund_type=3) -> FALSE | C39: =IF(B39,NOT(C_0=""),TRUE) -> TRUE | E39: =CHOOSE(freund_type," no additonal input required"," Influent concentration"," Influent concentration"," no additonal input required") -> no additonal input required | F39: C_0 | H39: =CHOOSE(freund_type,"not required","mg/L","mg/L","not required") -> not required | I39: See PFAS breakthrough reference data
B40: =OR(freund_type=2,freund_type=3) -> FALSE | C40: =IF(B40,NOT(C_b=""),TRUE) -> TRUE | E40: =CHOOSE(freund_type," no additonal input required"," Breakthrough concentration"," Breakthrough concentration"," no additonal input required") -> no additonal input required | F40: C_b | H40: =CHOOSE(freund_type,"not required","mg/L","mg/L","not required") -> not required
E41: For information: | I41: =IF(AND(freund_type=4,Num_tanks>1),"Important: carbon life calculation assumes bed volumes are based on "&BV_definition,"") -> 
E42: Carbon Life | G42: =IF(AND(C43,NOT(ISERROR(bed_life))),bed_life,"") -> 50.6775158 | H42: months at average flow | I42: =IF(AND(C43,NOT(ISERROR(bed_life)),NOT(ISERROR(Num_tanks))),IF(Num_tanks>1,"Carbon life reflects time between change outs of the lead vessel",""),"") -> 
C43: =IF(NOT(AND(C36,C37,C38,C39,C40)),FALSE,IF(AND(freund_type=2,C_b>=C_0),FALSE,IF(AND(EBCT_type=2,OR(freund_type=2,freund_type=3)),IF(C_0<>EBCT_I,FALSE,TRUE),TRUE))) -> TRUE | D43: =IF(NOT(AND(C36,C37,C38,C39,C40)),"Carbon life input incomplete",IF(AND(freund_type=2,C_b>=C_0),"Warning: breakthrough concentration should be less than influent concentration",IF(AND(EBCT_type=2,OR(freund_type=2,freund_type=3)),IF(C_0<>EBCT_I,"Warning: Influent concentration should be the same as entered for EBCT calculation","Carbon life input OK"),"OK"))) -> OK | H43: =IF(C43,"Carbon input OK",D43) -> Carbon input OK | I43: =IF(OR(freund_type=1,freund_type=4),"",IF(OR(freund_type=2,freund_type=3),"Guidance: Low calculated carbon life value may indicate unsuitability of GAC as a treatment technique.","")) -> 
C45: =NOT(EBCT_type_I="") -> TRUE | E45: Contaminant removal input type | F45: EBCT_type_I | G45: EBCT | H45: <-- pick one | I45: =IF(EBCT_type<>3,"Warning: use this method for radon only","") -> 
C46: =NOT(EBCT_I="") -> TRUE | E46: =IF(EBCT_type=1," Percent removal",IF(EBCT_type=2," Influent concentration",IF(EBCT_type=3," Total Theoretical Empty Bed Contact Time (EBCT)",""))) -> Total Theoretical Empty Bed Contact Time (EBCT) | F46: EBCT_I | G46: 7.5 | H46: =IF(EBCT_type=1,"enter percentage as fraction",IF(EBCT_type=2,"mg/l",IF(EBCT_type=3,"minutes",""))) -> minutes | I46: Guidance: EBCT is best determined by pilot tests, but may be calculated for radon if a steady state rate constant (Kss) is available. Use the theoretical calculation method for radon only in the absence of pilot data for initial assessment of EBCT and suitability of GAC for treatment.
B47: =EBCT_type=2 -> FALSE | C47: =IF(B47,NOT(EBCT_O=""),TRUE) -> TRUE | E47: =IF(EBCT_type=1," no additonal input required",IF(EBCT_type=2," Desired effluent concentration",IF(EBCT_type=3," no additonal input required"," no additonal input required"))) -> no additonal input required | F47: EBCT_O | H47: =IF(EBCT_type<>2,"not required","mg/l") -> not required
B48: =EBCT_type<>3 -> FALSE | C48: =IF(B48,NOT(Kss=""),TRUE) -> TRUE | E48: =IF(OR(EBCT_type=1,EBCT_type=2)," Steady state system constant (Kss)",IF(EBCT_type=3," no additonal input required"," no additonal input required")) -> no additonal input required | F48: Kss | H48: =IF(EBCT_type=3,"not required","1/hrs") -> not required
B49: =IF(design_type=1,TRUE,FALSE) -> TRUE | C49: =IF(B49,NOT(Num_tanks_I=""),TRUE) -> TRUE | E49: Minimum number of contactors in series (i.e., parallel or series operation) | F49: Num_tanks_I | G49: 1 | H49: <-- enter 1 for parallel, 2 or more for series | I49: =IF(design_type=1,"Consider multiple vessels in series for long EBCTs (>10 minutes)","Parallel operation only for gravity systems") -> Consider multiple vessels in series for long EBCTs (>10 minutes)
E50: For information:
E51: EBCT | G51: =IF(C53,EBCT,"") -> 7.5 | H51: minutes at design flow
E52: EBCT per contactor | G52: =IF(C53,IF(design_type=1,EBCT_tank,EBCT),"") -> 7.5 | H52: minutes at design flow
C53: =IF(NOT(AND(C45,C46,C47,C48,C49)),FALSE,IF(EBCT_type=1,IF(EBCT_I>=1,FALSE,TRUE),IF(EBCT_type=2,IF(EBCT_O>EBCT_I,FALSE,TRUE),TRUE))) -> TRUE | D53: =IF(NOT(AND(C45,C46,C47,C48,C49)),"Contaminant removal inputs incomplete",IF(EBCT_type=1,IF(EBCT_I>=1,"Removal fraction cannot be greater than or equal to 1","OK"),IF(EBCT_type=2,IF(EBCT_O>EBCT_I,"Effluent concentration cannot be greater than influent concentration","OK"),"OK"))) -> OK | H53: =IF(C53,"Contaminant removal inputs OK",D53) -> Contaminant removal inputs OK
B55: =IF(design_type=1,TRUE,FALSE) -> TRUE | E55: Pressure Vessels
B56: yes | C56: <- Autosize Std Inputs | E56: The next four inputs may be entered manually, or calculated with AutoSize button. All other gold inputs must be complete before AutoSizing.
C57: =IF(NOT(B55),TRUE,NOT(bed_depth="")) -> TRUE | E57: Bed depth | F57: bed_depth | G57: 3.4 | H57: feet | I57: Guidance: Typical pressure GAC bed depths are 2 to 8.5 ft.
C58: =IF(NOT(B55),TRUE,NOT(tank_geom_I="")) -> TRUE | E58: Vessel geometry | F58: tank_geom_I | G58: upright | H58: <-- pick one | I58: Guidance: Typically upright, although larger systems (e.g., greater than 2,000 gpm) might use horizontal vessels
C59: =IF(NOT(B55),TRUE,NOT(comm_height_length="")) -> TRUE | E59: =IF(tank_geom=1,"Height (straight)",IF(tank_geom=2,"Length (straight)","")) -> Height (straight) | F59: comm_height_length | G59: 6 | H59: =IF(tank_geom<>"","feet","") -> feet | I59: Guidance: Typically up to 14 feet for upright vessels, 20 to 40 feet for horizontal vessels
C60: =IF(NOT(B55),TRUE,NOT(comm_diam="")) -> TRUE | E60: =IF(tank_geom<>""," Diameter","") -> Diameter | F60: comm_diam | G60: 2 | H60: =IF(tank_geom<>"","feet","") -> feet | I60: Guidance: Typically 1.5 to 14 feet for upright vessels, 10 to 14 feet for horizontal vessels
E61: For information:
E62: Number of treatment trains | G62: =IF(OR(NOT(B55),ISERROR(num_treat_lines)),"",num_treat_lines) -> 2 | H62: trains
E63: Number of operating vessels | G63: =IF(OR(NOT(B55),ISERROR(op_num_tanks)),"",op_num_tanks) -> 2 | H63: units
E64: Total vessels (incl. redundancy, below) | G64: =IF(OR(NOT(B55),ISERROR(final_num_tanks)),"",final_num_tanks) -> 2 | H64: units
C65: =IF(NOT(B55),TRUE,IF(NOT(AND(C57:C60)),FALSE,IF(bed_depth>max_bed_depth,FALSE,IF(bed_depth>2*comm_diam,FALSE,IF(bed_depth<min_bed_depth,FALSE,TRUE))))) -> TRUE | D65: =IF(NOT(B55),"OK",IF(NOT(AND(C57:C60)),"Input incomplete",IF(bed_depth>max_bed_depth,"Warning: bed depth too great",IF(bed_depth>2*comm_diam,"Warning: bed depth should be less than twice the vessel diameter",IF(bed_depth<min_bed_depth,"Warning: bed depth too shallow","OK"))))) -> OK | H65: =IF(NOT(B55),"",IF(C65,"Bed Depth OK",D65)) -> Bed Depth OK | I65: Adjust bed depth constraints
C66: =IF(NOT(B55),TRUE,IF(NOT(AND(C57:C60)),FALSE,IF(tank_geom=1,IF(IF(AND(comm_diam>=min_diam,comm_diam<=max_diam_std_size),(OR(comm_height_length>=max_comm_height,comm_height_length>max_height)),comm_height_length>max_height),FALSE,IF(IF(AND(comm_diam>=min_diam,comm_diam<=max_diam_std_size),(AND(comm_height_length>=min_comm_height,comm_height_length>=height)),comm_height_length>=height),TRUE,FALSE)),IF(tank_geom=2,IF(comm_height_length>max_length,FALSE,TRUE),FALSE)))) -> TRUE | D66: =IF(NOT(B55),"OK",IF(NOT(AND(C57:C60)),"",IF(tank_geom=1,IF(IF(AND(comm_diam>=min_diam,comm_diam<=max_diam_std_size),(OR(comm_height_length>=max_comm_height,comm_height_length>max_height)),comm_height_length>max_height),"Warning: vessel too high",IF(IF(AND(comm_diam>=min_diam,comm_diam<=max_diam_std_size),(AND(comm_height_length>=min_comm_height,comm_height_length>=height)),comm_height_length>=height),"Height OK","Warning: vessel not high enough")),IF(tank_geom=2,IF(comm_height_length>max_length,"Warning: vessel too long","Length OK"),"Invalid tank geometry input")))) -> Height OK | H66: =IF(NOT(B55),"",D66) -> Height OK | I66: Adjust vessel size constraints
C67: =IF(NOT(B55),TRUE,IF(ISERROR(final_num_tanks),FALSE,IF(tank_geom=1,IF(comm_diam>max_diam,FALSE,IF(comm_diam<diameter,FALSE,TRUE)),IF(tank_geom=2,IF(comm_diam>max_diam,FALSE,IF(comm_diam>max_height,FALSE,IF(comm_SA<SA,FALSE,IF(comm_diam<height,FALSE,TRUE)))),FALSE)))) -> TRUE | D67: =IF(NOT(B55),"OK",IF(ISERROR(final_num_tanks),"",IF(tank_geom=1,IF(comm_diam>max_diam,"Warning: vessel diameter too great",IF(comm_diam<diameter,"Warning: vessel diameter too small","Diameter OK")),IF(tank_geom=2,IF(comm_diam>max_diam,"Warning: vessel diameter too great",IF(comm_diam>max_height,"Warning: vessel diameter too great",IF(comm_SA<SA,"Warning: vessel surface area too small",IF(comm_diam<height,"Warning: vessel diameter too small","OK")))),"")))) -> Diameter OK | H67: =IF(NOT(B55),"",IF(C67,"Diameter OK",D67)) -> Diameter OK
C68: =IF(NOT(B55),TRUE,IF(NOT(AND(C57:C60)),FALSE,IF(input_vol_vess<media_volume_expanded,FALSE,TRUE))) -> TRUE | D68: =IF(NOT(B55),"OK",IF(D65="Input incomplete","",IF(input_vol_vess<media_volume_expanded,"Warning: vessel too small for this bed depth","OK"))) -> OK | H68: =IF(NOT(B55),"",IF(C68,"Volume OK",D68)) -> Volume OK
H69: =IF(H65="Input incomplete","",IF(input_vol_vess<media_volume_expanded,CHOOSE(tank_geom,"Hint: reduce bed depth or increase diameter or height","Hint: reduce bed depth or increase diameter"),"")) -> 
C70: =IF(NOT(B55),TRUE,IF(ISERROR(final_num_tanks),FALSE,IF(tank_geom=1,IF(comm_load_rate>load_max,FALSE,IF(comm_load_rate<load_min,FALSE,TRUE)),IF(comm_load_rate>load_max,FALSE,IF(comm_load_rate<load_min,FALSE,TRUE))))) -> TRUE | D70: =IF(NOT(B55),"OK",IF(ISERROR(final_num_tanks),"",IF(tank_geom=1,IF(comm_load_rate>load_max,"Warning: design exceeds maximum loading",IF(comm_load_rate<load_min,"Warning: design below minimum loading","OK")),IF(comm_load_rate>load_max,"Warning: design exceeds maximum loading",IF(comm_load_rate<load_min,"Warning: design below minimum loading","OK"))))) -> OK | H70: =IF(NOT(B55),"",IF(C70,"Loading OK",D70)) -> Loading OK | I70: Adjust loading constraints
H71: =IF(OR(NOT(B55),ISERROR(final_num_tanks)),"",IF(tank_geom=1,IF(comm_load_rate>load_max,"Hint: increase vessel diameter or decrease bed depth",IF(comm_load_rate<load_min,"Hint: reduce vessel diameter or increase bed depth","")),IF(comm_load_rate>load_max,"Hint: increase vessel length and diameter or decrease bed depth",IF(comm_load_rate<load_min,"Hint: reduce vessel length and diameter or increase bed depth","")))) -> 
B73: =IF(design_type=2,TRUE,FALSE) -> FALSE | E73: Gravity Contact Basins
C74: <- Autosize Std Inputs | E74: The next three inputs may be entered manually, or calculated with AutoSize button. All other gold inputs must be complete before AutoSizing.
C75: =IF(NOT(B73),TRUE,NOT(basin_width="")) -> TRUE | E75: Basin width | F75: basin_width | H75: feet | I75: Guidance: GAC contactors typically are square.
C76: =IF(NOT(B73),TRUE,NOT(basin_length="")) -> TRUE | E76: Basin length | F76: basin_length | H76: feet
C77: =IF(NOT(B73),TRUE,NOT(basin_op_depth="")) -> TRUE | E77: Bed depth | F77: basin_op_depth | H77: feet | I77: Guidance: Typical gravity GAC bed depths are 3-10 feet
C78: =IF(NOT(B73),TRUE,IF(NOT(AND(C75,C76,C77)),FALSE,IF(basin_op_depth>max_depth,FALSE,IF(basin_op_depth<min_depth,FALSE,TRUE)))) -> TRUE | D78: =IF(NOT(B73),"OK",IF(NOT(AND(C75,C76,C77)),"Input incomplete",IF(basin_op_depth>max_depth,"Warning: basin too deep",IF(basin_op_depth<min_depth,"Warning: basin too shallow","OK")))) -> OK | E78: For information: | H78: =IF(NOT(B73),"",IF(C78,"Bed Depth OK",D78)) ->  | I78: Adjust bed depth constraints
C79: =IF(NOT(B73),TRUE,IF(basin_width>max_width,FALSE,IF(basin_width<min_width,FALSE,TRUE))) -> TRUE | D79: =IF(NOT(B73),"OK",IF(NOT(AND(C75,C76,C77)),"",IF(basin_width>max_width,"Warning: basin too wide",IF(basin_width<min_width,"Warning: basin too narrow","OK")))) -> OK | E79: Total contactors (including redundancy from below) | G79: =IF(OR(NOT(B73),ISERROR(total_num_basins)),"",total_num_basins) ->  | H79: =IF(NOT(B73),"",IF(C79,"Width OK",D79)) ->  | I79: Adjust width constraints
C80: =IF(NOT(B73),TRUE,IF(basin_length>max_length_g,FALSE,IF(basin_length<min_length_g,FALSE,TRUE))) -> TRUE | D80: =IF(NOT(B73),"OK",IF(ISERROR(total_num_basins),"",IF(H59="input incomplete","",IF(basin_length>max_length_g,"Warning: basin too long",IF(OR(basin_length<min_length_g,basin_length<(min_basin_vol/op_num_basins/basin_op_depth/basin_width)),"Warning: basin too short","OK"))))) -> OK | H80: =IF(NOT(B73),"",IF(C80,"Length OK",D80)) ->  | I80: Adjust length constraints
C81: =IF(NOT(B73),TRUE,IF(ISERROR(total_num_basins),"",IF(H78="input incomplete",FALSE,IF(surface_loading_rate_g>load_max,FALSE,IF(surface_loading_rate_g<load_min,FALSE,TRUE))))) -> TRUE | D81: =IF(NOT(B73),"OK",IF(ISERROR(total_num_basins),"",IF(H78="input incomplete","",IF(surface_loading_rate_g>load_max,"Warning: design exceeds maximum loading",IF(surface_loading_rate_g<load_min,"Warning: design below minimum loading","OK"))))) -> OK | H81: =IF(NOT(B73),"",IF(ISERROR(total_num_basins),"",IF(C81,"Loading OK",D81))) ->  | I81: Adjust loading constraints
C83: =NOT(back_interval_I="") -> TRUE | E83: Interval Between backwashes | F83: back_interval_I | G83: 168 | H83: hours | I83: Interval between backwash occurrences depends on the loading rate, water quality, and size of carbon. 48 hours for surface water if loading rate 4-6 gpm/sf; 7+ days for ground water (Richard E. Hubel, Peter Keenan, American Water Works Service Company, Inc). 2 weeks or loss of head based on operational experience (Verna Arnette, Greater Cincinnati Water Works).
C84: =NOT(res_s2_opt_I="") -> TRUE | E84: Discharge option for spent backwash | F84: res_s2_opt_I | G84: POTW | H84: <-- pick one
B85: =OR(res_s2_opt=1,res_s2_opt=2) -> TRUE | C85: =IF(B85,NOT(res_s1_opt_I=""),TRUE) -> TRUE | E85: Holding tank for spent backwash | F85: res_s1_opt_I | G85: no holding tank | H85: =IF(res_s2_opt=3,"always included",IF(OR(res_s2_opt=4,res_s2_opt=5),"not required","<-- pick one")) -> <-- pick one | I85: =IF(OR(res_s2_opt=4,res_s2_opt=5),"",IF(res_s1_opt_I="Holding tank","Model selects between holding tank or basin based upon priority lookups on the Output sheet","")) -> 
C86: =NOT(regen_type_I="") -> TRUE | E86: Management option for spent carbon | F86: regen_type_I | G86: regeneration off-site (non-hazardous) | H86: <-- pick one
C87: =NOT(transfer_method_I="") -> TRUE | E87: GAC transfer method | F87: transfer_method_I | G87: manual transfer | H87: <-- pick one
B88: =OR(res_s2_opt=5,res_s1_opt=1) -> FALSE | C88: =IF(B88,NOT(solids_haz_I=""),TRUE) -> TRUE | E88: =IF(res_s2_opt=5,"Characteristics of evaporation pond solids","Characteristics of holding tank solids") -> Characteristics of holding tank solids | F88: solids_haz_I | H88: =IF(OR(res_s1_opt=1,res_s2_opt=5),"<-- pick one","not required") -> not required
C89: =IF(NOT(AND(C83:C88)),FALSE,TRUE) -> TRUE | D89: =IF(NOT(AND(C83:C88)),"Input incomplete","OK") -> OK | H89: =IF(C89,"Residuals Input OK",D89) -> Residuals Input OK
E91: Number of booster pumps | F91: lines_pump_I | G91: 0 | H91: pumps | I91: Enter 0 to exclude booster pumps (e.g., use existing pumps). Clear cell to accept model defaults (contaminant and design type specific)
E92: For information: # of booster pumps | G92: =IF(ISERROR(booster_pumps),"",booster_pumps) -> 0 | H92: pumps
E93: Number of redundant contactors to be added | F93: NRD_I | H93: units | I93: Leave blank to accept redundancy frequency specified in critical design assumptions
E94: For information: Redundant contactors | G94: =IF(design_type=1,IF(ISERROR(NRD),"",NRD),IF(ISERROR(NRD_g),"",NRD_g)) -> 0 | H94: units
E95: Backwash pumping | F95: no_backwash_I | H95: <-- pick or leave blank | I95: Leave blank to accept model defaults (systems <1 MGD backwash using existing supply or treated water pumps, other systems add new backwash pumps)
E96: Backwash storage | F96: no_back_tank_I | H96: <-- pick or leave blank | I96: Leave blank to accept model defaults (only systems between 1 and 10 MGD require separate backwash tanks)
E97: For information: # of backwash pumps | G97: =IF(ISERROR(backwash_pumps),"",backwash_pumps) -> 0 | H97: units
E98: ="# of backwash "&IF(OUTPUT!L53=1,"basins","tanks") -> # of backwash tanks | G98: =IF(ISERROR(num_back_tanks),"",IF(OUTPUT!L53=1,back_basins,num_back_tanks)) -> 0 | H98: units
E99: Component level | F99: component_level_I | H99: <-- pick or leave blank | I99: Leave blank to use low cost components
E100: System automation | F100: manual_I | G100: fully automated | H100: <-- pick or leave blank | I100: Leave blank to allow model to pick based on component level
E101: Include buildings? | F101: include_buildings_I | H101: <-- pick or leave blank | I101: Leave blank to include buildings
E102: Include HVAC? | F102: include_HVAC_I | H102: <-- pick or leave blank | I102: Leave blank to allow model to pick based on component level and building type
E103: Include land? | F103: include_land_I | H103: <-- pick or leave blank | I103: Leave blank to include land
E104: For information: Component level | G104: =IF(component_level=2,"high cost",IF(component_level=1,"mid cost","low cost")) -> low cost
E105: Automation | G105: =IF(manual=1,"manual",IF(manual=2,"semi-automated",IF(manual=3,"fully automated"))) -> fully automated
E106: Add-on (pre- or post-treatment) | F106: addon_I | H106: <-- pick or leave blank | I106: Select to calculate costs for GAC as a pre- or post-treatment for another base technology (e.g., GAC polishing for UVAOP)
C107: =IF(ISERROR(pump_rating),FALSE,IF(pump_rating>max_pump_size,FALSE,TRUE)) -> TRUE | D107: =IF(ISERROR(pump_rating),"Input incomplete",IF(pump_rating>max_pump_size,"Warning: insufficent number of pumps.","OK")) -> OK | H107: =IF(C107,"Optional Inputs OK",D107) -> Optional Inputs OK
E109: Retrofit (operational modification) | F109: retrofit_I | H109: <-- pick or leave blank | I109: Select to calculate costs for modifying operational practices to allow a different carbon life than originally designed
B110: =IF(retrofit=1,TRUE,FALSE) -> FALSE | C110: =IF(B110,NOT(r_freund_type_I=""),TRUE) -> TRUE | E110: Select new carbon life input type | F110: r_freund_type_I | H110: =IF(retrofit=1,"<-- pick one","not required") -> not required | I110: Guidance: Carbon life is best determined by pilot or RSSCT tests. Use theoretical calculation methods (e.g., Freundlich isotherms) only in the absence of such data for initial assessment of carbon life and suitability of GAC for treatment.
B111: =IF(retrofit=1,TRUE,FALSE) -> FALSE | C111: =IF(B111,NOT(r_freund_1=""),TRUE) -> TRUE | E111: =CHOOSE(r_freund_type,"New carbon life","1st Freundlich constant (Kf)","Sorption capacity","New carbon life") -> New carbon life | F111: r_freund_1 | H111: =IF(retrofit=0,"not required",CHOOSE(r_freund_type,"months","(ug/g)(L/ug)^(1/n)","mg/g","bed volumes")) -> not required
B112: =AND(retrofit=1,OR(r_freund_type=2,r_freund_type=3)) -> FALSE | C112: =IF(B112,NOT(r_freund_2=""),TRUE) -> TRUE | E112: =CHOOSE(r_freund_type,"no additonal input required","2nd Freundlich constant (1/n)","Bohart and Adams quasi-chemical rate constant (k)","no additonal input required") -> no additonal input required | F112: r_freund_2 | H112: =CHOOSE(r_freund_type,"not required","dimensionless","L/mg-sec","not required") -> not required
B113: =AND(retrofit=1,OR(r_freund_type=2,r_freund_type=3)) -> FALSE | C113: =IF(B113,NOT(r_C_0=""),TRUE) -> TRUE | E113: =CHOOSE(r_freund_type,"no additonal input required","New influent concentration","New influent concentration","no additonal input required") -> no additonal input required | F113: r_C_0 | H113: =CHOOSE(r_freund_type,"not required","mg/L","mg/L","not required") -> not required
B114: =AND(retrofit=1,OR(r_freund_type=2,r_freund_type=3)) -> FALSE | C114: =IF(B114,NOT(r_C_b=""),TRUE) -> TRUE | E114: =CHOOSE(r_freund_type,"no additonal input required","New breakthrough concentration","New breakthrough concentration","no additonal input required") -> no additonal input required | F114: r_C_b | H114: =CHOOSE(r_freund_type,"not required","mg/L","mg/L","not required") -> not required
E115: For information:
E116: Retrofit Carbon Life | G116: =IF(AND(C117,retrofit=1),r_bed_life,"") ->  | H116: months
C117: =IF(NOT(AND(C110,C111,C112,C113,C114)),FALSE,IF(AND(r_freund_type=2,r_C_b>=r_C_0),FALSE,TRUE)) -> TRUE | D117: =IF(NOT(AND(C110,C111,C112,C113,C114)),"Retrofit input incomplete",IF(AND(r_freund_type=2,r_C_b>=r_C_0),"Warning: breakthrough concentration should be less than influent concentration","OK")) -> OK | H117: =IF(C117,"Retrofit input OK",D117) -> Retrofit input OK

Sheet OUTPUT
A1: OUTPUT SUMMARY
B2: Parameter | C2: Value | D2: Units
B3: Contaminant | C3: =IF(VLOOKUP(contam_type,contam_lookup,2,FALSE)="","",VLOOKUP(contam_type,contam_lookup,2,FALSE)) -> TCE
B4: System Size Category | C4: =IF(ss_cat2=1,"small","large") -> small
B5: Technology | C5: GAC
B6: Design Type | C6: =IF(design_type=1,"Pressure","Gravity") -> Pressure
B7: Design Flow | C7: =design_flow -> 0.03 | D7: MGD (excludes bypass flow)
B8: Average Flow | C8: =average_flow -> 0.007 | D8: MGD (excludes bypass flow)
B9: # of treatment trains | C9: =IF(design_type=1,num_treat_lines,op_num_basins) -> 2 | D9: trains
B10: # of contactors in series | C10: =Num_tanks -> 1 | D10: (i.e., parallel or series operation)
B11: # of contactors | C11: =IF(design_type=1,final_num_tanks,total_num_basins) -> 2 | D11: (including redundancy)
B12: Total EBCT | C12: =EBCT -> 7.5 | D12: minutes at design flow
B13: EBCT per contactor | C13: =IF(design_type=1,EBCT_tank,EBCT) -> 7.5 | D13: minutes at design flow
B14: =IF(retrofit=1,"Initial carbon life","Carbon life") -> Carbon life | C14: =IFERROR(bed_life,"") -> 50.6775158 | D14: months at average flow
B15: Bed depth | C15: =IF(design_type=1,bed_depth,basin_op_depth) -> 3.4 | D15: feet
B16: Vessel geometry | C16: =IF(design_type=1,tank_geom_I,"basins") -> upright
B17: =IF(design_type=2,"Basin width",IF(tank_geom=1,"Height (straight)",IF(tank_geom=2,"Length (straight)",""))) -> Height (straight) | C17: =IF(design_type=1,comm_height_length,basin_width) -> 6 | D17: feet
B18: =IF(design_type=1,"Diameter","Basin length") -> Diameter | C18: =IF(design_type=1,comm_diam,basin_length) -> 2 | D18: feet
B19: Component level | C19: =IF(component_level=2,"high cost",IF(component_level=1,"mid cost","low cost")) -> low cost
B20: System automation | C20: =IF(manual=1,"manual",IF(manual=2,"semi-automated",IF(manual=3,"fully automated"))) -> fully automated
B21: Retrofit (operational modification)? | C21: =IF(retrofit=1,"yes","no") -> no
B22: New carbon life after retrofit | C22: =IF(retrofit=1,r_bed_life,"not applicable") -> not applicable | D22: =IF(retrofit=1,"months at average flow","") -> 
B23: ="Resulting Costs (in year "&TEXT(current_year_cl,0)&" dollars)" -> Resulting Costs (in year 2021 dollars)
B24: Direct Capital Cost | C24: =IF(input_status<>"input complete -- results ready","Action required",IF(Missing_Cost,"Missing cost!",IF(cost_buildup_error,"Error in buildup!",direct_cost))) -> 38150.58621 | D24: Details | E24: =IF(input_status<>"input complete -- results ready",IF(input_complete,"Press Generate Results","Check INPUT sheet for errors"),IF(Missing_Cost,"A price is not available for at least one required component. See Use? column below.",IF(cost_buildup_error,"There is an Excel error in the price for at least one component. See Use? column below.",""))) -> 
B25: Add-on Cost | C25: =IF(input_status<>"input complete -- results ready","Action required",addon_cost) -> 19392.85599 | D25: Details
B26: Indirect Capital Cost | C26: =IF(input_status<>"input complete -- results ready","Action required",indirect_cost) -> 18587.78808 | D26: Details
B27: Total Capital Cost | C27: =IF(input_status<>"input complete -- results ready","Action required",IF(Missing_Cost,"Missing cost!",IF(cost_buildup_error,"Error in buildup!",system_cost))) -> 76131.23027 | D27: Details
B28: ="Annualized Capital Cost "&IF(OR(input_status<>"input complete -- results ready",Missing_Cost,cost_buildup_error),"","(per year over "&useful_life&" years at "&Discount_rate*100&"%)") -> Annualized Capital Cost (per year over 16.1 years at 7%) | C28: =IF(input_status<>"input complete -- results ready","Action required",Annualized_Capital_Cost) -> 8031.331689 | D28: Details
B29: Annual O&M Cost (per year) | C29: =IF(input_status<>"input complete -- results ready","Action required",OM_cost) -> 2987.309196 | D29: Details
B30: ="Total Annualized Cost (per year"&IF(OR(input_status<>"input complete -- results ready",ISERROR(OR(TAC_pct_cap,TAC_pct_OM))),"",", "&TEXT(TAC_pct_cap,"0%")&" capital, "&TEXT(TAC_pct_OM,"0%")&" O&M")&")" -> Total Annualized Cost (per year, 73% capital, 27% O&M) | C30: =IF(input_status<>"input complete -- results ready","Action required",IF(Missing_Cost,"Missing cost!",IF(cost_buildup_error,"Error in buildup!",Annualized_Cost))) -> 11018.64088 | D30: Details
B31: Annualized cost per 1,000 gallons average flow | C31: =IF(input_status<>"input complete -- results ready","Action required",IF(Missing_Cost,"Missing cost!",IF(cost_buildup_error,"Error in buildup!",C418))) -> 4.312579603
B32: Annualized cost per household per year | C32: =IF(input_status<>"input complete -- results ready","Action required",IF(Missing_Cost,"Missing cost!",IF(cost_buildup_error,"Error in buildup!",C419))) -> 434.5727196
A34: Direct Capital Cost Details (items in italics, without a 1 in the "Use?" column, represent alternate costs and are excluded from total)
A35: WBS # | B35: Item | C35: Design Quanitity | E35: Design Size | G35: Size used in estimate | I35: Unit Cost | J35: Total Cost | K35: Useful Life | L35: Use? | M35: Full Line Item Name | N35: Resulting priority selection (after considering whether this is a retrofit scenario) | W35: Include in Retrofit? | X35: Baseline priority selection | AG35: Useful Life
N36: Small (<1 mgd) | Q36: Medium (1-10 mgd) | T36: Large (>10 mgd) | X36: Small (<1 mgd) | AA36: Medium (1-10 mgd) | AD36: Large (>10 mgd)
N37: Low | O37: Mid | P37: High | Q37: Low | R37: Mid | S37: High | T37: Low | U37: Mid | V37: High | X37: Low | Y37: Mid | Z37: High | AA37: Low | AB37: Mid | AC37: High | AD37: Low | AE37: Mid | AF37: High | AG37: Count? | AH37: Depreciation
A38: 1. | B38: GAC Contactors
A39: 1.1 | B39: Pressure Vessels
A40: 1.1.1 | B40: Stainless Steel | C40: =final_num_tanks -> 2 | D40: units | E40: =comm_vol_gal -> 140.9946783 | F40: gal | G40: =IF(curve=1,comm_vol_gal,VLOOKUP(comm_vol_gal,ss_pv_cost_cl,2)) -> 140.9946783 | H40: gal | I40: =IF(C40=0,"NA",IF(curve=1,ss_pv_eq,VLOOKUP(comm_vol_gal,ss_pv_cost_cl,3))) -> 32375.23625 | J40: =IF(C40=0,"--",IF(I40="contact vendor","--",C40*I40)) -> 64750.47251 | K40: =IF(C40=0,"NA",VLOOKUP(comm_vol_gal,ss_pv_cost_cl,IF(ss_cat="large",4,5))) -> 30 | L40: 0 | M40: =$B$39&" - "&B40 -> Pressure Vessels - Stainless Steel | N40: =IF(retrofit=1,$W40*X40,IF(ISBLANK(X40),"",X40)) -> 4 | O40: 4 | P40: 1 | Q40: 4 | R40: 4 | S40: 1 | T40: 4 | U40: =IF(retrofit=1,$W40*AE40,IF(ISBLANK(AE40),"",AE40)) -> 4 | V40: 1 | W40: 0 | X40: 4 | Y40: 4 | Z40: 1 | AA40: 4 | AB40: 4 | AC40: 1 | AD40: 4 | AE40: 4 | AF40: 1 | AG40: =IF(ISERROR(K40*L40),0,IF(K40<1,0,L40)) -> 0 | AH40: =IF(AG40,J40/K40,0) -> 0
A41: 1.1.1 | B41: Carbon Steel - Stainless Internals | C41: =final_num_tanks -> 2 | D41: units | E41: =comm_vol_gal -> 140.9946783 | F41: gal | G41: =IF(curve=1,comm_vol_gal,VLOOKUP(comm_vol_gal,cs_pv_cost_cl,2)) -> 140.9946783 | H41: gal | I41: =IF(C41=0,"NA",IF(curve=1,cs_pv_eq,VLOOKUP(comm_vol_gal,cs_pv_cost_cl,3))) -> 15513.88377 | J41: =IF(C41=0,"--",IF(I41="contact vendor","--",C41*I41)) -> 31027.76755 | K41: =IF(C41=0,"NA",VLOOKUP(comm_vol_gal,cs_pv_cost_cl,IF(ss_cat="large",4,5))) -> 30 | L41: 0 | M41: =$B$39&" - "&B41 -> Pressure Vessels - Carbon Steel - Stainless Internals | N41: 3 | O41: 3 | P41: 2 | Q41: 3 | R41: 3 | S41: 2 | T41: 3 | U41: 3 | V41: 2 | W41: 0 | X41: 3 | Y41: 3 | Z41: 2 | AA41: 3 | AB41: 3 | AC41: 2 | AD41: 3 | AE41: 3 | AF41: 2 | AG41: 0 | AH41: 0
A42: 1.1.1 | B42: Carbon Steel - Plastic Internals | C42: =final_num_tanks -> 2 | D42: units | E42: =comm_vol_gal -> 140.9946783 | F42: gal | G42: =IF(curve=1,comm_vol_gal,VLOOKUP(comm_vol_gal,csp_pv_cost_cl,2)) -> 140.9946783 | H42: gal | I42: =IF(C42=0,"NA",IF(curve=1,csp_pv_eq,VLOOKUP(comm_vol_gal,csp_pv_cost_cl,3))) -> 14596.98667 | J42: =IF(C42=0,"--",IF(I42="contact vendor","--",C42*I42)) -> 29193.97333 | K42: =IF(C42=0,"NA",VLOOKUP(comm_vol_gal,csp_pv_cost_cl,IF(ss_cat="large",4,5))) -> 30 | L42: 0 | M42: =$B$39&" - "&B42 -> Pressure Vessels - Carbon Steel - Plastic Internals | N42: 2 | O42: 1 | P42: 3 | Q42: 2 | R42: 1 | S42: 3 | T42: 2 | U42: 1 | V42: 3 | W42: 0 | X42: 2 | Y42: 1 | Z42: 3 | AA42: 2 | AB42: 1 | AC42: 3 | AD42: 2 | AE42: 1 | AF42: 3 | AG42: 0 | AH42: 0
A43: 1.1.1 | B43: Fiberglass | C43: =final_num_tanks -> 2 | D43: units | E43: =comm_vol_gal -> 140.9946783 | F43: gal | G43: =IF(curve=1,comm_vol_gal,VLOOKUP(comm_vol_gal,fg_pv_cost_cl,2)) -> 140.9946783 | H43: gal | I43: =IF(C43=0,"NA",IF(curve=1,fg_pv_eq,VLOOKUP(comm_vol_gal,fg_pv_cost_cl,3))) -> 2969.601054 | J43: =IF(C43=0,"--",IF(I43="contact vendor","--",C43*I43)) -> 5939.202109 | K43: =IF(C43=0,"NA",VLOOKUP(comm_vol_gal,fg_pv_cost_cl,IF(ss_cat="large",4,5))) -> 20 | L43: 1 | M43: =$B$39&" - "&B43 -> Pressure Vessels - Fiberglass | N43: 1 | O43: 2 | P43: 4 | Q43: 1 | R43: 2 | S43: 4 | T43: 1 | U43: 2 | V43: 4 | W43: 0 | X43: 1 | Y43: 2 | Z43: 4 | AA43: 1 | AB43: 2 | AC43: 4 | AD43: 1 | AE43: 2 | AF43: 4 | AG43: 1 | AH43: 296.9601054
A44: 1.2 | B44: GAC Contact Basins | AG44: 0 | AH44: 0
A45: 1.2.1 | B45: Concrete | C45: =total_num_basins -> 0 | D45: units | E45: =IF(C45=0,"NA",basin_vol) -> NA | F45: =IF(C45=0,"","gal") ->  | G45: =IF(C45=0,"NA",basin_vol) -> NA | H45: =IF(C45=0,"","gal") ->  | I45: =IF(C45=0,"NA",basin_conc_vol/total_num_basins*VLOOKUP(0,conc_basin_cost_cl,3)) -> NA | J45: =IF(C45=0,"--",IF(I45="contact vendor","--",C45*I45)) -> -- | K45: =IF(C45=0,"NA",VLOOKUP(0,conc_basin_cost_cl,IF(ss_cat="large",4,5))) -> NA | M45: =$B$44&" - "&B45 -> GAC Contact Basins - Concrete | N45: =IF(retrofit=1,$W45*X45,IF(ISBLANK(X45),"",X45)) -> 1 | O45: 1 | P45: 1 | Q45: 1 | R45: 1 | S45: 1 | T45: 1 | U45: =IF(retrofit=1,$W45*AE45,IF(ISBLANK(AE45),"",AE45)) -> 1 | V45: =IF(retrofit=1,$W45*AF45,IF(ISBLANK(AF45),"",AF45)) -> 1 | W45: 0 | X45: 1 | Y45: 1 | Z45: 1 | AA45: 1 | AB45: 1 | AC45: 1 | AD45: 1 | AE45: 1 | AF45: 1 | AG45: 0 | AH45: 0
A46: 1.2.2 | B46: Internals (Underdrain/Backwash System) | C46: =total_num_basins -> 0 | D46: units | E46: =IF(C46=0,"NA",basin_area) -> NA | F46: =IF(C46=0,"","sf") ->  | G46: =IF(C46=0,"NA",basin_area) -> NA | H46: =IF(C46=0,"","sf") ->  | I46: =IF(C46=0,"NA",IF(cont_int_eq="contact vendor","contact vendor",J46/total_num_basins)) -> NA | J46: =IF(C46=0,"--",IF(cont_int_eq="contact vendor","--",cont_int_eq)) -> -- | K46: =IF(C46=0,"NA",VLOOKUP(0,cont_top_cost_cl,IF(ss_cat="large",4,5))) -> NA | M46: GAC Contact Basins - Internals (Underdrain/Backwash System) | N46: 1 | O46: 1 | P46: 1 | Q46: 1 | R46: 1 | S46: 1 | T46: 1 | U46: 1 | V46: 1 | W46: 0 | X46: 1 | Y46: 1 | Z46: 1 | AA46: 1 | AB46: 1 | AC46: 1 | AD46: 1 | AE46: 1 | AF46: 1 | AG46: 0 | AH46: 0
A47: 1.2.3 | B47: Aluminum Railing | C47: =IF(design_type=1,0,railing) -> 0 | D47: lf | E47: NA | G47: NA | I47: =IF(C47=0,"NA",VLOOKUP(B47,metal_cost_cl,3)) -> NA | J47: -- | K47: =IF(C47=0,"NA",VLOOKUP(B47,metal_cost_cl,IF(ss_cat="large",4,5))) -> NA | M47: GAC Contact Basins - Aluminum Railing | N47: 1 | O47: 1 | P47: 1 | Q47: 1 | R47: 1 | S47: 1 | T47: 1 | U47: 1 | V47: 1 | W47: 0 | X47: 1 | Y47: 1 | Z47: 1 | AA47: 1 | AB47: 1 | AC47: 1 | AD47: 1 | AE47: 1 | AF47: 1 | AG47: 0 | AH47: 0
A48: 1.2.4 | B48: Aluminum Stairs | C48: =IF(design_type=1,0,risers) -> 0 | D48: risers | E48: NA | G48: NA | I48: =IF(C48=0,"NA",VLOOKUP(B48,metal_cost_cl,3)) -> NA | J48: -- | K48: =IF(C48=0,"NA",VLOOKUP(B48,metal_cost_cl,IF(ss_cat="large",4,5))) -> NA | M48: GAC Contact Basins - Aluminum Stairs | N48: 1 | O48: 1 | P48: 1 | Q48: 1 | R48: 1 | S48: 1 | T48: 1 | U48: 1 | V48: 1 | W48: 0 | X48: 1 | Y48: 1 | Z48: 1 | AA48: 1 | AB48: 1 | AC48: 1 | AD48: 1 | AE48: 1 | AF48: 1 | AG48: 0 | AH48: 0
A49: 1.2.5 | B49: Excavation | C49: =IF(design_type=1,0,excavation_vol) -> 0 | D49: cy | E49: NA | G49: NA | I49: =IF(C49=0,"NA",VLOOKUP(0,excavate_cost_cl,3)) -> NA | J49: -- | K49: =IF(C49=0,"NA",VLOOKUP(0,conc_basin_cost_cl,IF(ss_cat="large",4,5))) -> NA | M49: GAC Contact Basins - Excavation | N49: 1 | O49: 1 | P49: 1 | Q49: 1 | R49: 1 | S49: 1 | T49: 1 | U49: 1 | V49: 1 | W49: 0 | X49: 1 | Y49: 1 | Z49: 1 | AA49: 1 | AB49: 1 | AC49: 1 | AD49: 1 | AE49: 1 | AF49: 1 | AG49: 0 | AH49: 0
A50: 1.2.6 | B50: Backfill and Compaction | C50: =IF(design_type=1,0,backfill_vol) -> 0 | D50: cy | E50: NA | G50: NA | I50: =IF(C50=0,"NA",VLOOKUP(0,backfill_cost_cl,3)) -> NA | J50: -- | K50: =IF(C50=0,"NA",VLOOKUP(0,conc_basin_cost_cl,IF(ss_cat="large",4,5))) -> NA | M50: GAC Contact Basins - Backfill and Compaction | N50: 1 | O50: 1 | P50: 1 | Q50: 1 | R50: 1 | S50: 1 | T50: 1 | U50: 1 | V50: 1 | W50: 0 | X50: 1 | Y50: 1 | Z50: 1 | AA50: 1 | AB50: 1 | AC50: 1 | AD50: 1 | AE50: 1 | AF50: 1 | AG50: 0 | AH50: 0
A51: 2. | B51: Tanks | AG51: 0 | AH51: 0
A52: 2.1 | B52: Backwash Tanks/Basins | AG52: 0 | AH52: 0
A53: 2.1.1 | B53: Concrete Basins (includes Excavation, Backfill, and Compaction) | C53: =IF(num_back_tanks=0,0,back_basins) -> 0 | D53: units | E53: =IF(back_basins=0,"NA",back_basin_vol) -> NA | F53: =IF(C53=0,"","gal") ->  | G53: =IF(back_basins=0,"NA",back_basin_vol) -> NA | H53: =IF(C53=0,"","gal") ->  | I53: =IF(back_basins=0,"NA",J53/back_basins) -> NA | J53: =IF(back_basins=0,"--",back_conc_vol*VLOOKUP(0,conc_basin_cost_cl,3)+back_excavation_vol*VLOOKUP(0,excavate_cost_cl,3)+back_backfill_vol*VLOOKUP(0,backfill_cost_cl,3)+back_railing*VLOOKUP("aluminum railing",metal_cost_cl,3)) -> -- | K53: =IF(back_basins=0,"NA",VLOOKUP(0,conc_basin_cost_cl,IF(ss_cat="large",4,5))) -> NA | M53: =$B$52&" - "&B53 -> Backwash Tanks/Basins - Concrete Basins (includes Excavation, Backfill, and Compaction) | N53: =IF(retrofit=1,$W53*X53,IF(ISBLANK(X53),"",X53)) -> 3 | O53: 3 | P53: 2 | Q53: 3 | R53: 3 | S53: 2 | T53: 3 | U53: =IF(retrofit=1,$W53*AE53,IF(ISBLANK(AE53),"",AE53)) -> 3 | V53: 2 | W53: 0 | X53: 3 | Y53: 3 | Z53: 2 | AA53: 3 | AB53: 3 | AC53: 2 | AD53: 3 | AE53: 3 | AF53: 2 | AG53: 0 | AH53: 0
A54: 2.1.1 | B54: Steel Tanks | C54: =num_back_tanks -> 0 | D54: units | E54: =IF(C54=0,"NA",back_tank_vol) -> NA | F54: =IF(C54=0,"","gal") ->  | G54: =IF(C54=0,"NA",IF(curve=1,back_tank_vol,VLOOKUP(back_tank_vol,st_bwt_cost_cl,2))) -> NA | H54: =IF(C54=0,"","gal") ->  | I54: =IF(C54=0,"NA",IF(curve=1,st_bwt_eq,VLOOKUP(back_tank_vol,st_bwt_cost_cl,3))) -> NA | J54: =IF(OR(C54=0,I54="contact vendor"),"--",C54*I54) -> -- | K54: =IF(C54=0,"NA",VLOOKUP(back_tank_vol,st_bwt_cost_cl,IF(ss_cat="large",4,5))) -> NA | M54: =$B$52&" - "&B54 -> Backwash Tanks/Basins - Steel Tanks | N54: 4 | O54: 4 | P54: 1 | Q54: 4 | R54: 4 | S54: 1 | T54: 4 | U54: 4 | V54: 1 | W54: 0 | X54: 4 | Y54: 4 | Z54: 1 | AA54: 4 | AB54: 4 | AC54: 1 | AD54: 4 | AE54: 4 | AF54: 1 | AG54: 0 | AH54: 0
A55: 2.1.1 | B55: Fiberglass Tanks | C55: =num_back_tanks -> 0 | D55: units | E55: =IF(C55=0,"NA",back_tank_vol) -> NA | F55: =IF(C55=0,"","gal") ->  | G55: =IF(C55=0,"NA",IF(curve=1,back_tank_vol,VLOOKUP(back_tank_vol,fg_bwt_cost_cl,2))) -> NA | H55: =IF(C55=0,"","gal") ->  | I55: =IF(C55=0,"NA",IF(curve=1,fg_bwt_eq,VLOOKUP(back_tank_vol,fg_bwt_cost_cl,3))) -> NA | J55: =IF(OR(C55=0,I55="contact vendor"),"--",C55*I55) -> -- | K55: =IF(C55=0,"NA",VLOOKUP(back_tank_vol,fg_bwt_cost_cl,IF(ss_cat="large",4,5))) -> NA | M55: =$B$52&" - "&B55 -> Backwash Tanks/Basins - Fiberglass Tanks | N55: 2 | O55: 1 | P55: 3 | Q55: 2 | R55: 1 | S55: 3 | T55: 2 | U55: 1 | V55: 3 | W55: 0 | X55: 2 | Y55: 1 | Z55: 3 | AA55: 2 | AB55: 1 | AC55: 3 | AD55: 2 | AE55: 1 | AF55: 3 | AG55: 0 | AH55: 0
A56: 2.1.1 | B56: Plastic/HDPE Tanks | C56: =num_back_tanks -> 0 | D56: units | E56: =IF(C56=0,"NA",back_tank_vol) -> NA | F56: =IF(C56=0,"","gal") ->  | G56: =IF(C56=0,"NA",IF(curve=1,back_tank_vol,VLOOKUP(back_tank_vol,hdpe_bwt_cost_cl,2))) -> NA | H56: =IF(C56=0,"","gal") ->  | I56: =IF(C56=0,"NA",IF(curve=1,hdpe_bwt_eq,VLOOKUP(back_tank_vol,hdpe_bwt_cost_cl,3))) -> NA | J56: =IF(OR(C56=0,I56="contact vendor"),"--",C56*I56) -> -- | K56: =IF(C56=0,"NA",VLOOKUP(back_tank_vol,hdpe_bwt_cost_cl,IF(ss_cat="large",4,5))) -> NA | M56: =$B$52&" - "&B56 -> Backwash Tanks/Basins - Plastic/HDPE Tanks | N56: 1 | O56: 2 | P56: 4 | Q56: 1 | R56: 2 | S56: 4 | T56: 1 | U56: 2 | V56: 4 | W56: 0 | X56: 1 | Y56: 2 | Z56: 4 | AA56: 1 | AB56: 2 | AC56: 4 | AD56: 1 | AE56: 2 | AF56: 4 | AG56: 0 | AH56: 0
A57: 2.2 | B57: Residuals Holding Tanks/Basins | AG57: 0 | AH57: 0
A58: 2.2.1 | B58: Concrete Basins (includes Excavation, Backfill, and Compaction) | C58: =hbasins -> 0 | D58: units | E58: =IF(hbasins=0,"NA",hbasin_vol) -> NA | F58: =IF(C58=0,"","gal") ->  | G58: =IF(hbasins=0,"NA",hbasin_vol) -> NA | H58: =IF(C58=0,"","gal") ->  | I58: =IF(hbasins=0,"NA",J58/hbasins) -> NA | J58: =IF(hbasins=0,"--",hconc_vol*VLOOKUP(0,conc_basin_cost_cl,3)+hexcavation_vol*VLOOKUP(0,excavate_cost_cl,3)+hbackfill_vol*VLOOKUP(0,backfill_cost_cl,3)+hrailing*VLOOKUP("aluminum railing",metal_cost_cl,3)) -> -- | K58: =IF(hbasins=0,"NA",VLOOKUP(0,conc_basin_cost_cl,IF(ss_cat="large",4,5))) -> NA | M58: =$B$57&" - "&B58 -> Residuals Holding Tanks/Basins - Concrete Basins (includes Excavation, Backfill, and Compaction) | N58: =IF(retrofit=1,$W58*X58,IF(ISBLANK(X58),"",X58)) -> 4 | O58: =IF(retrofit=1,$W58*Y58,IF(ISBLANK(Y58),"",Y58)) -> 4 | P58: =IF(retrofit=1,$W58*Z58,IF(ISBLANK(Z58),"",Z58)) -> 2 | Q58: =IF(retrofit=1,$W58*AA58,IF(ISBLANK(AA58),"",AA58)) -> 4 | R58: =IF(retrofit=1,$W58*AB58,IF(ISBLANK(AB58),"",AB58)) -> 4 | S58: =IF(retrofit=1,$W58*AC58,IF(ISBLANK(AC58),"",AC58)) -> 2 | T58: =IF(retrofit=1,$W58*AD58,IF(ISBLANK(AD58),"",AD58)) -> 4 | U58: =IF(retrofit=1,$W58*AE58,IF(ISBLANK(AE58),"",AE58)) -> 4 | V58: =IF(retrofit=1,$W58*AF58,IF(ISBLANK(AF58),"",AF58)) -> 2 | W58: 0 | X58: 4 | Y58: 4 | Z58: 2 | AA58: 4 | AB58: 4 | AC58: 2 | AD58: 4 | AE58: 4 | AF58: 2 | AG58: 0 | AH58: 0
A59: 2.2.1 | B59: Steel Tanks | C59: =htanks -> 0 | D59: units | E59: =IF(C59=0,"NA",htank_vol) -> NA | F59: =IF(C59=0,"","gal") ->  | G59: =IF(htanks=0,"NA",IF(curve=1,htank_vol,VLOOKUP(htank_vol,st_bwt_cost_cl,2))) -> NA | H59: =IF(C59=0,"","gal") ->  | I59: =IF(htanks=0,"NA",IF(curve=1,st_ht_eq,VLOOKUP(htank_vol,st_bwt_cost_cl,3))) -> NA | J59: =IF(OR(C59=0,I59="contact vendor"),"--",C59*I59) -> -- | K59: =IF(htanks=0,"NA",VLOOKUP(htank_vol,st_bwt_cost_cl,IF(ss_cat="large",4,5))) -> NA | M59: =$B$57&" - "&B59 -> Residuals Holding Tanks/Basins - Steel Tanks | N59: 3 | O59: 3 | P59: 1 | Q59: 3 | R59: 3 | S59: 1 | T59: 3 | U59: 3 | V59: 1 | W59: 0 | X59: 3 | Y59: 3 | Z59: 1 | AA59: 3 | AB59: 3 | AC59: 1 | AD59: 3 | AE59: 3 | AF59: 1 | AG59: 0 | AH59: 0
A60: 2.2.1 | B60: Fiberglass Tanks | C60: =htanks -> 0 | D60: units | E60: =IF(C60=0,"NA",htank_vol) -> NA | F60: =IF(C60=0,"","gal") ->  | G60: =IF(htanks=0,"NA",IF(curve=1,htank_vol,VLOOKUP(htank_vol,fg_bwt_cost_cl,2))) -> NA | H60: =IF(C60=0,"","gal") ->  | I60: =IF(htanks=0,"NA",IF(curve=1,fg_ht_eq,VLOOKUP(htank_vol,fg_bwt_cost_cl,3))) -> NA | J60: =IF(OR(C60=0,I60="contact vendor"),"--",C60*I60) -> -- | K60: =IF(htanks=0,"NA",VLOOKUP(htank_vol,fg_bwt_cost_cl,IF(ss_cat="large",4,5))) -> NA | M60: =$B$57&" - "&B60 -> Residuals Holding Tanks/Basins - Fiberglass Tanks | N60: =IF(retrofit=1,$W60*X60,IF(ISBLANK(X60),"",X60)) -> 2 | O60: 1 | P60: 3 | Q60: 2 | R60: 1 | S60: 3 | T60: 2 | U60: 1 | V60: 3 | W60: 0 | X60: 2 | Y60: 1 | Z60: 3 | AA60: 2 | AB60: 1 | AC60: 3 | AD60: 2 | AE60: 1 | AF60: 3 | AG60: 0 | AH60: 0
A61: 2.2.1 | B61: Plastic/HDPE Tanks | C61: =htanks -> 0 | D61: units | E61: =IF(C61=0,"NA",htank_vol) -> NA | F61: =IF(C61=0,"","gal") ->  | G61: =IF(htanks=0,"NA",IF(curve=1,htank_vol,VLOOKUP(htank_vol,hdpe_bwt_cost_cl,2))) -> NA | H61: =IF(C61=0,"","gal") ->  | I61: =IF(htanks=0,"NA",IF(curve=1,hdpe_ht_eq,VLOOKUP(htank_vol,hdpe_bwt_cost_cl,3))) -> NA | J61: =IF(OR(C59=0,I61="contact vendor"),"--",C61*I61) -> -- | K61: =IF(htanks=0,"NA",VLOOKUP(htank_vol,hdpe_bwt_cost_cl,IF(ss_cat="large",4,5))) -> NA | M61: =$B$57&" - "&B61 -> Residuals Holding Tanks/Basins - Plastic/HDPE Tanks | N61: =IF(retrofit=1,$W61*X61,IF(ISBLANK(X61),"",X61)) -> 1 | O61: 2 | P61: 4 | Q61: 1 | R61: 2 | S61: 4 | T61: 1 | U61: 2 | V61: 4 | W61: 0 | X61: 1 | Y61: 2 | Z61: 4 | AA61: 1 | AB61: 2 | AC61: 4 | AD61: 1 | AE61: 2 | AF61: 4 | AG61: 0 | AH61: 0
A62: 2.3 | B62: Ferric Chloride Storage Tanks | AG62: =IF(ISERROR(K62*L62),0,IF(K62<1,0,L62)) -> 0 | AH62: =IF(AG62,J62/K62,0) -> 0
A63: 2.3.1 | B63: Plastic/XLPE | C63: =coag_tanks -> 0 | D63: units | E63: =IF(C63=0,"NA",coag_tank_vol) -> NA | F63: =IF(C63=0,"","gal") ->  | G63: =IF(C63=0,"NA",IF(curve=1,coag_tank_vol,VLOOKUP(coag_tank_vol,pl_cst_cost_cl,2))) -> NA | H63: =IF(C63=0,"","gal") ->  | I63: =IF(C63=0,"NA",IF(curve=1,pl_coag_st_eq,VLOOKUP(coag_tank_vol,pl_cst_cost_cl,3))) -> NA | J63: =IF(OR(C63=0,I63="contact vendor"),"--",C63*I63) -> -- | K63: =IF(C63=0,"NA",VLOOKUP(coag_tank_vol,pl_cst_cost_cl,IF(ss_cat="large",4,5))) -> NA | M63: =$B$62&" - "&B63 -> Ferric Chloride Storage Tanks - Plastic/XLPE | N63: =IF(retrofit=1,$W63*X63,IF(ISBLANK(X63),"",X63)) -> 1 | O63: =IF(retrofit=1,$W63*Y63,IF(ISBLANK(Y63),"",Y63)) -> 2 | P63: =IF(retrofit=1,$W63*Z63,IF(ISBLANK(Z63),"",Z63)) -> 2 | Q63: =IF(retrofit=1,$W63*AA63,IF(ISBLANK(AA63),"",AA63)) -> 1 | R63: =IF(retrofit=1,$W63*AB63,IF(ISBLANK(AB63),"",AB63)) -> 2 | S63: =IF(retrofit=1,$W63*AC63,IF(ISBLANK(AC63),"",AC63)) -> 2 | T63: =IF(retrofit=1,$W63*AD63,IF(ISBLANK(AD63),"",AD63)) -> 1 | U63: =IF(retrofit=1,$W63*AE63,IF(ISBLANK(AE63),"",AE63)) -> 2 | V63: =IF(retrofit=1,$W63*AF63,IF(ISBLANK(AF63),"",AF63)) -> 2 | W63: 0 | X63: 1 | Y63: 2 | Z63: 2 | AA63: 1 | AB63: 2 | AC63: 2 | AD63: 1 | AE63: 2 | AF63: 2 | AG63: 0 | AH63: 0
A64: 2.3.1 | B64: Fiberglass | C64: =coag_tanks -> 0 | D64: units | E64: =IF(C64=0,"NA",coag_tank_vol) -> NA | F64: =IF(C64=0,"","gal") ->  | G64: =IF(C64=0,"NA",IF(curve=1,coag_tank_vol,VLOOKUP(coag_tank_vol,fg_cst_cost_cl,2))) -> NA | H64: =IF(C64=0,"","gal") ->  | I64: =IF(C64=0,"NA",IF(curve=1,fg_coag_st_eq,VLOOKUP(coag_tank_vol,fg_cst_cost_cl,3))) -> NA | J64: =IF(OR(C64=0,I64="contact vendor"),"--",C64*I64) -> -- | K64: =IF(C64=0,"NA",VLOOKUP(coag_tank_vol,fg_cst_cost_cl,IF(ss_cat="large",4,5))) -> NA | M64: =$B$62&" - "&B64 -> Ferric Chloride Storage Tanks - Fiberglass | N64: 2 | O64: 1 | P64: 1 | Q64: 2 | R64: 1 | S64: 1 | T64: 2 | U64: 1 | V64: 1 | W64: 0 | X64: 2 | Y64: 1 | Z64: 1 | AA64: 2 | AB64: 1 | AC64: 1 | AD64: 2 | AE64: 1 | AF64: 1 | AG64: 0 | AH64: 0
A65: 2.3.2 | B65: Secondary Containment - Concrete Curbing | C65: =IF(OR(include_sec_cont=0,coag_tanks=0),0,coag_curb_concrete) -> 0 | D65: cy | E65: NA | G65: NA | I65: =IF(C65=0,"NA",VLOOKUP(0,conc_basin_cost_cl,3)) -> NA | J65: =IF(C65=0,"--",IF(I65="contact vendor","--",C65*I65)) -> -- | K65: =IF(C65=0,"NA",VLOOKUP(0,conc_basin_cost_cl,IF(ss_cat="large",4,5))) -> NA | M65: =$B$62&" - "&B65 -> Ferric Chloride Storage Tanks - Secondary Containment - Concrete Curbing | N65: 1 | O65: 1 | P65: 1 | Q65: 1 | R65: 1 | S65: 1 | T65: 1 | U65: 1 | V65: =IF(retrofit=1,$W65*AF65,IF(ISBLANK(AF65),"",AF65)) -> 1 | W65: 0 | X65: 1 | Y65: 1 | Z65: 1 | AA65: 1 | AB65: 1 | AC65: 1 | AD65: 1 | AE65: 1 | AF65: 1 | AG65: =IF(ISERROR(K65*L65),0,IF(K65<1,0,L65)) -> 0 | AH65: =IF(AG65,J65/K65,0) -> 0
A66: 2.3.3 | B66: Secondary Containment - Chemical Resistant Coating | C66: =IF(OR(include_sec_cont=0,coag_tanks=0),0,coag_coating_gal) -> 0 | D66: gal | E66: NA | G66: NA | I66: =IF(C66=0,"NA",VLOOKUP(0,conc_coating_cost_cl,3)) -> NA | J66: -- | K66: =IF(C66=0,"NA",VLOOKUP(0,conc_coating_cost_cl,IF(ss_cat="large",4,5))) -> NA | M66: Ferric Chloride Storage Tanks - Secondary Containment - Chemical Resistant Coating | N66: 1 | O66: 1 | P66: 1 | Q66: 1 | R66: 1 | S66: 1 | T66: 1 | U66: 1 | V66: 1 | W66: 0 | X66: 1 | Y66: 1 | Z66: 1 | AA66: 1 | AB66: 1 | AC66: 1 | AD66: 1 | AE66: 1 | AF66: 1 | AG66: 0 | AH66: 0
A67: 2.4 | B67: Polymer Storage Tanks | AG67: 0 | AH67: 0
A68: 2.4.1 | B68: Plastic/XLPE | C68: =polymer_tanks -> 0 | D68: units | E68: =IF(C68=0,"NA",polymer_tank_vol) -> NA | F68: =IF(C68=0,"","gal") ->  | G68: =IF(C68=0,"NA",IF(curve=1,polymer_tank_vol,VLOOKUP(polymer_tank_vol,pl_cst_cost_cl,2))) -> NA | H68: =IF(C68=0,"","gal") ->  | I68: =IF(C68=0,"NA",IF(curve=1,pl_polymer_st_eq,VLOOKUP(polymer_tank_vol,pl_cst_cost_cl,3))) -> NA | J68: =IF(OR(C68=0,I68="contact vendor"),"--",C68*I68) -> -- | K68: =IF(C68=0,"NA",VLOOKUP(polymer_tank_vol,pl_cst_cost_cl,IF(ss_cat="large",4,5))) -> NA | M68: =$B$67&" - "&B68 -> Polymer Storage Tanks - Plastic/XLPE | N68: =IF(retrofit=1,$W68*X68,IF(ISBLANK(X68),"",X68)) -> 1 | O68: 2 | P68: 3 | Q68: 1 | R68: 2 | S68: 3 | T68: 1 | U68: 2 | V68: 3 | W68: 0 | X68: 1 | Y68: 2 | Z68: 3 | AA68: 1 | AB68: 2 | AC68: 3 | AD68: 1 | AE68: 2 | AF68: 3 | AG68: 0 | AH68: 0
A69: 2.4.1 | B69: Fiberglass | C69: =polymer_tanks -> 0 | D69: units | E69: =IF(C69=0,"NA",polymer_tank_vol) -> NA | F69: =IF(C69=0,"","gal") ->  | G69: =IF(C69=0,"NA",IF(curve=1,polymer_tank_vol,VLOOKUP(polymer_tank_vol,fg_cst_cost_cl,2))) -> NA | H69: =IF(C69=0,"","gal") ->  | I69: =IF(C69=0,"NA",IF(curve=1,fg_polymer_st_eq,VLOOKUP(polymer_tank_vol,fg_cst_cost_cl,3))) -> NA | J69: =IF(OR(C69=0,I69="contact vendor"),"--",C69*I69) -> -- | K69: =IF(C69=0,"NA",VLOOKUP(polymer_tank_vol,fg_cst_cost_cl,IF(ss_cat="large",4,5))) -> NA | M69: =$B$67&" - "&B69 -> Polymer Storage Tanks - Fiberglass | N69: 2 | O69: 1 | P69: 2 | Q69: 2 | R69: 1 | S69: 2 | T69: 2 | U69: 1 | V69: 2 | W69: 0 | X69: 2 | Y69: 1 | Z69: 2 | AA69: 2 | AB69: 1 | AC69: 2 | AD69: 2 | AE69: 1 | AF69: 2 | AG69: 0 | AH69: 0
A70: 2.4.1 | B70: Stainless Steel | C70: =polymer_tanks -> 0 | D70: units | E70: =IF(C70=0,"NA",polymer_tank_vol) -> NA | F70: =IF(C70=0,"","gal") ->  | G70: =IF(C70=0,"NA",IF(curve=1,polymer_tank_vol,VLOOKUP(polymer_tank_vol,ss_cst_cost_cl,2))) -> NA | H70: =IF(C70=0,"","gal") ->  | I70: =IF(C70=0,"NA",IF(curve=1,ss_polymer_st_eq,VLOOKUP(polymer_tank_vol,ss_cst_cost_cl,3))) -> NA | J70: =IF(OR(C70=0,I70="contact vendor"),"--",C70*I70) -> -- | K70: =IF(C70=0,"NA",VLOOKUP(polymer_tank_vol,ss_cst_cost_cl,IF(ss_cat="large",4,5))) -> NA | M70: =$B$67&" - "&B70 -> Polymer Storage Tanks - Stainless Steel | N70: =IF(retrofit=1,$W70*X70,IF(ISBLANK(X70),"",X70)) -> 3 | O70: 3 | P70: 1 | Q70: 3 | R70: 3 | S70: 1 | T70: 3 | U70: 3 | V70: 1 | W70: 0 | X70: 3 | Y70: 3 | Z70: 1 | AA70: 3 | AB70: 3 | AC70: 1 | AD70: 3 | AE70: 3 | AF70: 1 | AG70: 0 | AH70: 0
A71: 3. | B71: Piping | AG71: 0 | AH71: 0
A72: 3.1 | B72: Process Piping | AG72: 0 | AH72: 0
A73: 3.1.1 | B73: Ductile Iron | C73: =proc_pipe_length -> 20 | D73: lf | E73: =proc_pipe_diam -> 1.5 | F73: in. diam | G73: =IF(curve=1,proc_pipe_diam,VLOOKUP(proc_pipe_diam,di_pipe_cost_cl,2)) -> 1.5 | H73: in. diam | I73: =IF(curve=1,di_pipe_eq_proc,VLOOKUP(proc_pipe_diam,di_pipe_cost_cl,3)) -> contact vendor | J73: =IF(I73="contact vendor","--",C73*I73) -> -- | K73: =VLOOKUP(proc_pipe_diam,di_pipe_cost_cl,IF(ss_cat="large",4,5)) -> 35 | L73: 0 | M73: =$B$72&" - "&B73 -> Process Piping - Ductile Iron | N73: =IF(retrofit=1,$W73*X73,IF(ISBLANK(X73),"",X73)) -> 3 | O73: 3 | P73: 3 | Q73: 3 | R73: 3 | S73: 3 | T73: 3 | U73: =IF(retrofit=1,$W73*AE73,IF(ISBLANK(AE73),"",AE73)) -> 3 | V73: 3 | W73: 0 | X73: 3 | Y73: 3 | Z73: 3 | AA73: 3 | AB73: 3 | AC73: 3 | AD73: 3 | AE73: 3 | AF73: 3 | AG73: 0 | AH73: 0
A74: 3.1.1 | B74: CPVC | C74: =proc_pipe_length -> 20 | D74: lf | E74: =proc_pipe_diam -> 1.5 | F74: in. diam | G74: =IF(curve=1,proc_pipe_diam,VLOOKUP(proc_pipe_diam,cpvc_pipe_cost_cl,2)) -> 1.5 | H74: in. diam | I74: =IF(curve=1,cpvc_pipe_eq_proc,VLOOKUP(proc_pipe_diam,cpvc_pipe_cost_cl,3)) -> 7.013311728 | J74: =IF(I74="contact vendor","--",C74*I74) -> 140.2662346 | K74: =VLOOKUP(proc_pipe_diam,cpvc_pipe_cost_cl,IF(ss_cat="large",4,5)) -> 17 | L74: 0 | M74: =$B$72&" - "&B74 -> Process Piping - CPVC | N74: 2 | O74: 1 | P74: 4 | Q74: 2 | R74: 1 | S74: 4 | T74: 2 | U74: 1 | V74: 4 | W74: 0 | X74: 2 | Y74: 1 | Z74: 4 | AA74: 2 | AB74: 1 | AC74: 4 | AD74: 2 | AE74: 1 | AF74: 4 | AG74: 0 | AH74: 0
A75: 3.1.1 | B75: PVC | C75: =proc_pipe_length -> 20 | D75: lf | E75: =proc_pipe_diam -> 1.5 | F75: in. diam | G75: =IF(curve=1,proc_pipe_diam,VLOOKUP(proc_pipe_diam,pvc_pipe_cost_cl,2)) -> 1.5 | H75: in. diam | I75: =IF(curve=1,pvc_pipe_eq_proc,VLOOKUP(proc_pipe_diam,pvc_pipe_cost_cl,3)) -> 2.847676267 | J75: =IF(I75="contact vendor","--",C75*I75) -> 56.95352533 | K75: =VLOOKUP(proc_pipe_diam,pvc_pipe_cost_cl,IF(ss_cat="large",4,5)) -> 17 | L75: 1 | M75: =$B$72&" - "&B75 -> Process Piping - PVC | N75: 1 | O75: 2 | P75: 5 | Q75: 1 | R75: 2 | S75: 5 | T75: 1 | U75: 2 | V75: 5 | W75: 0 | X75: 1 | Y75: 2 | Z75: 5 | AA75: 1 | AB75: 2 | AC75: 5 | AD75: 1 | AE75: 2 | AF75: 5 | AG75: 1 | AH75: 3.350207373
A76: 3.1.1 | B76: Stainless Steel | C76: =proc_pipe_length -> 20 | D76: lf | E76: =proc_pipe_diam -> 1.5 | F76: in. diam | G76: =IF(curve=1,proc_pipe_diam,VLOOKUP(proc_pipe_diam,ss_pipe_cost_cl,2)) -> 1.5 | H76: in. diam | I76: =IF(curve=1,ss_pipe_eq_proc,VLOOKUP(proc_pipe_diam,ss_pipe_cost_cl,3)) -> 70.2752489 | J76: =IF(I76="contact vendor","--",C76*I76) -> 1405.504978 | K76: =VLOOKUP(proc_pipe_diam,ss_pipe_cost_cl,IF(ss_cat="large",4,5)) -> 40 | L76: 0 | M76: =$B$72&" - "&B76 -> Process Piping - Stainless Steel | N76: 5 | O76: 5 | P76: 1 | Q76: 5 | R76: 5 | S76: 1 | T76: 5 | U76: 5 | V76: 1 | W76: 0 | X76: 5 | Y76: 5 | Z76: 1 | AA76: 5 | AB76: 5 | AC76: 1 | AD76: 5 | AE76: 5 | AF76: 1 | AG76: 0 | AH76: 0
A77: 3.1.1 | B77: Steel | C77: =proc_pipe_length -> 20 | D77: lf | E77: =proc_pipe_diam -> 1.5 | F77: in. diam | G77: =IF(curve=1,proc_pipe_diam,VLOOKUP(proc_pipe_diam,st_pipe_cost_cl,2)) -> 1.5 | H77: in. diam | I77: =IF(curve=1,st_pipe_eq_proc,VLOOKUP(proc_pipe_diam,st_pipe_cost_cl,3)) -> 30.20656151 | J77: =IF(I77="contact vendor","--",C77*I77) -> 604.1312302 | K77: =VLOOKUP(proc_pipe_diam,st_pipe_cost_cl,IF(ss_cat="large",4,5)) -> 33 | L77: 0 | M77: =$B$72&" - "&B77 -> Process Piping - Steel | N77: 4 | O77: 4 | P77: 2 | Q77: 4 | R77: 4 | S77: 2 | T77: 4 | U77: 4 | V77: 2 | W77: 0 | X77: 4 | Y77: 4 | Z77: 2 | AA77: 4 | AB77: 4 | AC77: 2 | AD77: 4 | AE77: 4 | AF77: 2 | AG77: 0 | AH77: 0
A78: 3.2 | B78: Backwash Piping | AG78: 0 | AH78: 0
A79: 3.2.1 | B79: CPVC | C79: =back_pipe_length -> 25 | D79: lf | E79: =back_pipe_diam -> 2 | F79: in. diam | G79: =IF(curve=1,back_pipe_diam,VLOOKUP(back_pipe_diam,cpvc_pipe_cost_cl,2)) -> 2 | H79: in. diam | I79: =IF(curve=1,cpvc_pipe_eq_back,VLOOKUP(back_pipe_diam,cpvc_pipe_cost_cl,3)) -> 9.80088342 | J79: =IF(I79="contact vendor","--",C79*I79) -> 245.0220855 | K79: =VLOOKUP(back_pipe_diam,cpvc_pipe_cost_cl,IF(ss_cat="large",4,5)) -> 17 | L79: 0 | M79: =$B$78&" - "&B79 -> Backwash Piping - CPVC | N79: =IF(retrofit=1,$W79*X79,IF(ISBLANK(X79),"",X79)) -> 2 | O79: 1 | P79: 3 | Q79: 2 | R79: 1 | S79: 3 | T79: 2 | U79: =IF(retrofit=1,$W79*AE79,IF(ISBLANK(AE79),"",AE79)) -> 1 | V79: 3 | W79: 0 | X79: 2 | Y79: 1 | Z79: 3 | AA79: 2 | AB79: 1 | AC79: 3 | AD79: 2 | AE79: 1 | AF79: 3 | AG79: 0 | AH79: 0
A80: 3.2.1 | B80: PVC | C80: =back_pipe_length -> 25 | D80: lf | E80: =back_pipe_diam -> 2 | F80: in. diam | G80: =IF(curve=1,back_pipe_diam,VLOOKUP(back_pipe_diam,pvc_pipe_cost_cl,2)) -> 2 | H80: in. diam | I80: =IF(curve=1,pvc_pipe_eq_back,VLOOKUP(back_pipe_diam,pvc_pipe_cost_cl,3)) -> 3.418102201 | J80: =IF(I80="contact vendor","--",C80*I80) -> 85.45255502 | K80: =VLOOKUP(back_pipe_diam,pvc_pipe_cost_cl,IF(ss_cat="large",4,5)) -> 17 | L80: 1 | M80: =$B$78&" - "&B80 -> Backwash Piping - PVC | N80: 1 | O80: 2 | P80: 4 | Q80: 1 | R80: 2 | S80: 4 | T80: 1 | U80: 2 | V80: 4 | W80: 0 | X80: 1 | Y80: 2 | Z80: 4 | AA80: 1 | AB80: 2 | AC80: 4 | AD80: 1 | AE80: 2 | AF80: 4 | AG80: 1 | AH80: 5.026620884
A81: 3.2.1 | B81: Stainless Steel | C81: =back_pipe_length -> 25 | D81: lf | E81: =back_pipe_diam -> 2 | F81: in. diam | G81: =IF(curve=1,back_pipe_diam,VLOOKUP(back_pipe_diam,ss_pipe_cost_cl,2)) -> 2 | H81: in. diam | I81: =IF(curve=1,ss_pipe_eq_back,VLOOKUP(back_pipe_diam,ss_pipe_cost_cl,3)) -> 95.44119936 | J81: =IF(I81="contact vendor","--",C81*I81) -> 2386.029984 | K81: =VLOOKUP(back_pipe_diam,ss_pipe_cost_cl,IF(ss_cat="large",4,5)) -> 40 | L81: 0 | M81: =$B$78&" - "&B81 -> Backwash Piping - Stainless Steel | N81: 4 | O81: 4 | P81: 1 | Q81: 4 | R81: 4 | S81: 1 | T81: 4 | U81: 4 | V81: 1 | W81: 0 | X81: 4 | Y81: 4 | Z81: 1 | AA81: 4 | AB81: 4 | AC81: 1 | AD81: 4 | AE81: 4 | AF81: 1 | AG81: 0 | AH81: 0
A82: 3.2.1 | B82: Steel | C82: =back_pipe_length -> 25 | D82: lf | E82: =back_pipe_diam -> 2 | F82: in. diam | G82: =IF(curve=1,back_pipe_diam,VLOOKUP(back_pipe_diam,st_pipe_cost_cl,2)) -> 2 | H82: in. diam | I82: =IF(curve=1,st_pipe_eq_back,VLOOKUP(back_pipe_diam,st_pipe_cost_cl,3)) -> 39.40237895 | J82: =IF(I82="contact vendor","--",C82*I82) -> 985.0594738 | K82: =VLOOKUP(back_pipe_diam,st_pipe_cost_cl,IF(ss_cat="large",4,5)) -> 33 | L82: 0 | M82: =$B$78&" - "&B82 -> Backwash Piping - Steel | N82: 3 | O82: 3 | P82: 2 | Q82: 3 | R82: 3 | S82: 2 | T82: 3 | U82: 3 | V82: 2 | W82: 0 | X82: 3 | Y82: 3 | Z82: 2 | AA82: 3 | AB82: 3 | AC82: 2 | AD82: 3 | AE82: 3 | AF82: 2 | AG82: 0 | AH82: 0
A83: 3.3 | B83: Influent and Treated Water Piping | AG83: 0 | AH83: 0
A84: 3.3.1 | B84: Ductile Iron | C84: =in_out_pipe_length -> 20 | D84: lf | E84: =IF(C84=0,"NA",in_out_pipe_diam) -> 1.5 | F84: =IF(C84=0,"","in. diam") -> in. diam | G84: =IF(C84=0,"NA",IF(curve=1,in_out_pipe_diam,VLOOKUP(in_out_pipe_diam,di_pipe_cost_cl,2))) -> 1.5 | H84: =IF(C84=0,"","in. diam") -> in. diam | I84: =IF(C84=0,"NA",IF(curve=1,di_pipe_eq_in_out,VLOOKUP(in_out_pipe_diam,di_pipe_cost_cl,3))) -> contact vendor | J84: =IF(OR(C84=0,I84="contact vendor"),"--",C84*I84) -> -- | K84: =IF(C84=0,"NA",VLOOKUP(in_out_pipe_diam,di_pipe_cost_cl,IF(ss_cat="large",4,5))) -> 35 | L84: 0 | M84: =$B$83&" - "&B84 -> Influent and Treated Water Piping - Ductile Iron | N84: =IF(retrofit=1,$W84*X84,IF(ISBLANK(X84),"",X84)) -> 3 | O84: 3 | P84: 3 | Q84: 3 | R84: 3 | S84: 3 | T84: 3 | U84: =IF(retrofit=1,$W84*AE84,IF(ISBLANK(AE84),"",AE84)) -> 3 | V84: 3 | W84: 0 | X84: 3 | Y84: 3 | Z84: 3 | AA84: 3 | AB84: 3 | AC84: 3 | AD84: 3 | AE84: 3 | AF84: 3 | AG84: 0 | AH84: 0
A85: 3.3.1 | B85: CPVC | C85: =in_out_pipe_length -> 20 | D85: lf | E85: =IF(C85=0,"NA",in_out_pipe_diam) -> 1.5 | F85: =IF(C85=0,"","in. diam") -> in. diam | G85: =IF(C85=0,"NA",IF(curve=1,in_out_pipe_diam,VLOOKUP(in_out_pipe_diam,cpvc_pipe_cost_cl,2))) -> 1.5 | H85: =IF(C85=0,"","in. diam") -> in. diam | I85: =IF(C85=0,"NA",IF(curve=1,cpvc_pipe_eq_in_out,VLOOKUP(in_out_pipe_diam,cpvc_pipe_cost_cl,3))) -> 7.013311728 | J85: =IF(OR(C85=0,I85="contact vendor"),"--",C85*I85) -> 140.2662346 | K85: =IF(C85=0,"NA",VLOOKUP(in_out_pipe_diam,cpvc_pipe_cost_cl,IF(ss_cat="large",4,5))) -> 17 | L85: 0 | M85: =$B$83&" - "&B85 -> Influent and Treated Water Piping - CPVC | N85: 2 | O85: 1 | P85: 4 | Q85: 2 | R85: 1 | S85: 4 | T85: 2 | U85: 1 | V85: 4 | W85: 0 | X85: 2 | Y85: 1 | Z85: 4 | AA85: 2 | AB85: 1 | AC85: 4 | AD85: 2 | AE85: 1 | AF85: 4 | AG85: 0 | AH85: 0
A86: 3.3.1 | B86: PVC | C86: =in_out_pipe_length -> 20 | D86: lf | E86: =IF(C86=0,"NA",in_out_pipe_diam) -> 1.5 | F86: =IF(C86=0,"","in. diam") -> in. diam | G86: =IF(C86=0,"NA",IF(curve=1,in_out_pipe_diam,VLOOKUP(in_out_pipe_diam,pvc_pipe_cost_cl,2))) -> 1.5 | H86: =IF(C86=0,"","in. diam") -> in. diam | I86: =IF(C86=0,"NA",IF(curve=1,pvc_pipe_eq_in_out,VLOOKUP(in_out_pipe_diam,pvc_pipe_cost_cl,3))) -> 2.847676267 | J86: =IF(OR(C86=0,I86="contact vendor"),"--",C86*I86) -> 56.95352533 | K86: =IF(C86=0,"NA",VLOOKUP(in_out_pipe_diam,pvc_pipe_cost_cl,IF(ss_cat="large",4,5))) -> 17 | L86: 1 | M86: =$B$83&" - "&B86 -> Influent and Treated Water Piping - PVC | N86: 1 | O86: 2 | P86: 5 | Q86: 1 | R86: 2 | S86: 5 | T86: 1 | U86: 2 | V86: 5 | W86: 0 | X86: 1 | Y86: 2 | Z86: 5 | AA86: 1 | AB86: 2 | AC86: 5 | AD86: 1 | AE86: 2 | AF86: 5 | AG86: 1 | AH86: 3.350207373
A87: 3.3.1 | B87: Stainless Steel | C87: =in_out_pipe_length -> 20 | D87: lf | E87: =IF(C87=0,"NA",in_out_pipe_diam) -> 1.5 | F87: =IF(C87=0,"","in. diam") -> in. diam | G87: =IF(C87=0,"NA",IF(curve=1,in_out_pipe_diam,VLOOKUP(in_out_pipe_diam,ss_pipe_cost_cl,2))) -> 1.5 | H87: =IF(C87=0,"","in. diam") -> in. diam | I87: =IF(C87=0,"NA",IF(curve=1,ss_pipe_eq_in_out,VLOOKUP(in_out_pipe_diam,ss_pipe_cost_cl,3))) -> 70.2752489 | J87: =IF(OR(C87=0,I87="contact vendor"),"--",C87*I87) -> 1405.504978 | K87: =IF(C87=0,"NA",VLOOKUP(in_out_pipe_diam,ss_pipe_cost_cl,IF(ss_cat="large",4,5))) -> 40 | L87: 0 | M87: =$B$83&" - "&B87 -> Influent and Treated Water Piping - Stainless Steel | N87: 5 | O87: 5 | P87: 1 | Q87: 5 | R87: 5 | S87: 1 | T87: 5 | U87: 5 | V87: 1 | W87: 0 | X87: 5 | Y87: 5 | Z87: 1 | AA87: 5 | AB87: 5 | AC87: 1 | AD87: 5 | AE87: 5 | AF87: 1 | AG87: 0 | AH87: 0
A88: 3.3.1 | B88: Steel | C88: =in_out_pipe_length -> 20 | D88: lf | E88: =IF(C88=0,"NA",in_out_pipe_diam) -> 1.5 | F88: =IF(C88=0,"","in. diam") -> in. diam | G88: =IF(C88=0,"NA",IF(curve=1,in_out_pipe_diam,VLOOKUP(in_out_pipe_diam,st_pipe_cost_cl,2))) -> 1.5 | H88: =IF(C88=0,"","in. diam") -> in. diam | I88: =IF(C88=0,"NA",IF(curve=1,st_pipe_eq_in_out,VLOOKUP(in_out_pipe_diam,st_pipe_cost_cl,3))) -> 30.20656151 | J88: =IF(OR(C88=0,I88="contact vendor"),"--",C88*I88) -> 604.1312302 | K88: =IF(C88=0,"NA",VLOOKUP(in_out_pipe_diam,st_pipe_cost_cl,IF(ss_cat="large",4,5))) -> 33 | L88: 0 | M88: =$B$83&" - "&B88 -> Influent and Treated Water Piping - Steel | N88: 4 | O88: 4 | P88: 2 | Q88: 4 | R88: 4 | S88: 2 | T88: 4 | U88: 4 | V88: 2 | W88: 0 | X88: 4 | Y88: 4 | Z88: 2 | AA88: 4 | AB88: 4 | AC88: 2 | AD88: 4 | AE88: 4 | AF88: 2 | AG88: 0 | AH88: 0
A89: 3.4 | B89: Residuals Piping | AG89: 0 | AH89: 0
A90: 3.4.1 | B90: CPVC | C90: =res_pipe_length -> 50 | D90: lf | E90: =res_pipe_diam -> 2 | F90: in. diam | G90: =IF(curve=1,res_pipe_diam,VLOOKUP(res_pipe_diam,cpvc_pipe_cost_cl,2)) -> 2 | H90: in. diam | I90: =IF(curve=1,cpvc_pipe_eq_res,VLOOKUP(res_pipe_diam,cpvc_pipe_cost_cl,3)) -> 9.80088342 | J90: =IF(I90="contact vendor","--",C90*I90) -> 490.044171 | K90: =VLOOKUP(res_pipe_diam,cpvc_pipe_cost_cl,IF(ss_cat="large",4,5)) -> 17 | L90: 0 | M90: =$B$89&" - "&B90 -> Residuals Piping - CPVC | N90: =IF(retrofit=1,$W90*X90,IF(ISBLANK(X90),"",X90)) -> 2 | O90: 1 | P90: 3 | Q90: 2 | R90: 1 | S90: 3 | T90: 2 | U90: =IF(retrofit=1,$W90*AE90,IF(ISBLANK(AE90),"",AE90)) -> 1 | V90: =IF(retrofit=1,$W90*AF90,IF(ISBLANK(AF90),"",AF90)) -> 3 | W90: 0 | X90: 2 | Y90: 1 | Z90: 3 | AA90: 2 | AB90: 1 | AC90: 3 | AD90: 2 | AE90: 1 | AF90: 3 | AG90: 0 | AH90: 0
A91: 3.4.1 | B91: PVC | C91: =res_pipe_length -> 50 | D91: lf | E91: =res_pipe_diam -> 2 | F91: in. diam | G91: =IF(curve=1,res_pipe_diam,VLOOKUP(res_pipe_diam,pvc_pipe_cost_cl,2)) -> 2 | H91: in. diam | I91: =IF(curve=1,pvc_pipe_eq_res,VLOOKUP(res_pipe_diam,pvc_pipe_cost_cl,3)) -> 3.418102201 | J91: =IF(I91="contact vendor","--",C91*I91) -> 170.90511 | K91: =VLOOKUP(res_pipe_diam,pvc_pipe_cost_cl,IF(ss_cat="large",4,5)) -> 17 | L91: 1 | M91: Residuals Piping - PVC | N91: 1 | O91: 2 | P91: 4 | Q91: 1 | R91: 2 | S91: 4 | T91: 1 | U91: 2 | V91: 4 | W91: 0 | X91: 1 | Y91: 2 | Z91: 4 | AA91: 1 | AB91: 2 | AC91: 4 | AD91: 1 | AE91: 2 | AF91: 4 | AG91: 1 | AH91: 10.05324177
A92: 3.4.1 | B92: Stainless Steel | C92: =res_pipe_length -> 50 | D92: lf | E92: =res_pipe_diam -> 2 | F92: in. diam | G92: =IF(curve=1,res_pipe_diam,VLOOKUP(res_pipe_diam,ss_pipe_cost_cl,2)) -> 2 | H92: in. diam | I92: =IF(curve=1,ss_pipe_eq_res,VLOOKUP(res_pipe_diam,ss_pipe_cost_cl,3)) -> 95.44119936 | J92: =IF(I92="contact vendor","--",C92*I92) -> 4772.059968 | K92: =VLOOKUP(res_pipe_diam,ss_pipe_cost_cl,IF(ss_cat="large",4,5)) -> 40 | L92: 0 | M92: Residuals Piping - Stainless Steel | N92: 4 | O92: 4 | P92: 1 | Q92: 4 | R92: 4 | S92: 1 | T92: 4 | U92: 4 | V92: 1 | W92: 0 | X92: 4 | Y92: 4 | Z92: 1 | AA92: 4 | AB92: 4 | AC92: 1 | AD92: 4 | AE92: 4 | AF92: 1 | AG92: 0 | AH92: 0
A93: 3.4.1 | B93: Steel | C93: =res_pipe_length -> 50 | D93: lf | E93: =res_pipe_diam -> 2 | F93: in. diam | G93: =IF(curve=1,res_pipe_diam,VLOOKUP(res_pipe_diam,st_pipe_cost_cl,2)) -> 2 | H93: in. diam | I93: =IF(curve=1,st_pipe_eq_res,VLOOKUP(res_pipe_diam,st_pipe_cost_cl,3)) -> 39.40237895 | J93: =IF(I93="contact vendor","--",C93*I93) -> 1970.118948 | K93: =VLOOKUP(res_pipe_diam,st_pipe_cost_cl,IF(ss_cat="large",4,5)) -> 33 | L93: 0 | M93: Residuals Piping - Steel | N93: 3 | O93: 3 | P93: 2 | Q93: 3 | R93: 3 | S93: 2 | T93: 3 | U93: 3 | V93: 2 | W93: 0 | X93: 3 | Y93: 3 | Z93: 2 | AA93: 3 | AB93: 3 | AC93: 2 | AD93: 3 | AE93: 3 | AF93: 2 | AG93: 0 | AH93: 0
A94: 3.4.2 | B94: Excavation | C94: =res_trench_vol -> 34.23410109 | D94: cy | E94: NA | G94: NA | I94: =IF(C94=0,"NA",VLOOKUP(0,excavate_cost_cl,3)) -> 30.88 | J94: =IF(OR(I94="contact vendor",C94=0),"--",C94*I94) -> 1057.149042 | K94: =IF(I94="NA","N/A",IF(L90=1,K90,IF(L91=1,K91,IF(L92=1,K92,IF(L93=1,K93,"N/A"))))) -> 17 | L94: 1 | M94: Residuals Piping - Excavation | N94: 1 | O94: 1 | P94: 1 | Q94: 1 | R94: 1 | S94: 1 | T94: 1 | U94: 1 | V94: 1 | W94: 0 | X94: 1 | Y94: 1 | Z94: 1 | AA94: 1 | AB94: 1 | AC94: 1 | AD94: 1 | AE94: 1 | AF94: 1 | AG94: 1 | AH94: 62.18523775
A95: 3.4.3 | B95: Bedding | C95: =res_pipe_bedding_vol -> 1.083517568 | D95: cy | E95: NA | G95: NA | I95: =IF(C95=0,"NA",VLOOKUP(0,bedding_cost_cl,3)) -> 45.35 | J95: =IF(OR(I95="contact vendor",C95=0),"--",C95*I95) -> 49.13752169 | K95: =IF(I95="NA","N/A",IF(L90=1,K90,IF(L91=1,K91,IF(L92=1,K92,IF(L93=1,K93,"N/A"))))) -> 17 | L95: 1 | M95: Residuals Piping - Bedding | N95: 1 | O95: 1 | P95: 1 | Q95: 1 | R95: 1 | S95: 1 | T95: 1 | U95: 1 | V95: 1 | W95: 0 | X95: 1 | Y95: 1 | Z95: 1 | AA95: 1 | AB95: 1 | AC95: 1 | AD95: 1 | AE95: 1 | AF95: 1 | AG95: 1 | AH95: 2.890442453
A96: 3.4.5 | B96: Backfill and Compaction | C96: =res_trench_vol -> 34.23410109 | D96: cy | E96: NA | G96: NA | I96: =IF(C96=0,"NA",VLOOKUP(0,backfill_cost_cl,3)) -> 18.65 | J96: =IF(OR(I96="contact vendor",C96=0),"--",C96*I96) -> 638.4659854 | K96: =IF(I96="NA","N/A",IF(L90=1,K90,IF(L91=1,K91,IF(L92=1,K92,IF(L93=1,K93,"N/A"))))) -> 17 | L96: 1 | M96: Residuals Piping - Backfill and Compaction | N96: 1 | O96: 1 | P96: 1 | Q96: 1 | R96: 1 | S96: 1 | T96: 1 | U96: 1 | V96: 1 | W96: 0 | X96: 1 | Y96: 1 | Z96: 1 | AA96: 1 | AB96: 1 | AC96: 1 | AD96: 1 | AE96: 1 | AF96: 1 | AG96: 1 | AH96: 37.55682267
A97: 3.4.6 | B97: Thrust Blocks | C97: =res_block_vol -> 0.1600270197 | D97: cy | E97: NA | G97: NA | I97: =IF(C97=0,"NA",VLOOKUP(0,conc_basin_cost_cl,3)) -> 739.6055887 | J97: =IF(OR(I97="contact vendor",C97=0),"--",C97*I97) -> 118.3568781 | K97: =IF(I97="NA","N/A",IF(L90=1,K90,IF(L91=1,K91,IF(L92=1,K92,IF(L93=1,K93,"N/A"))))) -> 17 | L97: 1 | M97: Residuals Piping - Thrust Blocks | N97: 1 | O97: 1 | P97: 1 | Q97: 1 | R97: 1 | S97: 1 | T97: 1 | U97: 1 | V97: 1 | W97: 0 | X97: 1 | Y97: 1 | Z97: 1 | AA97: 1 | AB97: 1 | AC97: 1 | AD97: 1 | AE97: 1 | AF97: 1 | AG97: 1 | AH97: 6.9621693
A98: 3.5 | B98: Ferric Chloride Piping | N98: =IF(retrofit=1,$W98*X98,IF(ISBLANK(X98),"",X98)) ->  | O98: =IF(retrofit=1,$W98*Y98,IF(ISBLANK(Y98),"",Y98)) ->  | P98: =IF(retrofit=1,$W98*Z98,IF(ISBLANK(Z98),"",Z98)) ->  | Q98: =IF(retrofit=1,$W98*AA98,IF(ISBLANK(AA98),"",AA98)) ->  | R98: =IF(retrofit=1,$W98*AB98,IF(ISBLANK(AB98),"",AB98)) ->  | S98: =IF(retrofit=1,$W98*AC98,IF(ISBLANK(AC98),"",AC98)) ->  | T98: =IF(retrofit=1,$W98*AD98,IF(ISBLANK(AD98),"",AD98)) ->  | U98: =IF(retrofit=1,$W98*AE98,IF(ISBLANK(AE98),"",AE98)) ->  | V98: =IF(retrofit=1,$W98*AF98,IF(ISBLANK(AF98),"",AF98)) ->  | AG98: =IF(ISERROR(K98*L98),0,IF(K98<1,0,L98)) -> 0 | AH98: =IF(AG98,J98/K98,0) -> 0
A99: 3.5.1 | B99: CPVC | C99: =coag_pipe_length -> 0 | D99: lf | E99: =IF(C99=0,"NA",coag_pipe_diam) -> NA | F99: =IF(C99=0,"","in diam") ->  | G99: =IF(C99=0,"NA",IF(curve=1,coag_pipe_diam,VLOOKUP(coag_pipe_diam,cpvc_pipe_cost_cl,2))) -> NA | H99: =IF(C99=0,"","in diam") ->  | I99: =IF(C99=0,"NA",IF(curve=1,cpvc_pipe_eq_coag,VLOOKUP(coag_pipe_diam,cpvc_pipe_cost_cl,3))) -> NA | J99: =IF(OR(C99=0,I99="contact vendor"),"--",C99*I99) -> -- | K99: =IF(C99=0,"NA",VLOOKUP(coag_pipe_diam,cpvc_pipe_cost_cl,IF(ss_cat="large",4,5))) -> NA | M99: =$B$71&" - "&$B$98&" - "&B99 -> Piping - Ferric Chloride Piping - CPVC | N99: 2 | O99: 1 | P99: 1 | Q99: 2 | R99: 1 | S99: 1 | T99: 2 | U99: 1 | V99: 1 | W99: 0 | X99: 2 | Y99: 1 | Z99: 1 | AA99: 2 | AB99: 1 | AC99: 1 | AD99: 2 | AE99: 1 | AF99: 1 | AG99: 0 | AH99: 0
A100: 3.5.1 | B100: PVC | C100: =coag_pipe_length -> 0 | D100: lf | E100: =IF(C100=0,"NA",coag_pipe_diam) -> NA | F100: =IF(C100=0,"","in diam") ->  | G100: =IF(C100=0,"NA",IF(curve=1,coag_pipe_diam,VLOOKUP(coag_pipe_diam,pvc_pipe_cost_cl,2))) -> NA | H100: =IF(C100=0,"","in diam") ->  | I100: =IF(C100=0,"NA",IF(curve=1,pvc_pipe_eq_coag,VLOOKUP(coag_pipe_diam,pvc_pipe_cost_cl,3))) -> NA | J100: =IF(OR(C100=0,I100="contact vendor"),"--",C100*I100) -> -- | K100: =IF(C100=0,"NA",VLOOKUP(coag_pipe_diam,pvc_pipe_cost_cl,IF(ss_cat="large",4,5))) -> NA | M100: =$B$71&" - "&$B$98&" - "&B100 -> Piping - Ferric Chloride Piping - PVC | N100: 1 | O100: 2 | P100: 2 | Q100: 1 | R100: 2 | S100: 2 | T100: 1 | U100: 2 | V100: 2 | W100: 0 | X100: 1 | Y100: 2 | Z100: 2 | AA100: 1 | AB100: 2 | AC100: 2 | AD100: 1 | AE100: 2 | AF100: 2 | AG100: 0 | AH100: 0
A101: 3.6 | B101: Polymer Piping | AG101: 0 | AH101: 0
A102: 3.6.1 | B102: CPVC | C102: =polymer_pipe_length -> 0 | D102: lf | E102: =IF(C102=0,"NA",polymer_pipe_diam) -> NA | F102: =IF(C102=0,"","in diam") ->  | G102: =IF(C102=0,"NA",IF(curve=1,polymer_pipe_diam,VLOOKUP(polymer_pipe_diam,cpvc_pipe_cost_cl,2))) -> NA | H102: =IF(C102=0,"","in diam") ->  | I102: =IF(C102=0,"NA",IF(curve=1,cpvc_pipe_eq_polymer,VLOOKUP(polymer_pipe_diam,cpvc_pipe_cost_cl,3))) -> NA | J102: =IF(OR(C102=0,I102="contact vendor"),"--",C102*I102) -> -- | K102: =IF(C102=0,"NA",VLOOKUP(polymer_pipe_diam,cpvc_pipe_cost_cl,IF(ss_cat="large",4,5))) -> NA | M102: =$B$71&" - "&$B$101&" - "&B102 -> Piping - Polymer Piping - CPVC | N102: 2 | O102: 1 | P102: 3 | Q102: 2 | R102: 1 | S102: 3 | T102: 2 | U102: 1 | V102: 3 | W102: 0 | X102: 2 | Y102: 1 | Z102: 3 | AA102: 2 | AB102: 1 | AC102: 3 | AD102: 2 | AE102: 1 | AF102: 3 | AG102: 0 | AH102: 0
A103: 3.6.1 | B103: PVC | C103: =polymer_pipe_length -> 0 | D103: lf | E103: =IF(C103=0,"NA",polymer_pipe_diam) -> NA | F103: =IF(C103=0,"","in diam") ->  | G103: =IF(C103=0,"NA",IF(curve=1,polymer_pipe_diam,VLOOKUP(polymer_pipe_diam,pvc_pipe_cost_cl,2))) -> NA | H103: =IF(C103=0,"","in diam") ->  | I103: =IF(C103=0,"NA",IF(curve=1,pvc_pipe_eq_polymer,VLOOKUP(polymer_pipe_diam,pvc_pipe_cost_cl,3))) -> NA | J103: =IF(OR(C103=0,I103="contact vendor"),"--",C103*I103) -> -- | K103: =IF(C103=0,"NA",VLOOKUP(polymer_pipe_diam,pvc_pipe_cost_cl,IF(ss_cat="large",4,5))) -> NA | M103: =$B$71&" - "&$B$101&" - "&B103 -> Piping - Polymer Piping - PVC | N103: 1 | O103: 2 | P103: 4 | Q103: 1 | R103: 2 | S103: 4 | T103: 1 | U103: 2 | V103: 4 | W103: 0 | X103: 1 | Y103: 2 | Z103: 4 | AA103: 1 | AB103: 2 | AC103: 4 | AD103: 1 | AE103: 2 | AF103: 4 | AG103: 0 | AH103: 0
A104: 3.6.1 | B104: Stainless Steel | C104: =polymer_pipe_length -> 0 | D104: lf | E104: =IF(C104=0,"NA",polymer_pipe_diam) -> NA | F104: =IF(C104=0,"","in diam") ->  | G104: =IF(C104=0,"NA",IF(curve=1,polymer_pipe_diam,VLOOKUP(polymer_pipe_diam,ss_pipe_cost_cl,2))) -> NA | H104: =IF(C104=0,"","in diam") ->  | I104: =IF(C104=0,"NA",IF(curve=1,ss_pipe_eq_polymer,VLOOKUP(polymer_pipe_diam,ss_pipe_cost_cl,3))) -> NA | J104: =IF(OR(C104=0,I104="contact vendor"),"--",C104*I104) -> -- | K104: =IF(C104=0,"NA",VLOOKUP(polymer_pipe_diam,ss_pipe_cost_cl,IF(ss_cat="large",4,5))) -> NA | M104: =$B$71&" - "&$B$101&" - "&B104 -> Piping - Polymer Piping - Stainless Steel | N104: 4 | O104: 4 | P104: 1 | Q104: 4 | R104: 4 | S104: 1 | T104: 4 | U104: 4 | V104: 1 | W104: 0 | X104: 4 | Y104: 4 | Z104: 1 | AA104: 4 | AB104: 4 | AC104: 1 | AD104: 4 | AE104: 4 | AF104: 1 | AG104: 0 | AH104: 0
A105: 3.6.1 | B105: Steel | C105: =polymer_pipe_length -> 0 | D105: lf | E105: =IF(C105=0,"NA",polymer_pipe_diam) -> NA | F105: =IF(C105=0,"","in diam") ->  | G105: =IF(C105=0,"NA",IF(curve=1,polymer_pipe_diam,VLOOKUP(polymer_pipe_diam,st_pipe_cost_cl,2))) -> NA | H105: =IF(C105=0,"","in diam") ->  | I105: =IF(C105=0,"NA",IF(curve=1,st_pipe_eq_polymer,VLOOKUP(polymer_pipe_diam,st_pipe_cost_cl,3))) -> NA | J105: =IF(OR(C105=0,I105="contact vendor"),"--",C105*I105) -> -- | K105: =IF(C105=0,"NA",VLOOKUP(polymer_pipe_diam,st_pipe_cost_cl,IF(ss_cat="large",4,5))) -> NA | M105: =$B$71&" - "&$B$101&" - "&B105 -> Piping - Polymer Piping - Steel | N105: 3 | O105: 3 | P105: 2 | Q105: 3 | R105: 3 | S105: 2 | T105: 3 | U105: 3 | V105: 2 | W105: 0 | X105: 3 | Y105: 3 | Z105: 2 | AA105: 3 | AB105: 3 | AC105: 2 | AD105: 3 | AE105: 3 | AF105: 2 | AG105: 0 | AH105: 0
A106: 3.7 | B106: Bypass Piping | AG106: 0 | AH106: 0
A107: 3.7.1 | B107: CPVC | C107: =bp_pipe_length -> 0 | D107: lf | E107: =IF(bp_pct>0,bp_pipe_diam,"NA") -> NA | F107: =IF(bp_pct=0," ","in. diam") ->  | G107: =IF(bp_pct=0,"NA",IF(curve=1,bp_pipe_diam,VLOOKUP(bp_pipe_diam,cpvc_pipe_cost_cl,2))) -> NA | H107: =IF(bp_pct=0," ","in. diam") ->  | I107: =IF(bp_pct=0,"NA",IF(curve=1,cpvc_pipe_eq_bp,VLOOKUP(bp_pipe_diam,cpvc_pipe_cost_cl,3))) -> NA | J107: =IF(OR(C107=0,I107="contact vendor"),"--",C107*I107) -> -- | K107: =IF(C107=0,"NA",VLOOKUP(E107,cpvc_pipe_cost_cl,IF(ss_cat="large",4,5))) -> NA | M107: =$B$106&" - "&B107 -> Bypass Piping - CPVC | N107: =IF(retrofit=1,$W107*X107,IF(ISBLANK(X107),"",X107)) -> 2 | O107: 1 | P107: 3 | Q107: 2 | R107: 1 | S107: 3 | T107: 2 | U107: =IF(retrofit=1,$W107*AE107,IF(ISBLANK(AE107),"",AE107)) -> 1 | V107: 3 | W107: 0 | X107: 2 | Y107: 1 | Z107: 3 | AA107: 2 | AB107: 1 | AC107: 3 | AD107: 2 | AE107: 1 | AF107: 3 | AG107: 0 | AH107: 0
A108: 3.7.1 | B108: PVC | C108: =bp_pipe_length -> 0 | D108: lf | E108: =IF(bp_pct>0,bp_pipe_diam,"NA") -> NA | F108: =IF(bp_pct=0," ","in. diam") ->  | G108: =IF(bp_pct=0,"NA",IF(curve=1,bp_pipe_diam,VLOOKUP(bp_pipe_diam,pvc_pipe_cost_cl,2))) -> NA | H108: =IF(bp_pct=0," ","in. diam") ->  | I108: =IF(bp_pct=0,"NA",IF(curve=1,pvc_pipe_eq_bp,VLOOKUP(bp_pipe_diam,pvc_pipe_cost_cl,3))) -> NA | J108: -- | K108: =IF(C108=0,"NA",VLOOKUP(E108,pvc_pipe_cost_cl,IF(ss_cat="large",4,5))) -> NA | M108: =$B$106&" - "&B108 -> Bypass Piping - PVC | N108: 1 | O108: 2 | P108: 4 | Q108: 1 | R108: 2 | S108: 4 | T108: 1 | U108: 2 | V108: 4 | W108: 0 | X108: 1 | Y108: 2 | Z108: 4 | AA108: 1 | AB108: 2 | AC108: 4 | AD108: 1 | AE108: 2 | AF108: 4 | AG108: 0 | AH108: 0
A109: 3.7.1 | B109: Stainless Steel | C109: =bp_pipe_length -> 0 | D109: lf | E109: =IF(bp_pct>0,bp_pipe_diam,"NA") -> NA | F109: =IF(bp_pct=0," ","in. diam") ->  | G109: =IF(bp_pct=0,"NA",IF(curve=1,bp_pipe_diam,VLOOKUP(bp_pipe_diam,ss_pipe_cost_cl,2))) -> NA | H109: =IF(bp_pct=0," ","in. diam") ->  | I109: =IF(bp_pct=0,"NA",IF(curve=1,ss_pipe_eq_bp,VLOOKUP(bp_pipe_diam,ss_pipe_cost_cl,3))) -> NA | J109: -- | K109: =IF(C109=0,"NA",VLOOKUP(E109,ss_pipe_cost_cl,IF(ss_cat="large",4,5))) -> NA | M109: =$B$106&" - "&B109 -> Bypass Piping - Stainless Steel | N109: 4 | O109: 4 | P109: 1 | Q109: 4 | R109: 4 | S109: 1 | T109: 4 | U109: 4 | V109: 1 | W109: 0 | X109: 4 | Y109: 4 | Z109: 1 | AA109: 4 | AB109: 4 | AC109: 1 | AD109: 4 | AE109: 4 | AF109: 1 | AG109: 0 | AH109: 0
A110: 3.7.1 | B110: Steel | C110: =bp_pipe_length -> 0 | D110: lf | E110: =IF(bp_pct>0,bp_pipe_diam,"NA") -> NA | F110: =IF(bp_pct=0," ","in. diam") ->  | G110: =IF(bp_pct=0,"NA",IF(curve=1,bp_pipe_diam,VLOOKUP(bp_pipe_diam,st_pipe_cost_cl,2))) -> NA | H110: =IF(bp_pct=0," ","in. diam") ->  | I110: =IF(bp_pct=0,"NA",IF(curve=1,st_pipe_eq_bp,VLOOKUP(bp_pipe_diam,st_pipe_cost_cl,3))) -> NA | J110: -- | K110: =IF(C110=0,"NA",VLOOKUP(E110,st_pipe_cost_cl,IF(ss_cat="large",4,5))) -> NA | M110: =$B$106&" - "&B110 -> Bypass Piping - Steel | N110: 3 | O110: 3 | P110: 2 | Q110: 3 | R110: 3 | S110: 2 | T110: 3 | U110: 3 | V110: 2 | W110: 0 | X110: 3 | Y110: 3 | Z110: 2 | AA110: 3 | AB110: 3 | AC110: 2 | AD110: 3 | AE110: 3 | AF110: 2 | AG110: 0 | AH110: 0
A111: 4. | B111: Valves | AG111: 0 | AH111: 0
A112: 4.1 | B112: Motor/Air Operated (on/off) | AG112: =IF(ISERROR(K112*L112),0,IF(K112<1,0,L112)) -> 0 | AH112: =IF(AG112,J112/K112,0) -> 0
A113: 4.1.1 | B113: Process - Polypropylene/PVC | C113: =tot_proc_MOVs -> 4 | D113: units | E113: =tank_valve_size -> 1.5 | F113: in. diam | G113: =IF(curve=1,tank_valve_size,VLOOKUP(tank_valve_size,pp_mov_cost_cl,2)) -> 1.5 | H113: in. diam | I113: =IF(curve=1,pp_mov_eq_tank,VLOOKUP(tank_valve_size,pp_mov_cost_cl,3)) -> 787.0140404 | J113: =IF(I113="contact vendor","--",C113*I113) -> 3148.056162 | K113: =VLOOKUP(tank_valve_size,pp_mov_cost_cl,IF(ss_cat="large",4,5)) -> 20 | L113: 1 | M113: =$B$112&" "&$B$111&" - "&B113 -> Motor/Air Operated (on/off) Valves - Process - Polypropylene/PVC | N113: =IF(retrofit=1,$W113*X113,IF(ISBLANK(X113),"",X113)) -> 1 | O113: =IF(retrofit=1,$W113*Y113,IF(ISBLANK(Y113),"",Y113)) -> 2 | P113: =IF(retrofit=1,$W113*Z113,IF(ISBLANK(Z113),"",Z113)) -> 3 | Q113: =IF(retrofit=1,$W113*AA113,IF(ISBLANK(AA113),"",AA113)) -> 1 | R113: =IF(retrofit=1,$W113*AB113,IF(ISBLANK(AB113),"",AB113)) -> 2 | S113: =IF(retrofit=1,$W113*AC113,IF(ISBLANK(AC113),"",AC113)) -> 3 | T113: =IF(retrofit=1,$W113*AD113,IF(ISBLANK(AD113),"",AD113)) -> 1 | U113: =IF(retrofit=1,$W113*AE113,IF(ISBLANK(AE113),"",AE113)) -> 2 | V113: =IF(retrofit=1,$W113*AF113,IF(ISBLANK(AF113),"",AF113)) -> 3 | W113: 0 | X113: 1 | Y113: 2 | Z113: 3 | AA113: 1 | AB113: 2 | AC113: 3 | AD113: 1 | AE113: 2 | AF113: 3 | AG113: 1 | AH113: 157.4028081
A114: 4.1.1 | B114: Process - Stainless Steel | C114: =tot_proc_MOVs -> 4 | D114: units | E114: =tank_valve_size -> 1.5 | F114: in. diam | G114: =IF(curve=1,tank_valve_size,VLOOKUP(tank_valve_size,ss_mov_cost_cl,2)) -> 1.5 | H114: in. diam | I114: =IF(curve=1,ss_mov_eq_tank,VLOOKUP(tank_valve_size,ss_mov_cost_cl,3)) -> 1470.604046 | J114: 5882.416186 | K114: =VLOOKUP(tank_valve_size,ss_mov_cost_cl,IF(ss_cat="large",4,5)) -> 20 | L114: 0 | M114: Motor/Air Operated (on/off) Valves - Process - Stainless Steel | N114: 3 | O114: 3 | P114: 1 | Q114: 3 | R114: 3 | S114: 1 | T114: 3 | U114: 3 | V114: 1 | W114: 0 | X114: 3 | Y114: 3 | Z114: 1 | AA114: 3 | AB114: 3 | AC114: 1 | AD114: 3 | AE114: 3 | AF114: 1 | AG114: 0 | AH114: 0
A115: 4.1.1 | B115: Process - Cast Iron | C115: =tot_proc_MOVs -> 4 | D115: units | E115: =tank_valve_size -> 1.5 | F115: in. diam | G115: =IF(curve=1,tank_valve_size,VLOOKUP(tank_valve_size,ci_mov_cost_cl,2)) -> 1.5 | H115: in. diam | I115: =IF(curve=1,ci_mov_eq_tank,VLOOKUP(tank_valve_size,ci_mov_cost_cl,3)) -> 791.8695572 | J115: 3167.478229 | K115: =VLOOKUP(tank_valve_size,ci_mov_cost_cl,IF(ss_cat="large",4,5)) -> 20 | L115: 0 | M115: Motor/Air Operated (on/off) Valves - Process - Cast Iron | N115: 2 | O115: 1 | P115: 2 | Q115: 2 | R115: 1 | S115: 2 | T115: 2 | U115: 1 | V115: 2 | W115: 0 | X115: 2 | Y115: 1 | Z115: 2 | AA115: 2 | AB115: 1 | AC115: 2 | AD115: 2 | AE115: 1 | AF115: 2 | AG115: 0 | AH115: 0
A116: 4.1.2 | B116: Backwash - Polypropylene/PVC | C116: =tot_back_MOVs -> 5 | D116: units | E116: =back_valve_size -> 2 | F116: in. diam | G116: =IF(curve=1,back_valve_size,VLOOKUP(back_valve_size,pp_mov_cost_cl,2)) -> 2 | H116: in. diam | I116: =IF(curve=1,pp_mov_eq_back,VLOOKUP(back_valve_size,pp_mov_cost_cl,3)) -> 861.9873313 | J116: 4309.936656 | K116: =VLOOKUP(back_valve_size,pp_mov_cost_cl,IF(ss_cat="large",4,5)) -> 20 | L116: 1 | M116: Motor/Air Operated (on/off) Valves - Backwash - Polypropylene/PVC | N116: 1 | O116: 2 | P116: 3 | Q116: 1 | R116: 2 | S116: 3 | T116: 1 | U116: 2 | V116: 3 | W116: 0 | X116: 1 | Y116: 2 | Z116: 3 | AA116: 1 | AB116: 2 | AC116: 3 | AD116: 1 | AE116: 2 | AF116: 3 | AG116: 1 | AH116: 215.4968328
A117: 4.1.2 | B117: Backwash - Stainless Steel | C117: =tot_back_MOVs -> 5 | D117: units | E117: =back_valve_size -> 2 | F117: in. diam | G117: =IF(curve=1,back_valve_size,VLOOKUP(back_valve_size,ss_mov_cost_cl,2)) -> 2 | H117: in. diam | I117: =IF(curve=1,ss_mov_eq_back,VLOOKUP(back_valve_size,ss_mov_cost_cl,3)) -> 1534.037501 | J117: 7670.187504 | K117: =VLOOKUP(back_valve_size,ss_mov_cost_cl,IF(ss_cat="large",4,5)) -> 20 | L117: 0 | M117: Motor/Air Operated (on/off) Valves - Backwash - Stainless Steel | N117: 3 | O117: 3 | P117: 1 | Q117: 3 | R117: 3 | S117: 1 | T117: 3 | U117: 3 | V117: 1 | W117: 0 | X117: 3 | Y117: 3 | Z117: 1 | AA117: 3 | AB117: 3 | AC117: 1 | AD117: 3 | AE117: 3 | AF117: 1 | AG117: 0 | AH117: 0
A118: 4.1.2 | B118: Backwash - Cast Iron | C118: =tot_back_MOVs -> 5 | D118: units | E118: =back_valve_size -> 2 | F118: in. diam | G118: =IF(curve=1,back_valve_size,VLOOKUP(back_valve_size,ci_mov_cost_cl,2)) -> 2 | H118: in. diam | I118: =IF(curve=1,ci_mov_eq_back,VLOOKUP(back_valve_size,ci_mov_cost_cl,3)) -> 1444.175599 | J118: 7220.877994 | K118: =VLOOKUP(back_valve_size,ci_mov_cost_cl,IF(ss_cat="large",4,5)) -> 20 | L118: 0 | M118: Motor/Air Operated (on/off) Valves - Backwash - Cast Iron | N118: 2 | O118: 1 | P118: 2 | Q118: 2 | R118: 1 | S118: 2 | T118: 2 | U118: 1 | V118: 2 | W118: 0 | X118: 2 | Y118: 1 | Z118: 2 | AA118: 2 | AB118: 1 | AC118: 2 | AD118: 2 | AE118: 1 | AF118: 2 | AG118: 0 | AH118: 0
A119: 4.1.3 | B119: Residuals - Polypropylene/PVC | C119: =total_res_MOVs -> 0 | D119: units | E119: =IF(C119=0,"NA",res_valve_size) -> NA | F119: =IF(C119=0,"","in. diam") ->  | G119: =IF(C119=0,"NA",IF(curve=1,res_valve_size,VLOOKUP(res_valve_size,pp_mov_cost_cl,2))) -> NA | H119: =IF(C119=0,"","in. diam") ->  | I119: =IF(C119=0,"NA",IF(curve=1,pp_mov_eq_res,VLOOKUP(res_valve_size,pp_mov_cost_cl,3))) -> NA | J119: =IF(OR(C119=0,I119="contact vendor"),"--",C119*I119) -> -- | K119: =IF(C119=0,"NA",VLOOKUP(res_valve_size,pp_mov_cost_cl,IF(ss_cat="large",4,5))) -> NA | M119: Motor/Air Operated (on/off) Valves - Residuals - Polypropylene/PVC | N119: 1 | O119: 2 | P119: 3 | Q119: 1 | R119: 2 | S119: 3 | T119: 1 | U119: 2 | V119: 3 | W119: 0 | X119: 1 | Y119: 2 | Z119: 3 | AA119: 1 | AB119: 2 | AC119: 3 | AD119: 1 | AE119: 2 | AF119: 3 | AG119: 0 | AH119: 0
A120: 4.1.3 | B120: Residuals - Stainless Steel | C120: =total_res_MOVs -> 0 | D120: units | E120: =IF(C120=0,"NA",res_valve_size) -> NA | G120: =IF(C120=0,"NA",IF(curve=1,res_valve_size,VLOOKUP(res_valve_size,ss_mov_cost_cl,2))) -> NA | I120: =IF(C120=0,"NA",IF(curve=1,ss_mov_eq_res,VLOOKUP(res_valve_size,ss_mov_cost_cl,3))) -> NA | J120: -- | K120: =IF(C120=0,"NA",VLOOKUP(res_valve_size,ss_mov_cost_cl,IF(ss_cat="large",4,5))) -> NA | M120: Motor/Air Operated (on/off) Valves - Residuals - Stainless Steel | N120: 3 | O120: 3 | P120: 1 | Q120: 3 | R120: 3 | S120: 1 | T120: 3 | U120: 3 | V120: 1 | W120: 0 | X120: 3 | Y120: 3 | Z120: 1 | AA120: 3 | AB120: 3 | AC120: 1 | AD120: 3 | AE120: 3 | AF120: 1 | AG120: 0 | AH120: 0
A121: 4.1.3 | B121: Residuals - Cast Iron | C121: =total_res_MOVs -> 0 | D121: units | E121: =IF(C121=0,"NA",res_valve_size) -> NA | G121: =IF(C121=0,"NA",IF(curve=1,res_valve_size,VLOOKUP(res_valve_size,ci_mov_cost_cl,2))) -> NA | I121: =IF(C121=0,"NA",IF(curve=1,ci_mov_eq_res,VLOOKUP(res_valve_size,ci_mov_cost_cl,3))) -> NA | J121: -- | K121: =IF(C121=0,"NA",VLOOKUP(res_valve_size,ci_mov_cost_cl,IF(ss_cat="large",4,5))) -> NA | M121: Motor/Air Operated (on/off) Valves - Residuals - Cast Iron | N121: 2 | O121: 1 | P121: 2 | Q121: 2 | R121: 1 | S121: 2 | T121: 2 | U121: 1 | V121: 2 | W121: 0 | X121: 2 | Y121: 1 | Z121: 2 | AA121: 2 | AB121: 1 | AC121: 2 | AD121: 2 | AE121: 1 | AF121: 2 | AG121: 0 | AH121: 0
A122: 4.1.4 | B122: Ferric Chloride - Polypropylene/PVC | C122: =tot_coag_MOVs -> 0 | D122: units | E122: =IF(C122=0,"NA",coag_valve_size) -> NA | F122: =IF(C122=0,"","in. diam") ->  | G122: =IF(C122=0,"NA",IF(curve=1,coag_valve_size,VLOOKUP(coag_valve_size,pp_mov_cost_cl,2))) -> NA | H122: =IF(C122=0,"","in. diam") ->  | I122: =IF(C122=0,"NA",IF(curve=1,pp_mov_eq_coag,VLOOKUP(coag_valve_size,pp_mov_cost_cl,3))) -> NA | J122: =IF(OR(C122=0,I122="contact vendor"),"--",C122*I122) -> -- | K122: =IF(C122=0,"NA",VLOOKUP(coag_valve_size,pp_mov_cost_cl,IF(ss_cat="large",4,5))) -> NA | M122: =$B$112&" "&$B$111&" - "&B122 -> Motor/Air Operated (on/off) Valves - Ferric Chloride - Polypropylene/PVC | N122: 1 | O122: 1 | P122: 1 | Q122: 1 | R122: 1 | S122: 1 | T122: 1 | U122: 1 | V122: 1 | W122: 0 | X122: 1 | Y122: 1 | Z122: 1 | AA122: 1 | AB122: 1 | AC122: 1 | AD122: 1 | AE122: 1 | AF122: 1 | AG122: =IF(ISERROR(K122*L122),0,IF(K122<1,0,L122)) -> 0 | AH122: =IF(AG122,J122/K122,0) -> 0
A123: 4.1.5 | B123: Polymer - Polypropylene/PVC | C123: =tot_polymer_MOVs -> 0 | D123: units | E123: =IF(C123=0,"NA",polymer_valve_size) -> NA | G123: =IF(C123=0,"NA",IF(curve=1,polymer_valve_size,VLOOKUP(polymer_valve_size,pp_mov_cost_cl,2))) -> NA | I123: =IF(C123=0,"NA",IF(curve=1,pp_mov_eq_polymer,VLOOKUP(polymer_valve_size,pp_mov_cost_cl,3))) -> NA | J123: -- | K123: =IF(C123=0,"NA",VLOOKUP(polymer_valve_size,pp_mov_cost_cl,IF(ss_cat="large",4,5))) -> NA | M123: Motor/Air Operated (on/off) Valves - Polymer - Polypropylene/PVC | N123: =IF(retrofit=1,$W123*X123,IF(ISBLANK(X123),"",X123)) -> 1 | O123: 2 | P123: 3 | Q123: 1 | R123: 2 | S123: 3 | T123: 1 | U123: 2 | V123: 3 | W123: 0 | X123: 1 | Y123: 2 | Z123: 3 | AA123: 1 | AB123: 2 | AC123: 3 | AD123: 1 | AE123: 2 | AF123: 3 | AG123: 0 | AH123: 0
A124: 4.1.5 | B124: Polymer - Stainless Steel | C124: =tot_polymer_MOVs -> 0 | D124: units | E124: =IF(C124=0,"NA",polymer_valve_size) -> NA | G124: =IF(C124=0,"NA",IF(curve=1,polymer_valve_size,VLOOKUP(polymer_valve_size,ss_mov_cost_cl,2))) -> NA | I124: =IF(C124=0,"NA",IF(curve=1,ss_mov_eq_polymer,VLOOKUP(polymer_valve_size,ss_mov_cost_cl,3))) -> NA | J124: -- | K124: =IF(C124=0,"NA",VLOOKUP(polymer_valve_size,ss_mov_cost_cl,IF(ss_cat="large",4,5))) -> NA | M124: Motor/Air Operated (on/off) Valves - Polymer - Stainless Steel | N124: 3 | O124: 3 | P124: 1 | Q124: 3 | R124: 3 | S124: 1 | T124: 3 | U124: 3 | V124: 1 | W124: 0 | X124: 3 | Y124: 3 | Z124: 1 | AA124: 3 | AB124: 3 | AC124: 1 | AD124: 3 | AE124: 3 | AF124: 1 | AG124: 0 | AH124: 0
A125: 4.1.5 | B125: Polymer - Cast Iron | C125: =tot_polymer_MOVs -> 0 | D125: units | E125: =IF(C125=0,"NA",polymer_valve_size) -> NA | G125: =IF(C125=0,"NA",IF(curve=1,polymer_valve_size,VLOOKUP(polymer_valve_size,ci_mov_cost_cl,2))) -> NA | I125: =IF(C125=0,"NA",IF(curve=1,ci_mov_eq_polymer,VLOOKUP(polymer_valve_size,ci_mov_cost_cl,3))) -> NA | J125: -- | K125: =IF(C125=0,"NA",VLOOKUP(polymer_valve_size,ci_mov_cost_cl,IF(ss_cat="large",4,5))) -> NA | M125: Motor/Air Operated (on/off) Valves - Polymer - Cast Iron | N125: 2 | O125: 1 | P125: 2 | Q125: 2 | R125: 1 | S125: 2 | T125: 2 | U125: 1 | V125: 2 | W125: 0 | X125: 2 | Y125: 1 | Z125: 2 | AA125: 2 | AB125: 1 | AC125: 2 | AD125: 2 | AE125: 1 | AF125: 2 | AG125: 0 | AH125: 0
A126: 4.1.6 | B126: Bypass - Polypropylene/PVC | C126: =IF(bp_pct>0,tot_bp_MOVs,0) -> 0 | D126: units | E126: =IF(bp_pct=0,"NA",bypass_valve_size) -> NA | F126: =IF(bp_pct=0," ","in. diam") ->  | G126: =IF(bp_pct=0,"NA",(IF(curve=1,bypass_valve_size,VLOOKUP(bypass_valve_size,pp_mov_cost_cl,2)))) -> NA | H126: =IF(bp_pct=0," ","in. diam") ->  | I126: =IF(bp_pct=0,"NA",(IF(curve=1,pp_mov_eq_bp,VLOOKUP(bypass_valve_size,pp_mov_cost_cl,3)))) -> NA | J126: -- | K126: =IF(C126=0,"NA",VLOOKUP(E126,pp_mov_cost_cl,IF(ss_cat="large",4,5))) -> NA | M126: Motor/Air Operated (on/off) Valves - Bypass - Polypropylene/PVC | N126: 1 | O126: 2 | P126: 3 | Q126: 1 | R126: 2 | S126: 3 | T126: 1 | U126: 2 | V126: 3 | W126: 0 | X126: 1 | Y126: 2 | Z126: 3 | AA126: 1 | AB126: 2 | AC126: 3 | AD126: 1 | AE126: 2 | AF126: 3 | AG126: 0 | AH126: 0
A127: 4.1.6 | B127: Bypass - Stainless Steel | C127: =IF(bp_pct>0,tot_bp_MOVs,0) -> 0 | D127: units | E127: =IF(bp_pct=0,"NA",bypass_valve_size) -> NA | F127: =IF(bp_pct=0," ","in. diam") ->  | G127: =IF(bp_pct=0,"NA",(IF(curve=1,bypass_valve_size,VLOOKUP(bypass_valve_size,ss_mov_cost_cl,2)))) -> NA | H127: =IF(bp_pct=0," ","in. diam") ->  | I127: =IF(bp_pct=0,"NA",(IF(curve=1,ss_mov_eq_bp,VLOOKUP(bypass_valve_size,ss_mov_cost_cl,3)))) -> NA | J127: -- | K127: =IF(C127=0,"NA",VLOOKUP(E127,ss_mov_cost_cl,IF(ss_cat="large",4,5))) -> NA | M127: Motor/Air Operated (on/off) Valves - Bypass - Stainless Steel | N127: 3 | O127: 3 | P127: 1 | Q127: 3 | R127: 3 | S127: 1 | T127: 3 | U127: 3 | V127: 1 | W127: 0 | X127: 3 | Y127: 3 | Z127: 1 | AA127: 3 | AB127: 3 | AC127: 1 | AD127: 3 | AE127: 3 | AF127: 1 | AG127: 0 | AH127: 0
A128: 4.1.6 | B128: Bypass - Cast Iron | C128: =IF(bp_pct>0,tot_bp_MOVs,0) -> 0 | D128: units | E128: =IF(bp_pct=0,"NA",bypass_valve_size) -> NA | F128: =IF(bp_pct=0," ","in. diam") ->  | G128: =IF(bp_pct=0,"NA",(IF(curve=1,bypass_valve_size,VLOOKUP(bypass_valve_size,ci_mov_cost_cl,2)))) -> NA | H128: =IF(bp_pct=0," ","in. diam") ->  | I128: =IF(bp_pct=0,"NA",(IF(curve=1,ci_mov_eq_bp,VLOOKUP(bypass_valve_size,ci_mov_cost_cl,3)))) -> NA | J128: -- | K128: =IF(C128=0,"NA",VLOOKUP(E128,ci_mov_cost_cl,IF(ss_cat="large",4,5))) -> NA | M128: Motor/Air Operated (on/off) Valves - Bypass - Cast Iron | N128: 2 | O128: 1 | P128: 2 | Q128: 2 | R128: 1 | S128: 2 | T128: 2 | U128: 1 | V128: 2 | W128: 0 | X128: 2 | Y128: 1 | Z128: 2 | AA128: 2 | AB128: 1 | AC128: 2 | AD128: 2 | AE128: 1 | AF128: 2 | AG128: 0 | AH128: 0
A129: 4.2 | B129: Manual | AG129: 0 | AH129: 0
A130: 4.2.1 | B130: Influent and treated water - Polypropylene/PVC | C130: =tot_in_man -> 2 | D130: units | E130: =IF(C130=0,"NA",in_valve_size) -> 1.5 | F130: =IF(C130=0,"","in. diam") -> in. diam | G130: =IF(C130=0,"NA",IF(curve=1,in_valve_size,VLOOKUP(in_valve_size,pp_man_cost_cl,2))) -> 1.5 | H130: =IF(C130=0,"","in. diam") -> in. diam | I130: =IF(C130=0,"NA",IF(curve=1,pp_man_eq,VLOOKUP(in_valve_size,pp_man_cost_cl,3))) -> 207.8491463 | J130: =IF(OR(C130=0,I130="contact vendor"),"--",C130*I130) -> 415.6982927 | K130: =IF(C130=0,"NA",VLOOKUP(in_valve_size,pp_man_cost_cl,IF(ss_cat="large",4,5))) -> 20 | L130: 1 | M130: =$B$129&" "&$B$111&" - "&B130 -> Manual Valves - Influent and treated water - Polypropylene/PVC | N130: =IF(retrofit=1,$W130*X130,IF(ISBLANK(X130),"",X130)) -> 1 | O130: =IF(retrofit=1,$W130*Y130,IF(ISBLANK(Y130),"",Y130)) -> 2 | P130: =IF(retrofit=1,$W130*Z130,IF(ISBLANK(Z130),"",Z130)) -> 3 | Q130: =IF(retrofit=1,$W130*AA130,IF(ISBLANK(AA130),"",AA130)) -> 1 | R130: =IF(retrofit=1,$W130*AB130,IF(ISBLANK(AB130),"",AB130)) -> 2 | S130: =IF(retrofit=1,$W130*AC130,IF(ISBLANK(AC130),"",AC130)) -> 3 | T130: =IF(retrofit=1,$W130*AD130,IF(ISBLANK(AD130),"",AD130)) -> 1 | U130: =IF(retrofit=1,$W130*AE130,IF(ISBLANK(AE130),"",AE130)) -> 2 | V130: =IF(retrofit=1,$W130*AF130,IF(ISBLANK(AF130),"",AF130)) -> 3 | W130: 0 | X130: 1 | Y130: 2 | Z130: 3 | AA130: 1 | AB130: 2 | AC130: 3 | AD130: 1 | AE130: 2 | AF130: 3 | AG130: 1 | AH130: 20.78491463
A131: 4.2.1 | B131: Influent and treated water - Stainless Steel | C131: =tot_in_man -> 2 | D131: units | E131: =IF(C131=0,"NA",in_valve_size) -> 1.5 | F131: =IF(C131=0,"","in. diam") -> in. diam | G131: =IF(C131=0,"NA",IF(curve=1,in_valve_size,VLOOKUP(in_valve_size,ss_man_cost_cl,2))) -> 1.5 | H131: =IF(C131=0,"","in. diam") -> in. diam | I131: =IF(C131=0,"NA",IF(curve=1,ss_man_eq,VLOOKUP(in_valve_size,ss_man_cost_cl,3))) -> 395.8808732 | J131: =IF(OR(C131=0,I131="contact vendor"),"--",C131*I131) -> 791.7617464 | K131: =IF(C131=0,"NA",VLOOKUP(in_valve_size,ss_man_cost_cl,IF(ss_cat="large",4,5))) -> 20 | L131: 0 | M131: Manual Valves - Influent and treated water - Stainless Steel | N131: 3 | O131: 3 | P131: 1 | Q131: 3 | R131: 3 | S131: 1 | T131: 3 | U131: 3 | V131: 1 | W131: 0 | X131: 3 | Y131: 3 | Z131: 1 | AA131: 3 | AB131: 3 | AC131: 1 | AD131: 3 | AE131: 3 | AF131: 1 | AG131: 0 | AH131: 0
A132: 4.2.1 | B132: Influent and treated water - Cast Iron | C132: =tot_in_man -> 2 | D132: units | E132: =IF(C132=0,"NA",in_valve_size) -> 1.5 | F132: =IF(C132=0,"","in. diam") -> in. diam | G132: =IF(C132=0,"NA",IF(curve=1,in_valve_size,VLOOKUP(in_valve_size,ci_bfv_cost_cl,2))) -> 1.5 | H132: =IF(C132=0,"","in. diam") -> in. diam | I132: =IF(C132=0,"NA",IF(curve=1,ci_bfv_eq,VLOOKUP(in_valve_size,ci_bfv_cost_cl,3))) -> 338.9786776 | J132: =IF(OR(C132=0,I132="contact vendor"),"--",C132*I132) -> 677.9573551 | K132: =IF(C132=0,"NA",VLOOKUP(in_valve_size,ci_bfv_cost_cl,IF(ss_cat="large",4,5))) -> 20 | L132: 0 | M132: Manual Valves - Influent and treated water - Cast Iron | N132: 2 | O132: 1 | P132: 2 | Q132: 2 | R132: 1 | S132: 2 | T132: 2 | U132: 1 | V132: 2 | W132: 0 | X132: 2 | Y132: 1 | Z132: 2 | AA132: 2 | AB132: 1 | AC132: 2 | AD132: 2 | AE132: 1 | AF132: 2 | AG132: 0 | AH132: 0
A133: 4.2.2 | B133: Process - Polypropylene/PVC | C133: =tot_proc_man -> 2 | D133: units | E133: =tank_valve_size -> 1.5 | F133: in. diam | G133: =IF(curve=1,tank_valve_size,VLOOKUP(tank_valve_size,pp_man_cost_cl,2)) -> 1.5 | H133: in. diam | I133: =IF(curve=1,pp_man_eq_proc,VLOOKUP(tank_valve_size,pp_man_cost_cl,3)) -> 207.8491463 | J133: =IF(I133="contact vendor","--",C133*I133) -> 415.6982927 | K133: =VLOOKUP(tank_valve_size,pp_man_cost_cl,IF(ss_cat="large",4,5)) -> 20 | L133: 1 | M133: Manual Valves - Process - Polypropylene/PVC | N133: 1 | O133: 2 | P133: 3 | Q133: 1 | R133: 2 | S133: 3 | T133: 1 | U133: 2 | V133: 3 | W133: 0 | X133: 1 | Y133: 2 | Z133: 3 | AA133: 1 | AB133: 2 | AC133: 3 | AD133: 1 | AE133: 2 | AF133: 3 | AG133: 1 | AH133: 20.78491463
A134: 4.2.2 | B134: Process - Stainless Steel | C134: =tot_proc_man -> 2 | D134: units | E134: =tank_valve_size -> 1.5 | F134: in. diam | G134: =IF(curve=1,tank_valve_size,VLOOKUP(tank_valve_size,ss_man_cost_cl,2)) -> 1.5 | H134: in. diam | I134: =IF(curve=1,ss_man_eq_proc,VLOOKUP(tank_valve_size,ss_man_cost_cl,3)) -> 395.8808732 | J134: =IF(I134="contact vendor","--",C134*I134) -> 791.7617464 | K134: =VLOOKUP(tank_valve_size,ss_man_cost_cl,IF(ss_cat="large",4,5)) -> 20 | L134: 0 | M134: Manual Valves - Process - Stainless Steel | N134: 3 | O134: 3 | P134: 1 | Q134: 3 | R134: 3 | S134: 1 | T134: 3 | U134: 3 | V134: 1 | W134: 0 | X134: 3 | Y134: 3 | Z134: 1 | AA134: 3 | AB134: 3 | AC134: 1 | AD134: 3 | AE134: 3 | AF134: 1 | AG134: 0 | AH134: 0
A135: 4.2.2 | B135: Process - Cast Iron | C135: =tot_proc_man -> 2 | D135: units | E135: =tank_valve_size -> 1.5 | F135: in. diam | G135: =IF(curve=1,tank_valve_size,VLOOKUP(tank_valve_size,ci_bfv_cost_cl,2)) -> 1.5 | H135: in. diam | I135: =IF(curve=1,ci_bfv_eq_proc,VLOOKUP(tank_valve_size,ci_bfv_cost_cl,3)) -> 338.9786776 | J135: =IF(I135="contact vendor","--",C135*I135) -> 677.9573551 | K135: =VLOOKUP(tank_valve_size,ci_bfv_cost_cl,IF(ss_cat="large",4,5)) -> 20 | L135: 0 | M135: Manual Valves - Process - Cast Iron | N135: 2 | O135: 1 | P135: 2 | Q135: 2 | R135: 1 | S135: 2 | T135: 2 | U135: 1 | V135: 2 | W135: 0 | X135: 2 | Y135: 1 | Z135: 2 | AA135: 2 | AB135: 1 | AC135: 2 | AD135: 2 | AE135: 1 | AF135: 2 | AG135: 0 | AH135: 0
A136: 4.2.3 | B136: Backwash - Polypropylene/PVC | C136: =tot_back_man -> 0 | D136: units | E136: =IF(C136=0,"NA",back_valve_size) -> NA | F136: =IF(C136=0,"","in. diam") ->  | G136: =IF(C136=0,"NA",IF(curve=1,back_valve_size,VLOOKUP(back_valve_size,pp_man_cost_cl,2))) -> NA | H136: =IF(C136=0,"","in. diam") ->  | I136: =IF(C136=0,"NA",IF(curve=1,pp_man_eq_back,VLOOKUP(back_valve_size,pp_man_cost_cl,3))) -> NA | J136: =IF(OR(C136=0,I136="contact vendor"),"--",C136*I136) -> -- | K136: =IF(C136=0,"NA",VLOOKUP(back_valve_size,pp_man_cost_cl,IF(ss_cat="large",4,5))) -> NA | M136: Manual Valves - Backwash - Polypropylene/PVC | N136: 1 | O136: 2 | P136: 3 | Q136: 1 | R136: 2 | S136: 3 | T136: 1 | U136: 2 | V136: 3 | W136: 0 | X136: 1 | Y136: 2 | Z136: 3 | AA136: 1 | AB136: 2 | AC136: 3 | AD136: 1 | AE136: 2 | AF136: 3 | AG136: 0 | AH136: 0
A137: 4.2.3 | B137: Backwash - Stainless Steel | C137: =tot_back_man -> 0 | D137: units | E137: =IF(C137=0,"NA",back_valve_size) -> NA | G137: =IF(C137=0,"NA",IF(curve=1,back_valve_size,VLOOKUP(back_valve_size,ss_man_cost_cl,2))) -> NA | I137: =IF(C137=0,"NA",IF(curve=1,ss_man_eq_back,VLOOKUP(back_valve_size,ss_man_cost_cl,3))) -> NA | J137: -- | K137: =IF(C137=0,"NA",VLOOKUP(back_valve_size,ss_man_cost_cl,IF(ss_cat="large",4,5))) -> NA | M137: Manual Valves - Backwash - Stainless Steel | N137: 3 | O137: 3 | P137: 1 | Q137: 3 | R137: 3 | S137: 1 | T137: 3 | U137: 3 | V137: 1 | W137: 0 | X137: 3 | Y137: 3 | Z137: 1 | AA137: 3 | AB137: 3 | AC137: 1 | AD137: 3 | AE137: 3 | AF137: 1 | AG137: 0 | AH137: 0
A138: 4.2.3 | B138: Backwash - Cast Iron | C138: =tot_back_man -> 0 | D138: units | E138: =IF(C138=0,"NA",back_valve_size) -> NA | G138: =IF(C138=0,"NA",IF(curve=1,back_valve_size,VLOOKUP(back_valve_size,ci_bfv_cost_cl,2))) -> NA | I138: =IF(C138=0,"NA",IF(curve=1,ci_man_eq_back,VLOOKUP(back_valve_size,ci_bfv_cost_cl,3))) -> NA | J138: -- | K138: =IF(C138=0,"NA",VLOOKUP(back_valve_size,ci_bfv_cost_cl,IF(ss_cat="large",4,5))) -> NA | M138: Manual Valves - Backwash - Cast Iron | N138: 2 | O138: 1 | P138: 2 | Q138: 2 | R138: 1 | S138: 2 | T138: 2 | U138: 1 | V138: 2 | W138: 0 | X138: 2 | Y138: 1 | Z138: 2 | AA138: 2 | AB138: 1 | AC138: 2 | AD138: 2 | AE138: 1 | AF138: 2 | AG138: 0 | AH138: 0
A139: 4.2.4 | B139: Residuals - Polypropylene/PVC | C139: =total_res_man -> 0 | D139: units | E139: =IF(C139=0,"NA",res_valve_size) -> NA | G139: =IF(C139=0,"NA",IF(curve=1,res_valve_size,VLOOKUP(back_valve_size,pp_man_cost_cl,2))) -> NA | I139: =IF(C139=0,"NA",IF(curve=1,pp_man_eq_res,VLOOKUP(res_valve_size,pp_man_cost_cl,3))) -> NA | J139: -- | K139: =IF(C139=0,"NA",VLOOKUP(res_valve_size,pp_man_cost_cl,IF(ss_cat="large",4,5))) -> NA | M139: Manual Valves - Residuals - Polypropylene/PVC | N139: 1 | O139: 2 | P139: 3 | Q139: 1 | R139: 2 | S139: 3 | T139: 1 | U139: 2 | V139: 3 | W139: 0 | X139: 1 | Y139: 2 | Z139: 3 | AA139: 1 | AB139: 2 | AC139: 3 | AD139: 1 | AE139: 2 | AF139: 3 | AG139: 0 | AH139: 0
A140: 4.2.4 | B140: Residuals - Stainless Steel | C140: =total_res_man -> 0 | D140: units | E140: =IF(C140=0,"NA",res_valve_size) -> NA | G140: =IF(C140=0,"NA",IF(curve=1,res_valve_size,VLOOKUP(back_valve_size,ss_man_cost_cl,2))) -> NA | I140: =IF(C140=0,"NA",IF(curve=1,ss_man_eq_res,VLOOKUP(res_valve_size,ss_man_cost_cl,3))) -> NA | J140: -- | K140: =IF(C140=0,"NA",VLOOKUP(res_valve_size,ss_man_cost_cl,IF(ss_cat="large",4,5))) -> NA | M140: Manual Valves - Residuals - Stainless Steel | N140: 3 | O140: 3 | P140: 1 | Q140: 3 | R140: 3 | S140: 1 | T140: 3 | U140: 3 | V140: 1 | W140: 0 | X140: 3 | Y140: 3 | Z140: 1 | AA140: 3 | AB140: 3 | AC140: 1 | AD140: 3 | AE140: 3 | AF140: 1 | AG140: 0 | AH140: 0
A141: 4.2.4 | B141: Residuals - Cast Iron | C141: =total_res_man -> 0 | D141: units | E141: =IF(C141=0,"NA",res_valve_size) -> NA | G141: =IF(C141=0,"NA",IF(curve=1,res_valve_size,VLOOKUP(back_valve_size,ci_bfv_cost_cl,2))) -> NA | I141: =IF(C141=0,"NA",IF(curve=1,ci_man_eq_res,VLOOKUP(res_valve_size,ci_bfv_cost_cl,3))) -> NA | J141: -- | K141: =IF(C141=0,"NA",VLOOKUP(res_valve_size,ci_bfv_cost_cl,IF(ss_cat="large",4,5))) -> NA | M141: Manual Valves - Residuals - Cast Iron | N141: 2 | O141: 1 | P141: 2 | Q141: 2 | R141: 1 | S141: 2 | T141: 2 | U141: 1 | V141: 2 | W141: 0 | X141: 2 | Y141: 1 | Z141: 2 | AA141: 2 | AB141: 1 | AC141: 2 | AD141: 2 | AE141: 1 | AF141: 2 | AG141: 0 | AH141: 0
A142: 4.2.5 | B142: Ferric Chloride - Polypropylene/PVC | C142: =tot_coag_man -> 0 | D142: units | E142: =IF(C142=0,"NA",coag_valve_size) -> NA | F142: =IF(C142=0,"","in. diam") ->  | G142: =IF(C142=0,"NA",IF(curve=1,coag_valve_size,VLOOKUP(coag_valve_size,pp_man_cost_cl,2))) -> NA | H142: =IF(C142=0,"","in. diam") ->  | I142: =IF(C142=0,"NA",IF(curve=1,pp_man_eq_coag,VLOOKUP(coag_valve_size,pp_man_cost_cl,3))) -> NA | J142: -- | K142: =IF(C142=0,"NA",VLOOKUP(coag_valve_size,pp_man_cost_cl,IF(ss_cat="large",4,5))) -> NA | M142: Manual Valves - Ferric Chloride - Polypropylene/PVC | N142: 1 | O142: 1 | P142: 1 | Q142: 1 | R142: 1 | S142: 1 | T142: 1 | U142: 1 | V142: 1 | W142: 0 | X142: 1 | Y142: 1 | Z142: 1 | AA142: 1 | AB142: 1 | AC142: 1 | AD142: 1 | AE142: 1 | AF142: 1 | AG142: =IF(ISERROR(K142*L142),0,IF(K142<1,0,L142)) -> 0 | AH142: =IF(AG142,J142/K142,0) -> 0
A143: 4.2.6 | B143: Polymer - Polypropylene/PVC | C143: =tot_polymer_man -> 0 | D143: units | E143: =IF(C143=0,"NA",polymer_valve_size) -> NA | F143: =IF(C143=0,"","in. diam") ->  | G143: =IF(C143=0,"NA",IF(curve=1,polymer_valve_size,VLOOKUP(polymer_valve_size,pp_man_cost_cl,2))) -> NA | H143: =IF(C143=0,"","in. diam") ->  | I143: =IF(C143=0,"NA",IF(curve=1,pp_man_eq_polymer,VLOOKUP(polymer_valve_size,pp_man_cost_cl,3))) -> NA | J143: =IF(OR(C143=0,I143="contact vendor"),"--",C143*I143) -> -- | K143: =IF(C143=0,"NA",VLOOKUP(polymer_valve_size,pp_man_cost_cl,IF(ss_cat="large",4,5))) -> NA | M143: Manual Valves - Polymer - Polypropylene/PVC | N143: =IF(retrofit=1,$W143*X143,IF(ISBLANK(X143),"",X143)) -> 1 | O143: 2 | P143: 3 | Q143: 1 | R143: 2 | S143: 3 | T143: 1 | U143: 2 | V143: 3 | W143: 0 | X143: 1 | Y143: 2 | Z143: 3 | AA143: 1 | AB143: 2 | AC143: 3 | AD143: 1 | AE143: 2 | AF143: 3 | AG143: 0 | AH143: 0
A144: 4.2.6 | B144: Polymer - Stainless Steel | C144: =tot_polymer_man -> 0 | D144: units | E144: =IF(C144=0,"NA",polymer_valve_size) -> NA | F144: =IF(C144=0,"","in. diam") ->  | G144: =IF(C144=0,"NA",IF(curve=1,polymer_valve_size,VLOOKUP(polymer_valve_size,ss_man_cost_cl,2))) -> NA | H144: =IF(C144=0,"","in. diam") ->  | I144: =IF(C144=0,"NA",IF(curve=1,ss_man_eq_polymer,VLOOKUP(polymer_valve_size,ss_man_cost_cl,3))) -> NA | J144: -- | K144: =IF(C144=0,"NA",VLOOKUP(polymer_valve_size,ss_man_cost_cl,IF(ss_cat="large",4,5))) -> NA | M144: Manual Valves - Polymer - Stainless Steel | N144: 3 | O144: 3 | P144: 1 | Q144: 3 | R144: 3 | S144: 1 | T144: 3 | U144: 3 | V144: 1 | W144: 0 | X144: 3 | Y144: 3 | Z144: 1 | AA144: 3 | AB144: 3 | AC144: 1 | AD144: 3 | AE144: 3 | AF144: 1 | AG144: 0 | AH144: 0
A145: 4.2.6 | B145: Polymer - Cast Iron | C145: =tot_polymer_man -> 0 | D145: units | E145: =IF(C145=0,"NA",polymer_valve_size) -> NA | F145: =IF(C145=0,"","in. diam") ->  | G145: =IF(C145=0,"NA",IF(curve=1,polymer_valve_size,VLOOKUP(polymer_valve_size,ci_bfv_cost_cl,2))) -> NA | H145: =IF(C145=0,"","in. diam") ->  | I145: =IF(C145=0,"NA",IF(curve=1,ci_man_eq_polymer,VLOOKUP(polymer_valve_size,ci_bfv_cost_cl,3))) -> NA | J145: -- | K145: =IF(C145=0,"NA",VLOOKUP(polymer_valve_size,ci_bfv_cost_cl,IF(ss_cat="large",4,5))) -> NA | M145: Manual Valves - Polymer - Cast Iron | N145: 2 | O145: 1 | P145: 2 | Q145: 2 | R145: 1 | S145: 2 | T145: 2 | U145: 1 | V145: 2 | W145: 0 | X145: 2 | Y145: 1 | Z145: 2 | AA145: 2 | AB145: 1 | AC145: 2 | AD145: 2 | AE145: 1 | AF145: 2 | AG145: 0 | AH145: 0
A146: 4.2.7 | B146: Bypass - Polypropylene/PVC | C146: =IF(bp_pct>0,tot_bp_man,0) -> 0 | D146: units | E146: =IF(bp_pct=0,"NA",bypass_valve_size) -> NA | F146: =IF(bp_pct=0," ","in. diam") ->  | G146: =IF(bp_pct=0,"NA",(IF(curve=1,bypass_valve_size,VLOOKUP(bypass_valve_size,pp_man_cost_cl,2)))) -> NA | H146: =IF(bp_pct=0," ","in. diam") ->  | I146: =IF(bp_pct=0,"NA",(IF(curve=1,pp_man_eq_bp,VLOOKUP(bypass_valve_size,pp_man_cost_cl,3)))) -> NA | J146: -- | K146: =IF(C146=0,"NA",VLOOKUP(E146,pp_man_cost_cl,IF(ss_cat="large",4,5))) -> NA | M146: Manual Valves - Bypass - Polypropylene/PVC | N146: 1 | O146: 2 | P146: 3 | Q146: 1 | R146: 2 | S146: 3 | T146: 1 | U146: 2 | V146: 3 | W146: 0 | X146: 1 | Y146: 2 | Z146: 3 | AA146: 1 | AB146: 2 | AC146: 3 | AD146: 1 | AE146: 2 | AF146: 3 | AG146: 0 | AH146: 0
A147: 4.2.7 | B147: Bypass - Stainless Steel | C147: =IF(bp_pct>0,tot_bp_man,0) -> 0 | D147: units | E147: =IF(bp_pct=0,"NA",bypass_valve_size) -> NA | F147: =IF(bp_pct=0," ","in. diam") ->  | G147: =IF(bp_pct=0,"NA",(IF(curve=1,bypass_valve_size,VLOOKUP(bypass_valve_size,ss_man_cost_cl,2)))) -> NA | H147: =IF(bp_pct=0," ","in. diam") ->  | I147: =IF(bp_pct=0,"NA",(IF(curve=1,ss_man_eq_bp,VLOOKUP(bypass_valve_size,ss_man_cost_cl,3)))) -> NA | J147: -- | K147: =IF(C147=0,"NA",VLOOKUP(E147,ss_man_cost_cl,IF(ss_cat="large",4,5))) -> NA | M147: Manual Valves - Bypass - Stainless Steel | N147: 3 | O147: 3 | P147: 1 | Q147: 3 | R147: 3 | S147: 1 | T147: 3 | U147: 3 | V147: 1 | W147: 0 | X147: 3 | Y147: 3 | Z147: 1 | AA147: 3 | AB147: 3 | AC147: 1 | AD147: 3 | AE147: 3 | AF147: 1 | AG147: 0 | AH147: 0
A148: 4.2.7 | B148: Bypass - Cast Iron | C148: =IF(bp_pct>0,tot_bp_man,0) -> 0 | D148: units | E148: =IF(bp_pct=0,"NA",bypass_valve_size) -> NA | F148: =IF(bp_pct=0," ","in. diam") ->  | G148: =IF(bp_pct=0,"NA",(IF(curve=1,bypass_valve_size,VLOOKUP(bypass_valve_size,ci_bfv_cost_cl,2)))) -> NA | H148: =IF(bp_pct=0," ","in. diam") ->  | I148: =IF(bp_pct=0,"NA",(IF(curve=1,ci_man_eq_bp,VLOOKUP(bypass_valve_size,ci_bfv_cost_cl,3)))) -> NA | J148: -- | K148: =IF(C148=0,"NA",VLOOKUP(E148,ci_bfv_cost_cl,IF(ss_cat="large",4,5))) -> NA | M148: Manual Valves - Bypass - Cast Iron | N148: 2 | O148: 1 | P148: 2 | Q148: 2 | R148: 1 | S148: 2 | T148: 2 | U148: 1 | V148: 2 | W148: 0 | X148: 2 | Y148: 1 | Z148: 2 | AA148: 2 | AB148: 1 | AC148: 2 | AD148: 2 | AE148: 1 | AF148: 2 | AG148: 0 | AH148: 0
A149: 4.3 | B149: Check Valves | AG149: 0 | AH149: 0
A150: 4.3.1 | B150: Backwash - Polypropylene/PVC | C150: =tot_back_chv -> 1 | D150: units | E150: =IF(C150=0,"NA",back_valve_size) -> 2 | F150: =IF(C150=0,"","in. diam") -> in. diam | G150: =IF(C150=0,"NA",IF(curve=1,back_valve_size,VLOOKUP(back_valve_size,pp_chv_cost_cl,2))) -> 2 | H150: =IF(C150=0,"","in. diam") -> in. diam | I150: =IF(C150=0,"NA",IF(curve=1,pp_chv_eq_back,VLOOKUP(back_valve_size,pp_chv_cost_cl,3))) -> 246.5821303 | J150: =IF(C150=0,0,IF(I150="contact vendor","--",C150*I150)) -> 246.5821303 | K150: =IF(C150=0,"NA",VLOOKUP(back_valve_size,pp_chv_cost_cl,IF(ss_cat="large",4,5))) -> 20 | L150: 1 | M150: =$B$149&" - "&B150 -> Check Valves - Backwash - Polypropylene/PVC | N150: =IF(retrofit=1,$W150*X150,IF(ISBLANK(X150),"",X150)) -> 1 | O150: =IF(retrofit=1,$W150*Y150,IF(ISBLANK(Y150),"",Y150)) -> 2 | P150: =IF(retrofit=1,$W150*Z150,IF(ISBLANK(Z150),"",Z150)) -> 3 | Q150: =IF(retrofit=1,$W150*AA150,IF(ISBLANK(AA150),"",AA150)) -> 1 | R150: =IF(retrofit=1,$W150*AB150,IF(ISBLANK(AB150),"",AB150)) -> 2 | S150: =IF(retrofit=1,$W150*AC150,IF(ISBLANK(AC150),"",AC150)) -> 3 | T150: =IF(retrofit=1,$W150*AD150,IF(ISBLANK(AD150),"",AD150)) -> 1 | U150: =IF(retrofit=1,$W150*AE150,IF(ISBLANK(AE150),"",AE150)) -> 2 | V150: =IF(retrofit=1,$W150*AF150,IF(ISBLANK(AF150),"",AF150)) -> 3 | W150: 0 | X150: 1 | Y150: 2 | Z150: 3 | AA150: 1 | AB150: 2 | AC150: 3 | AD150: 1 | AE150: 2 | AF150: 3 | AG150: 1 | AH150: 12.32910652
A151: 4.3.1 | B151: Backwash - Stainless Steel | C151: =tot_back_chv -> 1 | D151: units | E151: =IF(C151=0,"NA",back_valve_size) -> 2 | F151: in. diam | G151: =IF(C151=0,"NA",IF(curve=1,back_valve_size,VLOOKUP(back_valve_size,ss_chv_cost_cl,2))) -> 2 | H151: in. diam | I151: =IF(C151=0,"NA",IF(curve=1,ss_chv_eq_back,VLOOKUP(back_valve_size,ss_chv_cost_cl,3))) -> 662.612888 | J151: =IF(C151=0,0,IF(I151="contact vendor","--",C151*I151)) -> 662.612888 | K151: =IF(C151=0,"NA",VLOOKUP(back_valve_size,ss_chv_cost_cl,IF(ss_cat="large",4,5))) -> 20 | L151: 0 | M151: Check Valves - Backwash - Stainless Steel | N151: 3 | O151: 3 | P151: 1 | Q151: 3 | R151: 3 | S151: 1 | T151: 3 | U151: 3 | V151: 1 | W151: 0 | X151: 3 | Y151: 3 | Z151: 1 | AA151: 3 | AB151: 3 | AC151: 1 | AD151: 3 | AE151: 3 | AF151: 1 | AG151: 0 | AH151: 0
A152: 4.3.1 | B152: Backwash - Cast Iron | C152: =tot_back_chv -> 1 | D152: units | E152: =IF(C152=0,"NA",back_valve_size) -> 2 | F152: in. diam | G152: =IF(C152=0,"NA",IF(curve=1,back_valve_size,VLOOKUP(back_valve_size,ci_bfv_cost_cl,2))) -> 2 | H152: in. diam | I152: =IF(C152=0,"NA",IF(curve=1,ci_chv_eq_back,VLOOKUP(back_valve_size,ci_bfv_cost_cl,3))) -> 714.9414891 | J152: =IF(C152=0,0,IF(I152="contact vendor","--",C152*I152)) -> 714.9414891 | K152: =IF(C152=0,"NA",VLOOKUP(back_valve_size,ci_bfv_cost_cl,IF(ss_cat="large",4,5))) -> 20 | L152: 0 | M152: Check Valves - Backwash - Cast Iron | N152: 2 | O152: 1 | P152: 2 | Q152: 2 | R152: 1 | S152: 2 | T152: 2 | U152: 1 | V152: 2 | W152: 0 | X152: 2 | Y152: 1 | Z152: 2 | AA152: 2 | AB152: 1 | AC152: 2 | AD152: 2 | AE152: 1 | AF152: 2 | AG152: 0 | AH152: 0
A153: 4.3.2 | B153: Residuals - Polypropylene/PVC | C153: =tot_res_chv -> 1 | D153: units | E153: =IF(C153=0,"NA",res_valve_size) -> 2 | F153: in. diam | G153: =IF(C153=0,"NA",IF(curve=1,res_valve_size,VLOOKUP(res_valve_size,pp_chv_cost_cl,2))) -> 2 | H153: in. diam | I153: =IF(C153=0,0,IF(curve=1,pp_chv_eq_res,VLOOKUP(res_valve_size,pp_chv_cost_cl,3))) -> 246.5821303 | J153: =IF(I153=0,0,IF(I153="contact vendor","--",C153*I153)) -> 246.5821303 | K153: =IF(C153=0,"NA",VLOOKUP(res_valve_size,pp_chv_cost_cl,IF(ss_cat="large",4,5))) -> 20 | L153: 1 | M153: =$B$149&" - "&B153 -> Check Valves - Residuals - Polypropylene/PVC | N153: 1 | O153: 2 | P153: 3 | Q153: 1 | R153: 2 | S153: 3 | T153: 1 | U153: 2 | V153: 3 | W153: 0 | X153: 1 | Y153: 2 | Z153: 3 | AA153: 1 | AB153: 2 | AC153: 3 | AD153: 1 | AE153: 2 | AF153: 3 | AG153: 1 | AH153: 12.32910652
A154: 4.3.2 | B154: Residuals - Stainless Steel | C154: =tot_res_chv -> 1 | D154: units | E154: =IF(C154=0,"NA",res_valve_size) -> 2 | F154: in. diam | G154: =IF(C154=0,"NA",IF(curve=1,res_valve_size,VLOOKUP(res_valve_size,ss_chv_cost_cl,2))) -> 2 | H154: in. diam | I154: =IF(C154=0,0,IF(curve=1,ss_chv_eq_res,VLOOKUP(res_valve_size,ss_chv_cost_cl,3))) -> 662.612888 | J154: =IF(I154=0,0,IF(I154="contact vendor","--",C154*I154)) -> 662.612888 | K154: =IF(C154=0,"NA",VLOOKUP(res_valve_size,ss_chv_cost_cl,IF(ss_cat="large",4,5))) -> 20 | L154: 0 | M154: Check Valves - Residuals - Stainless Steel | N154: 3 | O154: 3 | P154: 1 | Q154: 3 | R154: 3 | S154: 1 | T154: 3 | U154: 3 | V154: 1 | W154: 0 | X154: 3 | Y154: 3 | Z154: 1 | AA154: 3 | AB154: 3 | AC154: 1 | AD154: 3 | AE154: 3 | AF154: 1 | AG154: 0 | AH154: 0
A155: 4.3.2 | B155: Residuals - Cast Iron | C155: =tot_res_chv -> 1 | D155: units | E155: =IF(C155=0,"NA",res_valve_size) -> 2 | F155: in. diam | G155: =IF(C155=0,"NA",IF(curve=1,res_valve_size,VLOOKUP(res_valve_size,ci_chv_cost_cl,2))) -> 2 | H155: in. diam | I155: =IF(C155=0,0,IF(curve=1,ci_chv_eq_res,VLOOKUP(res_valve_size,ci_chv_cost_cl,3))) -> 714.9414891 | J155: =IF(I155=0,0,IF(I155="contact vendor","--",C155*I155)) -> 714.9414891 | K155: =IF(C155=0,"NA",VLOOKUP(res_valve_size,ci_chv_cost_cl,IF(ss_cat="large",4,5))) -> 20 | L155: 0 | M155: Check Valves - Residuals - Cast Iron | N155: 2 | O155: 1 | P155: 2 | Q155: 2 | R155: 1 | S155: 2 | T155: 2 | U155: 1 | V155: 2 | W155: 0 | X155: 2 | Y155: 1 | Z155: 2 | AA155: 2 | AB155: 1 | AC155: 2 | AD155: 2 | AE155: 1 | AF155: 2 | AG155: 0 | AH155: 0
A156: 4.3.3 | B156: Ferric Chloride - Polypropylene/PVC | C156: =tot_coag_chv -> 0 | D156: units | E156: =IF(C156=0,"NA",coag_valve_size) -> NA | F156: =IF(C156=0,"","in. diam") ->  | G156: =IF(C156=0,"NA",IF(curve=1,coag_valve_size,VLOOKUP(coag_valve_size,pp_chv_cost_cl,2))) -> NA | H156: =IF(C156=0,"","in. diam") ->  | I156: =IF(C156=0,"NA",IF(curve=1,pp_chv_eq_coag,VLOOKUP(coag_valve_size,pp_chv_cost_cl,3))) -> NA | J156: =IF(OR(C156=0,I156="contact vendor"),"--",C156*I156) -> -- | K156: =IF(C156=0,"NA",VLOOKUP(coag_valve_size,pp_chv_cost_cl,IF(ss_cat="large",4,5))) -> NA | M156: =$B$149&" - "&B156 -> Check Valves - Ferric Chloride - Polypropylene/PVC | N156: 1 | O156: 1 | P156: 1 | Q156: 1 | R156: 1 | S156: 1 | T156: 1 | U156: 1 | V156: 1 | W156: 0 | X156: 1 | Y156: 1 | Z156: 1 | AA156: 1 | AB156: 1 | AC156: 1 | AD156: 1 | AE156: 1 | AF156: 1 | AG156: =IF(ISERROR(K156*L156),0,IF(K156<1,0,L156)) -> 0 | AH156: =IF(AG156,J156/K156,0) -> 0
A157: 4.3.4 | B157: Polymer - Polypropylene/PVC | C157: =tot_polymer_chv -> 0 | D157: units | E157: =IF(C157=0,"NA",polymer_valve_size) -> NA | F157: =IF(C157=0,"","in. diam") ->  | G157: =IF(C157=0,"NA",IF(curve=1,polymer_valve_size,VLOOKUP(polymer_valve_size,pp_chv_cost_cl,2))) -> NA | H157: =IF(C157=0,"","in. diam") ->  | I157: =IF(C157=0,"NA",IF(curve=1,pp_chv_eq_polymer,VLOOKUP(polymer_valve_size,pp_chv_cost_cl,3))) -> NA | J157: =IF(OR(C157=0,I157="contact vendor"),"--",C157*I157) -> -- | K157: =IF(C157=0,"NA",VLOOKUP(polymer_valve_size,pp_chv_cost_cl,IF(ss_cat="large",4,5))) -> NA | M157: Check Valves - Polymer - Polypropylene/PVC | N157: =IF(retrofit=1,$W157*X157,IF(ISBLANK(X157),"",X157)) -> 1 | O157: 2 | P157: 3 | Q157: 1 | R157: 2 | S157: 3 | T157: 1 | U157: 2 | V157: 3 | W157: 0 | X157: 1 | Y157: 2 | Z157: 3 | AA157: 1 | AB157: 2 | AC157: 3 | AD157: 1 | AE157: 2 | AF157: 3 | AG157: 0 | AH157: 0
A158: 4.3.4 | B158: Polymer - Stainless Steel | C158: =tot_polymer_chv -> 0 | D158: units | E158: =IF(C158=0,"NA",polymer_valve_size) -> NA | F158: =IF(C158=0,"","in. diam") ->  | G158: =IF(C158=0,"NA",IF(curve=1,polymer_valve_size,VLOOKUP(polymer_valve_size,ss_chv_cost_cl,2))) -> NA | H158: =IF(C158=0,"","in. diam") ->  | I158: =IF(C158=0,"NA",IF(curve=1,ss_chv_eq_polymer,VLOOKUP(polymer_valve_size,ss_chv_cost_cl,3))) -> NA | J158: -- | K158: =IF(C158=0,"NA",VLOOKUP(polymer_valve_size,ss_chv_cost_cl,IF(ss_cat="large",4,5))) -> NA | M158: Check Valves - Polymer - Stainless Steel | N158: 3 | O158: 3 | P158: 1 | Q158: 3 | R158: 3 | S158: 1 | T158: 3 | U158: 3 | V158: 1 | W158: 0 | X158: 3 | Y158: 3 | Z158: 1 | AA158: 3 | AB158: 3 | AC158: 1 | AD158: 3 | AE158: 3 | AF158: 1 | AG158: 0 | AH158: 0
A159: 4.3.4 | B159: Polymer - Cast Iron | C159: =tot_polymer_chv -> 0 | D159: units | E159: =IF(C159=0,"NA",polymer_valve_size) -> NA | F159: =IF(C159=0,"","in. diam") ->  | G159: =IF(C159=0,"NA",IF(curve=1,polymer_valve_size,VLOOKUP(polymer_valve_size,ci_chv_cost_cl,2))) -> NA | H159: =IF(C159=0,"","in. diam") ->  | I159: =IF(C159=0,"NA",IF(curve=1,ci_chv_eq_polymer,VLOOKUP(polymer_valve_size,ci_chv_cost_cl,3))) -> NA | J159: -- | K159: =IF(C159=0,"NA",VLOOKUP(polymer_valve_size,ci_chv_cost_cl,IF(ss_cat="large",4,5))) -> NA | M159: Check Valves - Polymer - Cast Iron | N159: 2 | O159: 1 | P159: 2 | Q159: 2 | R159: 1 | S159: 2 | T159: 2 | U159: 1 | V159: 2 | W159: 0 | X159: 2 | Y159: 1 | Z159: 2 | AA159: 2 | AB159: 1 | AC159: 2 | AD159: 2 | AE159: 1 | AF159: 2 | AG159: 0 | AH159: 0
A160: 4.3.5 | B160: Influent - Polypropylene/PVC | C160: =tot_in_chv -> 1 | D160: units | E160: =IF(C160=0,"NA",in_valve_size) -> 1.5 | F160: in. diam | G160: =IF(C160=0,"NA",IF(curve=1,in_valve_size,VLOOKUP(in_valve_size,pp_chv_cost_cl,2))) -> 1.5 | H160: in. diam | I160: =IF(C160=0,"NA",IF(curve=1,pp_chv_eq_in,VLOOKUP(in_valve_size,pp_chv_cost_cl,3))) -> 177.8274995 | J160: 177.8274995 | K160: =IF(C160=0,"NA",VLOOKUP(in_valve_size,pp_chv_cost_cl,IF(ss_cat="large",4,5))) -> 20 | L160: 1 | M160: Check Valves - Influent - Polypropylene/PVC | N160: 1 | O160: 2 | P160: 3 | Q160: 1 | R160: 2 | S160: 3 | T160: 1 | U160: 2 | V160: 3 | W160: 0 | X160: 1 | Y160: 2 | Z160: 3 | AA160: 1 | AB160: 2 | AC160: 3 | AD160: 1 | AE160: 2 | AF160: 3 | AG160: 1 | AH160: 8.891374973
A161: 4.3.5 | B161: Influent - Stainless Steel | C161: =tot_in_chv -> 1 | D161: units | E161: =IF(C161=0,"NA",in_valve_size) -> 1.5 | F161: in. diam | G161: =IF(C161=0,"NA",IF(curve=1,in_valve_size,VLOOKUP(in_valve_size,ss_chv_cost_cl,2))) -> 1.5 | H161: in. diam | I161: =IF(C161=0,"NA",IF(curve=1,ss_chv_eq_in,VLOOKUP(in_valve_size,ss_chv_cost_cl,3))) -> 492.6734899 | J161: 492.6734899 | K161: =IF(C161=0,"NA",VLOOKUP(in_valve_size,ss_chv_cost_cl,IF(ss_cat="large",4,5))) -> 20 | L161: 0 | M161: Check Valves - Influent - Stainless Steel | N161: 3 | O161: 3 | P161: 1 | Q161: 3 | R161: 3 | S161: 1 | T161: 3 | U161: 3 | V161: 1 | W161: 0 | X161: 3 | Y161: 3 | Z161: 1 | AA161: 3 | AB161: 3 | AC161: 1 | AD161: 3 | AE161: 3 | AF161: 1 | AG161: 0 | AH161: 0
A162: 4.3.5 | B162: Influent - Cast Iron | C162: =tot_in_chv -> 1 | D162: units | E162: =IF(C162=0,"NA",in_valve_size) -> 1.5 | F162: in. diam | G162: =IF(C162=0,"NA",IF(curve=1,in_valve_size,VLOOKUP(in_valve_size,ci_chv_cost_cl,2))) -> 1.5 | H162: in. diam | I162: =IF(C162=0,"NA",IF(curve=1,ci_chv_eq_in,VLOOKUP(in_valve_size,ci_chv_cost_cl,3))) -> contact vendor | J162: -- | K162: =IF(C162=0,"NA",VLOOKUP(in_valve_size,ci_chv_cost_cl,IF(ss_cat="large",4,5))) -> 20 | L162: 0 | M162: Check Valves - Influent - Cast Iron | N162: 2 | O162: 1 | P162: 2 | Q162: 2 | R162: 1 | S162: 2 | T162: 2 | U162: 1 | V162: 2 | W162: 0 | X162: 2 | Y162: 1 | Z162: 2 | AA162: 2 | AB162: 1 | AC162: 2 | AD162: 2 | AE162: 1 | AF162: 2 | AG162: 0 | AH162: 0
A163: 4.3.6 | B163: Bypass - Polypropylene/PVC | C163: =IF(bp_pct>0,tot_bp_chv,0) -> 0 | D163: units | E163: =IF(bp_pct=0,"NA",bypass_valve_size) -> NA | F163: =IF(bp_pct=0," ","in. diam") ->  | G163: =IF(bp_pct=0,"NA",(IF(curve=1,bypass_valve_size,VLOOKUP(bypass_valve_size,pp_chv_cost_cl,2)))) -> NA | H163: =IF(bp_pct=0," ","in. diam") ->  | I163: =IF(bp_pct=0,"NA",(IF(curve=1,pp_chv_eq_bp,VLOOKUP(bypass_valve_size,pp_chv_cost_cl,3)))) -> NA | J163: =IF(bp_pct=0,"--",IF(I163="contact vendor","--",C163*I163)) -> -- | K163: =IF(C163=0,"NA",VLOOKUP(E163,pp_chv_cost_cl,IF(ss_cat="large",4,5))) -> NA | M163: Check Valves - Bypass - Polypropylene/PVC | N163: 1 | O163: 2 | P163: 3 | Q163: 1 | R163: 2 | S163: 3 | T163: 1 | U163: 2 | V163: 3 | W163: 0 | X163: 1 | Y163: 2 | Z163: 3 | AA163: 1 | AB163: 2 | AC163: 3 | AD163: 1 | AE163: 2 | AF163: 3 | AG163: 0 | AH163: 0
A164: 4.3.6 | B164: Bypass - Stainless Steel | C164: =IF(bp_pct>0,tot_bp_chv,0) -> 0 | D164: units | E164: =IF(bp_pct=0,"NA",bypass_valve_size) -> NA | F164: =IF(bp_pct=0," ","in. diam") ->  | G164: =IF(bp_pct=0,"NA",(IF(curve=1,bypass_valve_size,VLOOKUP(bypass_valve_size,ss_chv_cost_cl,2)))) -> NA | H164: =IF(bp_pct=0," ","in. diam") ->  | I164: =IF(bp_pct=0,"NA",(IF(curve=1,ss_chv_eq_bp,VLOOKUP(bypass_valve_size,ss_chv_cost_cl,3)))) -> NA | J164: =IF(bp_pct=0,"--",IF(I164="contact vendor","--",C164*I164)) -> -- | K164: =IF(C164=0,"NA",VLOOKUP(E164,ss_chv_cost_cl,IF(ss_cat="large",4,5))) -> NA | M164: Check Valves - Bypass - Stainless Steel | N164: 3 | O164: 3 | P164: 1 | Q164: 3 | R164: 3 | S164: 1 | T164: 3 | U164: 3 | V164: 1 | W164: 0 | X164: 3 | Y164: 3 | Z164: 1 | AA164: 3 | AB164: 3 | AC164: 1 | AD164: 3 | AE164: 3 | AF164: 1 | AG164: 0 | AH164: 0
A165: 4.3.6 | B165: Bypass - Cast Iron | C165: =IF(bp_pct>0,tot_bp_chv,0) -> 0 | D165: units | E165: =IF(bp_pct=0,"NA",bypass_valve_size) -> NA | F165: =IF(bp_pct=0," ","in. diam") ->  | G165: =IF(bp_pct=0,"NA",(IF(curve=1,bypass_valve_size,VLOOKUP(bypass_valve_size,ci_chv_cost_cl,2)))) -> NA | H165: =IF(bp_pct=0," ","in. diam") ->  | I165: =IF(bp_pct=0,"NA",(IF(curve=1,ci_chv_eq_bp,VLOOKUP(bypass_valve_size,ci_chv_cost_cl,3)))) -> NA | J165: =IF(bp_pct=0,"--",IF(I165="contact vendor","--",C165*I165)) -> -- | K165: =IF(C165=0,"NA",VLOOKUP(E165,ci_chv_cost_cl,IF(ss_cat="large",4,5))) -> NA | M165: Check Valves - Bypass - Cast Iron | N165: 2 | O165: 1 | P165: 2 | Q165: 2 | R165: 1 | S165: 2 | T165: 2 | U165: 1 | V165: 2 | W165: 0 | X165: 2 | Y165: 1 | Z165: 2 | AA165: 2 | AB165: 1 | AC165: 2 | AD165: 2 | AE165: 1 | AF165: 2 | AG165: 0 | AH165: 0
A166: 5. | B166: Pumps | AG166: 0 | AH166: 0
A167: 5.1 | B167: Booster | C167: =total_booster_pumps -> 0 | D167: units | E167: =IF(C167=0,"NA",pump_rating) -> NA | F167: =IF(C167=0,"","gpm") ->  | G167: =IF(C167=0,"NA",IF(curve=1,pump_rating,VLOOKUP(pump_rating,pump_cost_cl,2))) -> NA | H167: =IF(C167=0,"","gpm") ->  | I167: =IF(C167=0,"NA",IF(curve=1,pump_eq,VLOOKUP(pump_rating,pump_cost_cl,3))) -> NA | J167: =IF(C167=0,"--",IF(I167="contact vendor","--",C167*I167)) -> -- | K167: =IF(C167=0,"NA",VLOOKUP(pump_rating,pump_cost_cl,IF(ss_cat="large",4,5))) -> NA | M167: =$B$166&" - "&B167 -> Pumps - Booster | N167: =IF(retrofit=1,$W167*X167,IF(ISBLANK(X167),"",X167)) -> 1 | O167: 1 | P167: 1 | Q167: 1 | R167: 1 | S167: 1 | T167: 1 | U167: =IF(retrofit=1,$W167*AE167,IF(ISBLANK(AE167),"",AE167)) -> 1 | V167: 1 | W167: 0 | X167: 1 | Y167: 1 | Z167: 1 | AA167: 1 | AB167: 1 | AC167: 1 | AD167: 1 | AE167: 1 | AF167: 1 | AG167: 0 | AH167: 0
A168: 5.2 | B168: Backwash | C168: =backwash_pumps -> 0 | D168: units | E168: =IF(C168=0,"NA",back_pump_rating) -> NA | F168: =IF(C168=0,"","gpm") ->  | G168: =IF(C168=0,"NA",IF(curve=1,back_pump_rating,VLOOKUP(back_pump_rating,back_pump_cost_cl,2))) -> NA | H168: =IF(C168=0,"","gpm") ->  | I168: =IF(C168=0,"NA",IF(curve=1,pump_eq_back,VLOOKUP(back_pump_rating,back_pump_cost_cl,3))) -> NA | J168: =IF(C168=0,"--",(IF(I168="contact vendor","--",C168*I168))) -> -- | K168: =IF(C168=0,"NA",VLOOKUP(back_pump_rating,back_pump_cost_cl,IF(ss_cat="large",4,5))) -> NA | M168: =$B$166&" - "&B168 -> Pumps - Backwash | N168: 1 | O168: 1 | P168: 1 | Q168: 1 | R168: 1 | S168: 1 | T168: 1 | U168: 1 | V168: 1 | W168: 0 | X168: 1 | Y168: 1 | Z168: 1 | AA168: 1 | AB168: 1 | AC168: 1 | AD168: 1 | AE168: 1 | AF168: 1 | AG168: 0 | AH168: 0
A169: 5.3 | B169: Residuals | C169: =res_pumps -> 0 | D169: units | E169: =IF(res_pumps=0,"NA",res_pump_rating) -> NA | F169: =IF(C169=0,"","gpm") ->  | G169: =IF(res_pumps=0,"NA",IF(curve=1,res_pump_rating,VLOOKUP(res_pump_rating,pump_cost_cl,2))) -> NA | H169: =IF(C169=0,"","gpm") ->  | I169: =IF(res_pumps=0,"NA",IF(curve=1,res_pump_eq,VLOOKUP(res_pump_rating,pump_cost_cl,3))) -> NA | J169: =IF(OR(C169=0,I169="contact vendor"),"--",C169*I169) -> -- | K169: =IF(res_pumps=0,"NA",VLOOKUP(res_pump_rating,pump_cost_cl,IF(ss_cat="large",4,5))) -> NA | M169: =$B$166&" - "&B169 -> Pumps - Residuals | N169: 1 | O169: 1 | P169: 1 | Q169: 1 | R169: 1 | S169: 1 | T169: 1 | U169: 1 | V169: 1 | W169: 0 | X169: 1 | Y169: 1 | Z169: 1 | AA169: 1 | AB169: 1 | AC169: 1 | AD169: 1 | AE169: 1 | AF169: 1 | AG169: 0 | AH169: 0
A170: 5.4 | B170: Ferric Chloride Metering | AG170: =IF(ISERROR(K170*L170),0,IF(K170<1,0,L170)) -> 0 | AH170: =IF(AG170,J170/K170,0) -> 0
A171: 5.4.1 | B171: PVC - Motor Driven | C171: =cm_pumps_coag -> 0 | D171: units | E171: =IF(C171=0,"NA",IF(C171=0,"NA",cm_pump_rating_coag)) -> NA | F171: =IF(C171=0,"","gph") ->  | G171: =IF(C171=0,"NA",IF(curve=1,cm_pump_rating_coag,VLOOKUP(cm_pump_rating_coag,pvc_mmpump_cost_cl,2))) -> NA | H171: =IF(C171=0,"","gph") ->  | I171: =IF(C171=0,"NA",IF(curve=1,pvc_coag_mmpump_eq,VLOOKUP(cm_pump_rating_coag,pvc_mmpump_cost_cl,3))) -> NA | J171: =IF(C171=0,"--",(IF(I171="contact vendor","--",C171*I171))) -> -- | K171: =IF(C171=0,"NA",VLOOKUP(cm_pump_rating_coag,pvc_mmpump_cost_cl,IF(ss_cat="large",4,5))) -> NA | M171: =$B$166&" - "&$B$170&" - "&B171 -> Pumps - Ferric Chloride Metering - PVC - Motor Driven | N171: =IF(retrofit=1,$W171*X171,IF(ISBLANK(X171),"",X171)) -> 2 | O171: =IF(retrofit=1,$W171*Y171,IF(ISBLANK(Y171),"",Y171)) -> 2 | P171: =IF(retrofit=1,$W171*Z171,IF(ISBLANK(Z171),"",Z171)) -> 1 | Q171: =IF(retrofit=1,$W171*AA171,IF(ISBLANK(AA171),"",AA171)) -> 2 | R171: =IF(retrofit=1,$W171*AB171,IF(ISBLANK(AB171),"",AB171)) -> 2 | S171: =IF(retrofit=1,$W171*AC171,IF(ISBLANK(AC171),"",AC171)) -> 1 | T171: =IF(retrofit=1,$W171*AD171,IF(ISBLANK(AD171),"",AD171)) -> 2 | U171: =IF(retrofit=1,$W171*AE171,IF(ISBLANK(AE171),"",AE171)) -> 2 | V171: =IF(retrofit=1,$W171*AF171,IF(ISBLANK(AF171),"",AF171)) -> 1 | W171: 0 | X171: 2 | Y171: 2 | Z171: 1 | AA171: 2 | AB171: 2 | AC171: 1 | AD171: 2 | AE171: 2 | AF171: 1 | AG171: 0 | AH171: 0
A172: 5.4.1 | B172: PVC - Electric | C172: =cm_pumps_coag -> 0 | D172: units | E172: =IF(C172=0,"NA",IF(C172=0,"NA",cm_pump_rating_coag)) -> NA | F172: =IF(C172=0,"","gph") ->  | G172: =IF(C172=0,"NA",IF(curve=1,cm_pump_rating_coag,VLOOKUP(cm_pump_rating_coag,pvc_empump_cost_cl,2))) -> NA | H172: =IF(C172=0,"","gph") ->  | I172: =IF(C172=0,"NA",IF(curve=1,pvc_coag_empump_eq,VLOOKUP(cm_pump_rating_coag,pvc_empump_cost_cl,3))) -> NA | J172: =IF(C172=0,"--",(IF(I172="contact vendor","--",C172*I172))) -> -- | K172: =IF(C172=0,"NA",VLOOKUP(cm_pump_rating_coag,pvc_empump_cost_cl,IF(ss_cat="large",4,5))) -> NA | M172: =$B$166&" - "&$B$170&" - "&B172 -> Pumps - Ferric Chloride Metering - PVC - Electric | N172: 1 | O172: 1 | P172: 2 | Q172: 1 | R172: 1 | S172: 2 | T172: 1 | U172: 1 | V172: 2 | W172: 0 | X172: 1 | Y172: 1 | Z172: 2 | AA172: 1 | AB172: 1 | AC172: 2 | AD172: 1 | AE172: 1 | AF172: 2 | AG172: 0 | AH172: 0
A173: 5.5 | B173: Polymer Metering | AG173: 0 | AH173: 0
A174: 5.5.1 | B174: PVC - Motor Driven | C174: =cm_pumps_polymer -> 0 | D174: units | E174: =IF(C174=0,"NA",IF(C174=0,"NA",cm_pump_rating_polymer)) -> NA | F174: =IF(C174=0,"","gph") ->  | G174: =IF(C174=0,"NA",IF(curve=1,cm_pump_rating_polymer,VLOOKUP(cm_pump_rating_polymer,pvc_mmpump_cost_cl,2))) -> NA | H174: =IF(C174=0,"","gph") ->  | I174: =IF(C174=0,"NA",IF(curve=1,pvc_polymer_mmpump_eq,VLOOKUP(cm_pump_rating_polymer,pvc_mmpump_cost_cl,3))) -> NA | J174: =IF(C174=0,"--",(IF(I174="contact vendor","--",C174*I174))) -> -- | K174: =IF(C174=0,"NA",VLOOKUP(cm_pump_rating_polymer,pvc_mmpump_cost_cl,IF(ss_cat="large",4,5))) -> NA | M174: =$B$166&" - "&$B$173&" - "&B174 -> Pumps - Polymer Metering - PVC - Motor Driven | N174: =IF(retrofit=1,$W174*X174,IF(ISBLANK(X174),"",X174)) -> 3 | O174: 3 | P174: 2 | Q174: 4 | R174: 4 | S174: 1 | T174: 4 | U174: 4 | V174: 1 | W174: 0 | X174: 3 | Y174: 3 | Z174: 2 | AA174: 4 | AB174: 4 | AC174: 1 | AD174: 4 | AE174: 4 | AF174: 1 | AG174: 0 | AH174: 0
A175: 5.5.1 | B175: Stainless Steel - Motor Driven | C175: =cm_pumps_polymer -> 0 | D175: units | E175: =IF(C175=0,"NA",IF(C175=0,"NA",cm_pump_rating_polymer)) -> NA | F175: =IF(C175=0,"","gph") ->  | G175: =IF(C175=0,"NA",IF(curve=1,cm_pump_rating_polymer,VLOOKUP(cm_pump_rating_polymer,ss_mmpump_cost_cl,2))) -> NA | H175: =IF(C175=0,"","gph") ->  | I175: =IF(C175=0,"NA",IF(curve=1,ss_polymer_mmpump_eq,VLOOKUP(cm_pump_rating_polymer,ss_mmpump_cost_cl,3))) -> NA | J175: =IF(C175=0,"--",(IF(I175="contact vendor","--",C175*I175))) -> -- | K175: =IF(C175=0,"NA",VLOOKUP(cm_pump_rating_polymer,ss_mmpump_cost_cl,IF(ss_cat="large",4,5))) -> NA | M175: =$B$166&" - "&$B$173&" - "&B175 -> Pumps - Polymer Metering - Stainless Steel - Motor Driven | N175: 4 | O175: 4 | P175: 1 | Q175: 3 | R175: 3 | S175: 2 | T175: 3 | U175: 3 | V175: 2 | W175: 0 | X175: 4 | Y175: 4 | Z175: 1 | AA175: 3 | AB175: 3 | AC175: 2 | AD175: 3 | AE175: 3 | AF175: 2 | AG175: 0 | AH175: 0
A176: 5.5.1 | B176: PVC - Electric | C176: =cm_pumps_polymer -> 0 | D176: units | E176: =IF(C176=0,"NA",IF(C176=0,"NA",cm_pump_rating_polymer)) -> NA | F176: =IF(C176=0,"","gph") ->  | G176: =IF(C176=0,"NA",IF(curve=1,cm_pump_rating_polymer,VLOOKUP(cm_pump_rating_polymer,pvc_empump_cost_cl,2))) -> NA | H176: =IF(C176=0,"","gph") ->  | I176: =IF(C176=0,"NA",IF(curve=1,pvc_polymer_empump_eq,VLOOKUP(cm_pump_rating_polymer,pvc_empump_cost_cl,3))) -> NA | J176: =IF(C176=0,"--",(IF(I176="contact vendor","--",C176*I176))) -> -- | K176: =IF(C176=0,"NA",VLOOKUP(cm_pump_rating_polymer,pvc_empump_cost_cl,IF(ss_cat="large",4,5))) -> NA | M176: =$B$166&" - "&$B$173&" - "&B176 -> Pumps - Polymer Metering - PVC - Electric | N176: 1 | O176: 2 | P176: 4 | Q176: 1 | R176: 2 | S176: 4 | T176: 1 | U176: 2 | V176: 4 | W176: 0 | X176: 1 | Y176: 2 | Z176: 4 | AA176: 1 | AB176: 2 | AC176: 4 | AD176: 1 | AE176: 2 | AF176: 4 | AG176: 0 | AH176: 0
A177: 5.5.1 | B177: Stainless Steel - Electric | C177: =cm_pumps_polymer -> 0 | D177: units | E177: =IF(C177=0,"NA",IF(C177=0,"NA",cm_pump_rating_polymer)) -> NA | F177: =IF(C177=0,"","gph") ->  | G177: =IF(C177=0,"NA",IF(curve=1,cm_pump_rating_polymer,VLOOKUP(cm_pump_rating_polymer,ss_empump_cost_cl,2))) -> NA | H177: =IF(C177=0,"","gph") ->  | I177: =IF(C177=0,"NA",IF(curve=1,ss_polymer_empump_eq,VLOOKUP(cm_pump_rating_polymer,ss_empump_cost_cl,3))) -> NA | J177: =IF(C177=0,"--",(IF(I177="contact vendor","--",C177*I177))) -> -- | K177: =IF(C177=0,"NA",VLOOKUP(cm_pump_rating_polymer,ss_empump_cost_cl,IF(ss_cat="large",4,5))) -> NA | M177: =$B$166&" - "&$B$173&" - "&B177 -> Pumps - Polymer Metering - Stainless Steel - Electric | N177: 2 | O177: 1 | P177: 3 | Q177: 2 | R177: 1 | S177: 3 | T177: 2 | U177: 1 | V177: 3 | W177: 0 | X177: 2 | Y177: 1 | Z177: 3 | AA177: 2 | AB177: 1 | AC177: 3 | AD177: 2 | AE177: 1 | AF177: 3 | AG177: 0 | AH177: 0
A178: 6. | B178: Instrumentation | AG178: 0 | AH178: 0
A179: 6.1 | B179: Flow Meters - Influent and Treated Water | AG179: 0 | AH179: 0
A180: 6.1.1 | B180: Orifice Plate | C180: =tot_fm_in -> 1 | D180: units | E180: =IF(C180=0,"NA",in_meter_size) -> 1.5 | F180: =IF(C180=0,"","in. diam") -> in. diam | G180: =IF(C180=0,"NA",IF(curve=1,in_meter_size,VLOOKUP(in_meter_size,op_fm_cost_cl,2))) -> 1.5 | H180: =IF(C180=0,"","in. diam") -> in. diam | I180: =IF(C180=0,"NA",IF(curve=1,op_fm_eq_in,VLOOKUP(in_meter_size,op_fm_cost_cl,3))) -> 1481.25862 | J180: =IF(OR(C180=0,I180="contact vendor"),"--",C180*I180) -> 1481.25862 | K180: =IF(C180=0,"NA",VLOOKUP(in_meter_size,op_fm_cost_cl,IF(ss_cat="large",4,5))) -> 14 | L180: 0 | M180: =$B$178&" - "&$B$179&" - "&B180 -> Instrumentation - Flow Meters - Influent and Treated Water - Orifice Plate | N180: =IF(retrofit=1,$W180*X180,IF(ISBLANK(X180),"",X180)) -> 3 | O180: 4 | P180: 4 | Q180: 3 | R180: 4 | S180: 4 | T180: 3 | U180: =IF(retrofit=1,$W180*AE180,IF(ISBLANK(AE180),"",AE180)) -> 3 | V180: 4 | W180: 0 | X180: 3 | Y180: 4 | Z180: 4 | AA180: 3 | AB180: 4 | AC180: 4 | AD180: 3 | AE180: 3 | AF180: 4 | AG180: 0 | AH180: 0
A181: 6.1.1 | B181: Propeller | C181: =tot_fm_in -> 1 | D181: units | E181: =IF(C181=0,"NA",in_meter_size) -> 1.5 | F181: =IF(C181=0,"","in. diam") -> in. diam | G181: =IF(C181=0,"NA",IF(curve=1,in_meter_size,VLOOKUP(in_meter_size,prop_fm_cost_cl,2))) -> 1.5 | H181: =IF(C181=0,"","in. diam") -> in. diam | I181: =IF(C181=0,"NA",IF(curve=1,prop_fm_eq_in,VLOOKUP(in_meter_size,prop_fm_cost_cl,3))) -> 2349.859753 | J181: =IF(OR(C181=0,I181="contact vendor"),"--",C181*I181) -> 2349.859753 | K181: =IF(C181=0,"NA",VLOOKUP(in_meter_size,prop_fm_cost_cl,IF(ss_cat="large",4,5))) -> 14 | L181: 1 | M181: =$B$178&" - "&$B$179&" - "&B181 -> Instrumentation - Flow Meters - Influent and Treated Water - Propeller | N181: 1 | O181: 2 | P181: 3 | Q181: 1 | R181: 2 | S181: 3 | T181: 4 | U181: 4 | V181: 2 | W181: 0 | X181: 1 | Y181: 2 | Z181: 3 | AA181: 1 | AB181: 2 | AC181: 3 | AD181: 4 | AE181: 4 | AF181: 2 | AG181: 1 | AH181: 167.8471252
A182: 6.1.1 | B182: Venturi | C182: =tot_fm_in -> 1 | D182: units | E182: =IF(C182=0,"NA",in_meter_size) -> 1.5 | F182: =IF(C182=0,"","in. diam") -> in. diam | G182: =IF(C182=0,"NA",IF(curve=1,in_meter_size,VLOOKUP(in_meter_size,ven_fm_cost_cl,2))) -> 1.5 | H182: =IF(C182=0,"","in. diam") -> in. diam | I182: =IF(C182=0,"NA",IF(curve=1,ven_fm_eq_in,VLOOKUP(in_meter_size,ven_fm_cost_cl,3))) -> 2229.880831 | J182: =IF(OR(C182=0,I182="contact vendor"),"--",C182*I182) -> 2229.880831 | K182: =IF(C182=0,"NA",VLOOKUP(in_meter_size,ven_fm_cost_cl,IF(ss_cat="large",4,5))) -> 14 | L182: 0 | M182: =$B$178&" - "&$B$179&" - "&B182 -> Instrumentation - Flow Meters - Influent and Treated Water - Venturi | N182: 2 | O182: 1 | P182: 2 | Q182: 2 | R182: 1 | S182: 2 | T182: 1 | U182: 2 | V182: 3 | W182: 0 | X182: 2 | Y182: 1 | Z182: 2 | AA182: 2 | AB182: 1 | AC182: 2 | AD182: 1 | AE182: 2 | AF182: 3 | AG182: =IF(ISERROR(K182*L182),0,IF(K182<1,0,L182)) -> 0 | AH182: =IF(AG182,J182/K182,0) -> 0
A183: 6.1.1 | B183: Magnetic | C183: =tot_fm_in -> 1 | D183: units | E183: =IF(C183=0,"NA",in_meter_size) -> 1.5 | F183: =IF(C183=0,"","in. diam") -> in. diam | G183: =IF(C183=0,"NA",IF(curve=1,in_meter_size,VLOOKUP(in_meter_size,mag_fm_cost_cl,2))) -> 1.5 | H183: =IF(C183=0,"","in. diam") -> in. diam | I183: =IF(C183=0,"NA",IF(curve=1,mag_fm_eq_in,VLOOKUP(in_meter_size,mag_fm_cost_cl,3))) -> 3844.624961 | J183: =IF(OR(C183=0,I183="contact vendor"),"--",C183*I183) -> 3844.624961 | K183: =IF(C183=0,"NA",VLOOKUP(in_meter_size,mag_fm_cost_cl,IF(ss_cat="large",4,5))) -> 14 | L183: 0 | M183: =$B$178&" - "&$B$179&" - "&B183 -> Instrumentation - Flow Meters - Influent and Treated Water - Magnetic | N183: 4 | O183: 3 | P183: 1 | Q183: 4 | R183: 3 | S183: 1 | T183: 2 | U183: 1 | V183: 1 | W183: 0 | X183: 4 | Y183: 3 | Z183: 1 | AA183: 4 | AB183: 3 | AC183: 1 | AD183: 2 | AE183: 1 | AF183: 1 | AG183: 0 | AH183: 0
A184: 6.2 | B184: Flow Meters - Process | AG184: 0 | AH184: 0
A185: 6.2.1 | B185: Orifice Plate | C185: =tot_fm_proc -> 0 | D185: units | E185: =IF(C185=0,"NA",proc_meter_size) -> NA | F185: =IF(C185=0,"","in. diam") ->  | G185: =IF(C185=0,"NA",IF(curve=1,proc_meter_size,VLOOKUP(proc_meter_size,op_fm_cost_cl,2))) -> NA | H185: =IF(C185=0,"","in. diam") ->  | I185: =IF(C185=0,"NA",IF(curve=1,op_fm_eq_proc,VLOOKUP(proc_meter_size,op_fm_cost_cl,3))) -> NA | J185: =IF(OR(C185=0,I185="contact vendor"),"--",C185*I185) -> -- | K185: =IF(C185=0,"NA",VLOOKUP(proc_meter_size,op_fm_cost_cl,IF(ss_cat="large",4,5))) -> NA | M185: =$B$178&" - "&$B$184&" - "&B185 -> Instrumentation - Flow Meters - Process - Orifice Plate | N185: =IF(retrofit=1,$W185*X185,IF(ISBLANK(X185),"",X185)) -> 3 | O185: 4 | P185: 4 | Q185: 3 | R185: 4 | S185: 4 | T185: 3 | U185: =IF(retrofit=1,$W185*AE185,IF(ISBLANK(AE185),"",AE185)) -> 3 | V185: 4 | W185: 0 | X185: 3 | Y185: 4 | Z185: 4 | AA185: 3 | AB185: 4 | AC185: 4 | AD185: 3 | AE185: 3 | AF185: 4 | AG185: 0 | AH185: 0
A186: 6.2.1 | B186: Propeller | C186: =tot_fm_proc -> 0 | D186: units | E186: =IF(C186=0,"NA",proc_meter_size) -> NA | F186: =IF(C186=0,"","in. diam") ->  | G186: =IF(C186=0,"NA",IF(curve=1,proc_meter_size,VLOOKUP(proc_meter_size,prop_fm_cost_cl,2))) -> NA | H186: =IF(C186=0,"","in. diam") ->  | I186: =IF(C186=0,"NA",IF(curve=1,prop_fm_eq_proc,VLOOKUP(proc_meter_size,prop_fm_cost_cl,3))) -> NA | J186: =IF(OR(C186=0,I186="contact vendor"),"--",C186*I186) -> -- | K186: =IF(C186=0,"NA",VLOOKUP(proc_meter_size,prop_fm_cost_cl,IF(ss_cat="large",4,5))) -> NA | M186: =$B$178&" - "&$B$184&" - "&B186 -> Instrumentation - Flow Meters - Process - Propeller | N186: 1 | O186: 2 | P186: 3 | Q186: 1 | R186: 2 | S186: 3 | T186: 4 | U186: 4 | V186: 2 | W186: 0 | X186: 1 | Y186: 2 | Z186: 3 | AA186: 1 | AB186: 2 | AC186: 3 | AD186: 4 | AE186: 4 | AF186: 2 | AG186: 0 | AH186: 0
A187: 6.2.1 | B187: Venturi | C187: =tot_fm_proc -> 0 | D187: units | E187: =IF(C187=0,"NA",proc_meter_size) -> NA | F187: =IF(C187=0,"","in. diam") ->  | G187: =IF(C187=0,"NA",IF(curve=1,proc_meter_size,VLOOKUP(proc_meter_size,ven_fm_cost_cl,2))) -> NA | H187: =IF(C187=0,"","in. diam") ->  | I187: =IF(C187=0,"NA",IF(curve=1,ven_fm_eq_proc,VLOOKUP(proc_meter_size,ven_fm_cost_cl,3))) -> NA | J187: =IF(OR(C187=0,I187="contact vendor"),"--",C187*I187) -> -- | K187: =IF(C187=0,"NA",VLOOKUP(proc_meter_size,ven_fm_cost_cl,IF(ss_cat="large",4,5))) -> NA | M187: =$B$178&" - "&$B$184&" - "&B187 -> Instrumentation - Flow Meters - Process - Venturi | N187: 2 | O187: 1 | P187: 2 | Q187: 2 | R187: 1 | S187: 2 | T187: 1 | U187: 2 | V187: 3 | W187: 0 | X187: 2 | Y187: 1 | Z187: 2 | AA187: 2 | AB187: 1 | AC187: 2 | AD187: 1 | AE187: 2 | AF187: 3 | AG187: 0 | AH187: 0
A188: 6.2.1 | B188: Magnetic | C188: =tot_fm_proc -> 0 | D188: units | E188: =IF(C188=0,"NA",proc_meter_size) -> NA | F188: =IF(C188=0,"","in. diam") ->  | G188: =IF(C188=0,"NA",IF(curve=1,proc_meter_size,VLOOKUP(proc_meter_size,mag_fm_cost_cl,2))) -> NA | H188: =IF(C188=0,"","in. diam") ->  | I188: =IF(C188=0,"NA",IF(curve=1,mag_fm_eq_proc,VLOOKUP(proc_meter_size,mag_fm_cost_cl,3))) -> NA | J188: =IF(OR(C188=0,I188="contact vendor"),"--",C188*I188) -> -- | K188: =IF(C188=0,"NA",VLOOKUP(proc_meter_size,mag_fm_cost_cl,IF(ss_cat="large",4,5))) -> NA | M188: =$B$178&" - "&$B$184&" - "&B188 -> Instrumentation - Flow Meters - Process - Magnetic | N188: 4 | O188: 3 | P188: 1 | Q188: 4 | R188: 3 | S188: 1 | T188: 2 | U188: 1 | V188: 1 | W188: 0 | X188: 4 | Y188: 3 | Z188: 1 | AA188: 4 | AB188: 3 | AC188: 1 | AD188: 2 | AE188: 1 | AF188: 1 | AG188: 0 | AH188: 0
A189: 6.3 | B189: Flow Meters - Backwash | AG189: 0 | AH189: 0
A190: 6.3.1 | B190: Orifice Plate | C190: =tot_fm_back -> 1 | D190: units | E190: =back_meter_size -> 2 | F190: in. diam | G190: =IF(curve=1,back_meter_size,VLOOKUP(back_meter_size,op_fm_cost_cl,2)) -> 2 | H190: in. diam | I190: =IF(curve=1,op_fm_eq_back,VLOOKUP(back_meter_size,op_fm_cost_cl,3)) -> 1731.166936 | J190: =IF(I190="contact vendor","--",C190*I190) -> 1731.166936 | K190: =VLOOKUP(back_meter_size,op_fm_cost_cl,IF(ss_cat="large",4,5)) -> 14 | L190: 0 | M190: =$B$178&" - "&$B$189&" - "&B190 -> Instrumentation - Flow Meters - Backwash - Orifice Plate | N190: =IF(retrofit=1,$W190*X190,IF(ISBLANK(X190),"",X190)) -> 3 | O190: 4 | P190: 4 | Q190: 3 | R190: 4 | S190: 4 | T190: 3 | U190: =IF(retrofit=1,$W190*AE190,IF(ISBLANK(AE190),"",AE190)) -> 3 | V190: 4 | W190: 0 | X190: 3 | Y190: 4 | Z190: 4 | AA190: 3 | AB190: 4 | AC190: 4 | AD190: 3 | AE190: 3 | AF190: 4 | AG190: 0 | AH190: 0
A191: 6.3.1 | B191: Propeller | C191: =tot_fm_back -> 1 | D191: units | E191: =back_meter_size -> 2 | F191: in. diam | G191: =IF(curve=1,back_meter_size,VLOOKUP(back_meter_size,prop_fm_cost_cl,2)) -> 2 | H191: in. diam | I191: =IF(curve=1,prop_fm_eq_back,VLOOKUP(back_meter_size,prop_fm_cost_cl,3)) -> 2615.490391 | J191: =IF(I191="contact vendor","--",C191*I191) -> 2615.490391 | K191: =VLOOKUP(back_meter_size,prop_fm_cost_cl,IF(ss_cat="large",4,5)) -> 14 | L191: 1 | M191: =$B$178&" - "&$B$189&" - "&B191 -> Instrumentation - Flow Meters - Backwash - Propeller | N191: 1 | O191: 2 | P191: 3 | Q191: 1 | R191: 2 | S191: 3 | T191: 4 | U191: 4 | V191: 2 | W191: 0 | X191: 1 | Y191: 2 | Z191: 3 | AA191: 1 | AB191: 2 | AC191: 3 | AD191: 4 | AE191: 4 | AF191: 2 | AG191: 1 | AH191: 186.8207422
A192: 6.3.1 | B192: Venturi | C192: =tot_fm_back -> 1 | D192: units | E192: =back_meter_size -> 2 | F192: in. diam | G192: =IF(curve=1,back_meter_size,VLOOKUP(back_meter_size,ven_fm_cost_cl,2)) -> 2 | H192: in. diam | I192: =IF(curve=1,ven_fm_eq_back,VLOOKUP(back_meter_size,ven_fm_cost_cl,3)) -> 2310.088031 | J192: =IF(I192="contact vendor","--",C192*I192) -> 2310.088031 | K192: =VLOOKUP(back_meter_size,ven_fm_cost_cl,IF(ss_cat="large",4,5)) -> 14 | L192: 0 | M192: =$B$178&" - "&$B$189&" - "&B192 -> Instrumentation - Flow Meters - Backwash - Venturi | N192: 2 | O192: 1 | P192: 2 | Q192: 2 | R192: 1 | S192: 2 | T192: 1 | U192: 2 | V192: 3 | W192: 0 | X192: 2 | Y192: 1 | Z192: 2 | AA192: 2 | AB192: 1 | AC192: 2 | AD192: 1 | AE192: 2 | AF192: 3 | AG192: 0 | AH192: 0
A193: 6.3.1 | B193: Magnetic | C193: =tot_fm_back -> 1 | D193: units | E193: =back_meter_size -> 2 | F193: in. diam | G193: =IF(curve=1,back_meter_size,VLOOKUP(back_meter_size,mag_fm_cost_cl,2)) -> 2 | H193: in. diam | I193: =IF(curve=1,mag_fm_eq_back,VLOOKUP(back_meter_size,mag_fm_cost_cl,3)) -> 4095.649202 | J193: =IF(I193="contact vendor","--",C193*I193) -> 4095.649202 | K193: =VLOOKUP(back_meter_size,mag_fm_cost_cl,IF(ss_cat="large",4,5)) -> 14 | L193: 0 | M193: =$B$178&" - "&$B$189&" - "&B193 -> Instrumentation - Flow Meters - Backwash - Magnetic | N193: 4 | O193: 3 | P193: 1 | Q193: 4 | R193: 3 | S193: 1 | T193: 2 | U193: 1 | V193: 1 | W193: 0 | X193: 4 | Y193: 3 | Z193: 1 | AA193: 4 | AB193: 3 | AC193: 1 | AD193: 2 | AE193: 1 | AF193: 1 | AG193: 0 | AH193: 0
A194: 6.4 | B194: Flow Meters - Residuals | AG194: 0 | AH194: 0
A195: 6.4.1 | B195: Orifice Plate | C195: =tot_fm_res -> 1 | D195: units | E195: =res_meter_size -> 2 | F195: in. diam | G195: =IF(curve=1,res_meter_size,VLOOKUP(res_meter_size,op_fm_cost_cl,2)) -> 2 | H195: in. diam | I195: =IF(curve=1,op_fm_eq_res,VLOOKUP(res_meter_size,op_fm_cost_cl,3)) -> 1731.166936 | J195: =IF(I195="contact vendor","--",C195*I195) -> 1731.166936 | K195: =VLOOKUP(res_meter_size,op_fm_cost_cl,IF(ss_cat="large",4,5)) -> 14 | L195: 0 | M195: =$B$178&" - "&$B$194&" - "&B195 -> Instrumentation - Flow Meters - Residuals - Orifice Plate | N195: =IF(retrofit=1,$W195*X195,IF(ISBLANK(X195),"",X195)) -> 3 | O195: =IF(retrofit=1,$W195*Y195,IF(ISBLANK(Y195),"",Y195)) -> 4 | P195: =IF(retrofit=1,$W195*Z195,IF(ISBLANK(Z195),"",Z195)) -> 4 | Q195: =IF(retrofit=1,$W195*AA195,IF(ISBLANK(AA195),"",AA195)) -> 3 | R195: =IF(retrofit=1,$W195*AB195,IF(ISBLANK(AB195),"",AB195)) -> 4 | S195: =IF(retrofit=1,$W195*AC195,IF(ISBLANK(AC195),"",AC195)) -> 4 | T195: =IF(retrofit=1,$W195*AD195,IF(ISBLANK(AD195),"",AD195)) -> 3 | U195: =IF(retrofit=1,$W195*AE195,IF(ISBLANK(AE195),"",AE195)) -> 3 | V195: =IF(retrofit=1,$W195*AF195,IF(ISBLANK(AF195),"",AF195)) -> 4 | W195: 0 | X195: 3 | Y195: 4 | Z195: 4 | AA195: 3 | AB195: 4 | AC195: 4 | AD195: 3 | AE195: 3 | AF195: 4 | AG195: 0 | AH195: 0
A196: 6.4.1 | B196: Propeller | C196: =tot_fm_res -> 1 | D196: units | E196: =res_meter_size -> 2 | F196: in. diam | G196: =IF(curve=1,res_meter_size,VLOOKUP(res_meter_size,prop_fm_cost_cl,2)) -> 2 | H196: in. diam | I196: =IF(curve=1,prop_fm_eq_res,VLOOKUP(res_meter_size,prop_fm_cost_cl,3)) -> 2615.490391 | J196: =IF(I196="contact vendor","--",C196*I196) -> 2615.490391 | K196: =VLOOKUP(res_meter_size,prop_fm_cost_cl,IF(ss_cat="large",4,5)) -> 14 | L196: 1 | M196: =$B$178&" - "&$B$194&" - "&B196 -> Instrumentation - Flow Meters - Residuals - Propeller | N196: 1 | O196: 2 | P196: 3 | Q196: 1 | R196: 2 | S196: 3 | T196: 4 | U196: 4 | V196: 2 | W196: 0 | X196: 1 | Y196: 2 | Z196: 3 | AA196: 1 | AB196: 2 | AC196: 3 | AD196: 4 | AE196: 4 | AF196: 2 | AG196: 1 | AH196: 186.8207422
A197: 6.4.1 | B197: Venturi | C197: =tot_fm_res -> 1 | D197: units | E197: =res_meter_size -> 2 | F197: in. diam | G197: =IF(curve=1,res_meter_size,VLOOKUP(res_meter_size,ven_fm_cost_cl,2)) -> 2 | H197: in. diam | I197: =IF(curve=1,ven_fm_eq_res,VLOOKUP(res_meter_size,ven_fm_cost_cl,3)) -> 2310.088031 | J197: =IF(I197="contact vendor","--",C197*I197) -> 2310.088031 | K197: =VLOOKUP(res_meter_size,ven_fm_cost_cl,IF(ss_cat="large",4,5)) -> 14 | L197: 0 | M197: =$B$178&" - "&$B$194&" - "&B197 -> Instrumentation - Flow Meters - Residuals - Venturi | N197: 2 | O197: 1 | P197: 2 | Q197: 2 | R197: 1 | S197: 2 | T197: 1 | U197: 2 | V197: 3 | W197: 0 | X197: 2 | Y197: 1 | Z197: 2 | AA197: 2 | AB197: 1 | AC197: 2 | AD197: 1 | AE197: 2 | AF197: 3 | AG197: 0 | AH197: 0
A198: 6.4.1 | B198: Magnetic | C198: =tot_fm_res -> 1 | D198: units | E198: =res_meter_size -> 2 | F198: in. diam | G198: =IF(curve=1,res_meter_size,VLOOKUP(res_meter_size,mag_fm_cost_cl,2)) -> 2 | H198: in. diam | I198: =IF(curve=1,mag_fm_eq_res,VLOOKUP(res_meter_size,mag_fm_cost_cl,3)) -> 4095.649202 | J198: =IF(I198="contact vendor","--",C198*I198) -> 4095.649202 | K198: =VLOOKUP(res_meter_size,mag_fm_cost_cl,IF(ss_cat="large",4,5)) -> 14 | L198: 0 | M198: =$B$178&" - "&$B$194&" - "&B198 -> Instrumentation - Flow Meters - Residuals - Magnetic | N198: 4 | O198: 3 | P198: 1 | Q198: 4 | R198: 3 | S198: 1 | T198: 2 | U198: 1 | V198: 1 | W198: 0 | X198: 4 | Y198: 3 | Z198: 1 | AA198: 4 | AB198: 3 | AC198: 1 | AD198: 2 | AE198: 1 | AF198: 1 | AG198: 0 | AH198: 0
A199: 6.5 | B199: Level Switches/Alarms (for vessels) | C199: =tot_level_switch -> 0 | D199: units | E199: NA | G199: NA | I199: =IF(C199=0,"NA",VLOOKUP(0,alarm_cost_cl,3)) -> NA | J199: =IF(C199=0,"--",IF(I199="contact vendor","--",C199*I199)) -> -- | K199: =IF(C199=0,"NA",VLOOKUP(0,alarm_cost_cl,IF(ss_cat="large",4,5))) -> NA | M199: =B199 -> Level Switches/Alarms (for vessels) | N199: 1 | O199: 1 | P199: 1 | Q199: 1 | R199: 1 | S199: 1 | T199: 1 | U199: 1 | V199: 1 | W199: 0 | X199: 1 | Y199: 1 | Z199: 1 | AA199: 1 | AB199: 1 | AC199: 1 | AD199: 1 | AE199: 1 | AF199: 1 | AG199: 0 | AH199: 0
A200: 6.6 | B200: High/Low Alarms (for backwash tanks) | C200: =tot_back_alarm -> 0 | D200: units | E200: NA | G200: NA | I200: =IF(C200=0,"NA",VLOOKUP(0,alarm_cost_cl,3)) -> NA | J200: =IF(OR(I200="contact vendor",I200="NA"),"--",C200*I200) -> -- | K200: =IF(C200=0,"NA",VLOOKUP(0,alarm_cost_cl,IF(ss_cat="large",4,5))) -> NA | M200: High/Low Alarms (for backwash tanks) | N200: 1 | O200: 1 | P200: 1 | Q200: 1 | R200: 1 | S200: 1 | T200: 1 | U200: 1 | V200: 1 | W200: 0 | X200: 1 | Y200: 1 | Z200: 1 | AA200: 1 | AB200: 1 | AC200: 1 | AD200: 1 | AE200: 1 | AF200: 1 | AG200: 0 | AH200: 0
A201: 6.7 | B201: High/Low Alarm (for holding tanks) | C201: =tot_res_alarm -> 0 | D201: units | E201: NA | G201: NA | I201: =IF(C201=0,"NA",VLOOKUP(0,alarm_cost_cl,3)) -> NA | J201: =IF(OR(I201="contact vendor",I201="NA"),"--",C201*I201) -> -- | K201: =IF(C201=0,"NA",VLOOKUP(0,alarm_cost_cl,IF(ss_cat="large",4,5))) -> NA | M201: =B201 -> High/Low Alarm (for holding tanks) | N201: 1 | O201: 1 | P201: 1 | Q201: 1 | R201: 1 | S201: 1 | T201: 1 | U201: 1 | V201: 1 | W201: 0 | X201: 1 | Y201: 1 | Z201: 1 | AA201: 1 | AB201: 1 | AC201: 1 | AD201: 1 | AE201: 1 | AF201: 1 | AG201: 0 | AH201: 0
... 232 more rows

Sheet Critical Design Assumptions
A1: Default Critical Design Assumptions
A2: Users may change any of the cells in the Value column; cells in gold are most important and may vary based on contaminant treated and site-specific conditions
A4: Assumption | B4: Range Name | C4: Value | D4: Units | E4: Guidance
A5: Cost estimating method | B5: curve | C5: 1 | D5: <-- enter 1 to use cost equations, leave blank to use lookup tables for component costs | E5: Keeping this assumption with a value of 1 is strongly recommended; the cost equations method is more appropriate for national cost estimating and will be more accurate for nearly all user-specified designs
A6: Minimum average flow as percentage of design | B6: min_avg_flow | C6: 0.1 | E6: The minimum ratio of average flow to design flow. If the ratio falls below this value, it will trigger a warning on the INPUT sheet. If this value is zero, no minimum is enforced.
A8: GAC Contactor Design (both system types)
A9: Number of redundant vessels for small systems with only one vessel | B9: NRD_small_1 | C9: 1 | D9: units | E9: If a design includes only one operating vessel, there should be at least one additional vessel
A10: Number of redundant vessels for small systems with multiple vessels | B10: NRD_small | C10: 0 | D10: units | E10: Small systems can operate at reduced capacity while one vessel is down for backwash, if there are multiple vessels
A11: Carbon expansion during backwash | B11: bed_expansion | C11: 0.5 | E11: Suppliers may provide specific data for individual GAC media
A12: Loading rate minimum | B12: load_min | C12: 0.5 | D12: gpm/square ft | E12: Hydraulic surface loading rate determines headloss and is usually kept between 2 -10 gpm/sf. Higher loading rates OK if hydraulics and tests allow. Typical hydraulic design criteria are a surface loading rate of 2-10 gpm/ft2 (Montgomery, James M. Water Treatment Principles and Design. New York: John Wiley and Sons, 1985. Pp. 553.) Most regulatory agencies will not approve rates in excess of 2 gpm/ft2 without successful pilot-scale testing (American Water Works Association and American Society of Civil Engineers. Water Treatment Plant Design. Third Edition. New York: McGraw Hill, 1998. Pp. 158.).
A13: Loading rate maximum | B13: load_max | C13: 10 | D13: gpm/square ft | E13: Many systems can operate to 0.5 gpm/sf (Richard E. Hubel, Peter Keenan, American Water Works Service Company, Inc.).
A15: Pressure Vessel Design
A16: Add a redundant pressure vessel per x parallel lines | B16: redund_freq | C16: 4 | D16: number of parallel lines per redundant unit | E16: Guidance: redundant unit every 1-5 parallel lines
A17: Maximum vessel height (circular vessels) | B17: max_height | C17: 14 | D17: feet | E17: Systems have used vessels up to 14' diam and height in practice (AWWA Inorganic Contaminants Workshop 2006)
A18: Maximum vessel diameter | B18: max_diam_override | D18: feet | E18: Maximum vessel diameter will be chosen from a table of conventional sizes for commercial vessels, unless entered here. Systems have used vessels up to 14' diam and height in practice (AWWA Inorganic Contaminants Workshop 2006)
A19: Maximum vessel length (longitudinal vessels) | B19: max_length | C19: 53 | D19: feet | E19: Limitation on transportation is 53 feet in length
A20: Pressure vessel freeboard above media at full expansion | B20: free_board | C20: 0.5 | D20: feet
A21: Underdrain space for horizontal vessels | B21: horiz_underdrain | C21: 1.5 | D21: feet | E21: 1.5 feet is a conservative value for a 10' tank. Bob Dvorin, 5/16/05.
A22: Ratio of length to diameter for horizontal vessels for autosize | B22: length_diam_ratio | C22: 2.5 | D22: length:diameter | E22: Used only for autosize procedure
A23: Minimum bed depth (pressure) | B23: min_bed_depth | C23: 2 | D23: feet | E23: Guidance: Typical pressure GAC bed depths are 2 to 8.5 ft
A24: Maximum bed depth (pressure) | B24: max_bed_depth | C24: 8.5 | D24: feet
A25: Target Bed Depth (Pressure Designs < 1MGD) | B25: target_bed_depth_under | C25: 4 | D25: feet | E25: Used only for autosize procedure flow less than 1 MGD
A26: Target Bed Depth (Pressure Vertical Designs > 1 MGD) | B26: target_bed_depth_over | C26: 7 | D26: feet | E26: Used only for autosize procedure
A27: Target Bed Depth (Pressure Horizontal Designs) | B27: target_bed_depth_horiz | C27: 8 | D27: feet | E27: Used only for autosize procedure
A28: Thickness of vessel walls | B28: Vessel_thickness | C28: 0 | D28: feet | E28: Set to zero because vendor designs and quotes are usually expressed in inside diameter. Increase if user desires to input outside diameter.
A30: Gravity Basin Design
A31: Number of redundant contact basins for medium systems | B31: NRD_basins_medium | C31: 1 | D31: units
A32: Number of redundant contact basins for large systems | B32: NRD_basins_large | C32: 2 | D32: units
A33: Basin freeboard above filter media at full expansion | B33: basin_freeboard | C33: 2 | D33: ft
A34: Maximum bed depth (gravity) | B34: max_depth | C34: 10 | D34: ft | E34: Guidance: Typical gravity GAC bed depths are 3-10 feet
A35: Minimum bed depth (gravity) | B35: min_depth | C35: 3 | D35: ft | E35: Guidance: Typical gravity GAC bed depths are 3-10 feet
A36: Maximum basin width | B36: max_width | C36: 30 | D36: ft
A37: Minimum basin width | B37: min_width | C37: 6 | D37: ft
A38: Maximum basin length | B38: max_length_g | C38: 30 | D38: ft
A39: Minimum basin length | B39: min_length_g | C39: 6 | D39: ft
A40: Target Bed Depth (Gravity Designs < 1MGD) | B40: target_bed_depth_under_g | C40: 6 | D40: feet | E40: Used only for autosize procedure
A41: Target Bed Depth (Gravity Designs < 1MGD, UVAOP add-on) | B41: target_bed_depth_under_g_UVAOP | C41: 5.4 | D41: feet | E41: Used only for autosize procedure
A42: Target Bed Depth (Gravity Designs > 1 MGD) | B42: target_bed_depth_over_g | C42: 8 | D42: feet | E42: Used only for autosize procedure
A43: Target Bed Depth (Gravity Designs > 1 MGD, UVAOP add-on) | B43: target_bed_depth_over_g_UVAOP | C43: 5.4 | D43: feet | E43: Used only for autosize procedure
A45: General for all basins
A46: Number of stair risers for basins | B46: risers | C46: 15 | D46: risers | E46: This assumption used only if concrete basins are used
A47: Overexcavation for basins | B47: overexcavate | C47: 4 | D47: ft | E47: 2 feet each side in each dimension. This assumption used only if concrete basins are used.
A48: Concrete thickness for basins | B48: conc_thick | C48: 1 | D48: ft | E48: This assumption used only if concrete basins are used
A50: Pumping
A51: Safety factor for pumps | B51: pump_safety_factor | C51: 0.25
A52: Redundant booster pumps | B52: NRD_pumps | C52: 0 | D52: pumps | E52: Multiple pump approach eliminates need for redundant pumps
A53: Redundant backwash pumps | B53: NRD_back_pumps | C53: 1 | D53: pumps
A54: Number of redundant chemical metering pumps | B54: NRD_cm_pump | C54: 1 | D54: pumps
A55: Minimum chemical feed pump size | B55: min_chem_flow | C55: 0.13 | D55: gph | E55: Metering pumps will be designed to meet this minimum
A57: Bypass Flow
A58: Percent of Total Flow that is Bypassed | B58: bp_pct | C58: 0 | E58: Typically, bypass flow ranges between 0% and 50% of inflow. Enter zero to remove bypass piping and components. 0% is default consistent with the type of cost curves that EPA will need for its national cost simulation model.
A60: Backwash
A61: Water backwash rate | B61: h2oflush_backwash_rate | C61: 12 | D61: gpm/square ft | E61: Fluidization occurs at 2-4 gpm/sf; 12-15 gpm/sf is needed to "expand" GAC and wash out particulates [Calgon Carbon] (Richard E. Hubel, Peter Keenan, American Water Works Service Company, Inc)
A62: Backwash time | B62: backwash_time | C62: 10 | D62: minutes | E62: Backwash duration is time allowed for backwash of filter. Use highest expected duration. Typically 5-10 minutes. Default is 10 minutes.
A63: Backwash storage volume | B63: back_multiplier | C63: 1 | D63: volume | E63: The number of backwash cycles to provide a storage volume for clean water. Backwash from elevated storage requires minimum 2 backwash volumes (Randal Braker, General Manager, Duck River Utility Commisssion, TN); WBS models use pumps, however.
A64: Default number of backwash basins | B64: back_basins_default | C64: 1 | D64: units | E64: This assumption applies if concrete basins are used. If tanks are used, number calculated on design sheet.
A65: Backwash basin depth to volume ratio | B65: back_ratio | C65: =3/5 -> 0.6 | D65: depth:volume | E65: This assumption used only if concrete basins are used
A66: Backwash freeboard | B66: back_freeboard | C66: 3 | D66: feet | E66: This assumption used only if concrete basins are used
A68: GAC Regeneration and Transfer
A69: With vessels in series, bed volumes are based on… | B69: BV_definition | C69: EBCT per vessel | D69: <-- pick one | E69: Different studies may use different defintions for "bed volumes." This assumption applies only when vessels are in series and the input for carbon life is in bed volumes.
A70: GAC bulk density | B70: GAC_density | C70: 30 | D70: lbs/cubic ft | E70: Bulk density, not particle density. GAC density range of 22-30 lb/cubic ft; lignite GAC approximately 22 and bituminous GAC approximately 28 lb/cubic ft (Randal J. Braker, General Manager, Duck River Utility Commission)
A71: Regeneration runtime (on-site only) | B71: regen_runtime | C71: 0.85 | E71: Percent of time that regeneration facility operates. Less than full time (100%) to allow for routine maintenance.
A72: Regeneration redundancy (on-site only) | B72: regen_redund | C72: 1 | E72: 100% means no redundancy (i.e., no additional capacity beyond that needed to account for runtime). Use a value greater than 100% to add capacity and provide redundancy.
A73: Makeup carbon for on-site regeneration | B73: makeup_rate | C73: 0.1 | E73: Makeup carbon 10% for on-site regeneration (Richard E. Hubel, Peter Keenan, American Water Works Service Company).
A74: Makeup carbon for off-site regeneration | B74: makeup_rate_off | C74: 0.3 | E74: Makeup carbon needs are higher for transport and regeneration off-site -- 30% (Richard E. Hubel, Peter Keenan, American Water Works Service Company).
A75: Time to empty GAC bed | B75: transfer_time | C75: 4 | D75: hrs | E75: Target for systems using mechanical transfer. For systems with manual transfer, calcuated based on media volume.
A76: Time to empty holding tank/basin soilds | B76: htransfer_time | C76: 4 | D76: hrs | E76: Target for systems using mechanical transfer. For systems with manual transfer, calcuated based on media volume.
A77: Number of redundant eductors | B77: NRD_eductors | C77: 1 | D77: eductors
A78: Virgin GAC storage (on-site only) | B78: virgin_storage_bv | C78: 1.33 | D78: bed volumes | E78: 1.33 BV from operational experience (Arnett Verna, Engineer, Greater Cincinnati Water Works).
A79: Spent GAC storage (on-site only) | B79: spent_storage_bv | C79: 1.33 | D79: bed volumes | E79: 1.33 BV from operational experience (Arnett Verna, Engineer, Greater Cincinnati Water Works).
A80: Regenerated GAC storage (on-site only) | B80: regen_storage_bv | C80: 1.33 | D80: bed volumes | E80: 1.33 BV from operational experience (Arnett Verna, Engineer, Greater Cincinnati Water Works).
A81: Number of storage basins for each of the above | B81: storage_basins | C81: 1 | D81: units | E81: Default: one each for virgin, spent, and regenerated GAC. This assumption applies if concrete basins are used. If steel tanks are used, number calculated on regeneration sheet.
A82: Storage basin depth to volume ratio | B82: storage_ratio | C82: =3/5 -> 0.6 | D82: depth:volume | E82: This assumption used only if concrete basins are used
A83: Storage basin freeboard | B83: storage_freeboard | C83: 3 | D83: feet | E83: This assumption used only if concrete basins are used
A85: Pipe Length Multipliers
A86: Influent and treated water pipe length multiplier | B86: in_out_pipe_mult | C86: 2 | D86: times facility length
A87: Process pipe length multiplier | B87: proc_pipe_mult | C87: 2 | D87: times facility length
A88: Bypass pipe length multiplier | B88: bp_pipe_mult | C88: 2.5 | D88: times facility length
A89: Backwash pipe length multiplier | B89: back_pipe_mult | C89: 2.5 | D89: times facility length
A90: Chemical pipe length multiplier | B90: chem_pipe_mult | C90: 1 | D90: times facility length
A92: Valves and Instrumentation
A93: See the Valve Table at the bottom of this page for additional assumptions relating to valves
A94: Number of manual valves on influent and treated water line | B94: in_man | C94: 2 | D94: valves
A95: Number of manual valves on influent and treated water line in add-on scenario | B95: in_man_addon | C95: 0 | D95: valves
A96: Number of manual valves on process line per vessel | B96: proc_man_vessel | C96: 1 | D96: valve/contactor | E96: For filter to waste in pressure systems
A97: Number of check valves on backwash line if no backwash pumps | B97: back_chv_no_back | C97: 1 | D97: valves
A98: Number of check valves on backwash line per backwash pump | B98: back_chv_pump | C98: 1 | D98: valves/pump
A99: Number of check valves on influent line | B99: in_chv | C99: 1 | D99: valves
A100: Number of check valves on influent line in add-on scenario | B100: in_chv_addon | C100: 0 | D100: valves
A101: Number of check valves on bypass line | B101: tot_bp_chv | C101: 1 | D101: valves
A102: Number of check valves on ferric chloride line per metering pump | B102: coag_chv_pump | C102: 1 | D102: valves/pump | E102: Applies only with ferric addition to residuals
A103: Number of check valves on polymer line per metering pump | B103: polymer_chv_pump | C103: 1 | D103: valves/pump | E103: Applies only with polymer addition to residuals
A105: Flow meters for influent and treated water line | B105: fm_in | C105: 1 | D105: units
A106: Flow meters for influent and treated water line in add-on scenario | B106: fm_in_addon | C106: 0 | D106: units
A107: Flow meters for process line per vessel | B107: fm_proc | C107: 0 | D107: units/contactor | E107: No proces flow meters in P&ID for this technology
A108: Flow meters for backwash line | B108: tot_fm_back | C108: 1 | D108: units | E108: At backwash discharge outlet
A109: Level switch/alarms per pressure vessel | B109: level_switch | C109: 0 | D109: units/vessel
A110: For small systems | B110: level_switch_small | C110: 0 | D110: units/vessel
A111: Level switch/alarms per GAC basin | B111: level_switch_g | C111: 1 | D111: units/basin
A112: For small systems | B112: level_switch_small_g | C112: 0 | D112: units/basin
A113: High/Low alarms per backwash tank | B113: alarm_back | C113: 1 | D113: units/tank
A114: pH meters per gravity contactor | B114: pH_controls_g | C114: 1 | D114: units/basin
A115: For small systems | B115: pH_controls_small_g | C115: 0 | D115: units/basin
A116: Additional pH meters (pressure systems) | B116: add_pH_controls | C116: 2 | D116: units | E116: One for influent line, one for treated water line
A117: For small systems | B117: add_pH_controls_small | C117: 0 | D117: units
A118: Temperature meters | B118: temp_meters | C118: 2 | D118: units | E118: One for influent line, one for treated water line
A119: For small systems | B119: temp_meters_small | C119: 0 | D119: units
A120: Turbitity meters per pressure vessel | B120: turb_tank | C120: 0 | D120: units/vessel
A121: Turbitity meters per gravity contactor | B121: turb_tank_g | C121: 1 | D121: units/basin
A122: Additional turbitidy meters | B122: add_turb | C122: 2 | D122: units | E122: One for treated water line, one on residual side of backwash line
A123: For small systems | B123: add_turb_small | C123: 0 | D123: units
A124: Additional turbitidy meters (pressure systems) | B124: add_turb_p | C124: 1 | D124: units | E124: Pressure systems also include one on influent line
A125: For small systems | B125: add_turb_small_p | C125: 0 | D125: units
A126: Head loss sensors per contactor | B126: head_tank | C126: 1 | D126: units/contactor
A127: For small systems | B127: head_tank_small | C127: 0 | D127: units/contactor
A128: Sampling ports per contactor | B128: ports_tank | C128: 1 | D128: units/contactor
A129: Sampling ports for blended treated water | B129: ports_bp | C129: 1 | D129: units | E129: Not used if system chooses not to bypass
A130: Additional sampling ports | B130: add_ports | C130: 3 | D130: units | E130: One for influent line, one for treated water line, one on residual side of backwash line
A131: Number of electrical enclosures | B131: elec_encl | C131: 0 | D131: units | E131: Required only for technologies with significant electric-powered equipment outside a building
A133: System Controls
A134: See the I/O Port Table at the bottom of this page for additional assumptions relating to system controls
A135: Controllers are used only under full automation
A136: To change the degree of automation, change the number of controllers to zero for the appropriate items.
A137: Drive controllers per booster pump | B137: S_booster_pump | C137: 1 | D137: units
A138: Drive controllers per backwash pump | B138: S_back_pump | C138: 1 | D138: units
A139: Drive controllers per eductor | B139: S_eductor | C139: 1 | D139: units
A140: Drive controllers per slurry pump system | B140: S_slurry | C140: 1 | D140: units
A142: Include PLC rack/power supplies in add-on scenario | B142: plc_rack_addon | C142: 0 | D142: <-- 1 for yes, 0 for no | E142: Assumes additional PLC modules for add-on will fit on existing racks
A143: Number of CPUs | B143: plc_cpu_standalone | C143: 2 | D143: units | E143: One CPU is needed to run the local and expansion bases and modules (max 8192 I/O); using two to provide redundancy
A144: Number of CPUs in add-on scenario | B144: plc_cpu_addon | C144: 0 | D144: units
A145: Ethernet modules | B145: plc_ethernet_standalone | C145: 2 | D145: units | E145: One ethernet module is needed; using two to provide redundancy
A146: Ethernet modules in add-on scenario | B146: plc_ethernet_addon | C146: 0 | D146: units
A147: Operator interfaces | B147: plc_interface_standalone | C147: 2 | D147: units | E147: Two to provide redundancy in the event of SCADA node failure
A148: Operator interfaces in add-on scenario | B148: plc_interface_addon | C148: 0 | D148: units
A149: UPSs | B149: ups_standalone | C149: 1 | D149: unit | E149: UPS protects the PLC system from undesired outages and surges that can adversely affect the performance of the PLC unit
A150: UPSs in add-on scenario | B150: ups_addon | C150: 0 | D150: unit
A151: Computer workstations per x operators | B151: workstation_ratio | C151: 1 | D151: operator/workstation | E151: Minimum will always be one, but larger systems will have multiple workstations to control the system
A152: Number of shifts | B152: shifts_day | C152: 3 | D152: shifts/day | E152: Used to determine number of workstations
A153: Include workstations in add-on scenario | B153: workstation_addon | C153: 0 | D153: <-- 1 for yes, 0 for no
A154: Printers per x computer workstations | B154: printer_ratio | C154: 4 | D154: workstations/printer | E154: Minimum will always be one, but larger systems will have multiple printers
A155: Include printers in add-on scenario | B155: printer_addon | C155: 0 | D155: <-- 1 for yes, 0 for no
A157: Structure/Floorplan
A158: Maximum access space per vessel or tank for custom designed systems | B158: max_space_vessels_cust | C158: 6 | D158: feet | E158: This is the MAXIMUM; space between vessels and tanks defaults to vessel or tank diameter, up to this maximum. Maximum provides space for sandblasting and painting for large vessels (5-8 feet per Richard E. Hubel, Peter Keenan, American Water Works Service Company).
A159: Maximum access space per vessel or tank for pre-engineered systems | B159: max_space_vessels_pre | C159: 1 | D159: feet | E159: Pre-engineered packages are skid-mounted with minimal access space
A160: Access space per pump for custom designed systems | B160: space_pumps_cust | C160: 4 | D160: feet | E160: Provide a minimum of 3 ft (1 m) of clear space around each item of equipment (American Water Works Association and American Society of Civil Engineers. Water Treatment Plant Design. Third Edition. New York: McGraw Hill, 1998. Pp. 695).
A161: Access space per pump for pre-engineered packages | B161: space_pumps_pre | C161: 0 | D161: feet | E161: Pumps on skid for pre-engineered packages, no additional access space
A162: Non fire Buffer for buildings | B162: non_fire_buffer | C162: 10 | D162: feet
A163: Fire Buffer for Buildings | B163: fire_buffer | C163: 40 | D163: feet
A164: Top and bottom dished vessel sections height and access space | B164: Top_bottom_Vessel_space | C164: 6 | D164: feet | E164: This is used to determine the building height for purposes of heating and cooling cost
A165: Building height (gravity systems) | B165: Building_height_g | C165: 20 | D165: feet
A166: Office space per employee | B166: space_office | C166: 100 | D166: square ft
A167: Office space per employee for small systems | B167: space_office_small | C167: 0 | D167: square ft | E167: Small systems do not require office space
A168: Concrete pad thickness | B168: pad_thick | C168: =6/12 -> 0.5 | D168: feet
A169: Concrete pad thickness for small systems | B169: pad_thick_small | C169: =4/12 -> 0.3333333333 | D169: feet
A170: Clearance space beneath the ceiling | B170: ceiling_clearance | C170: 3 | D170: feet | E170: Minimum space between the tops of storage tanks and the ceiling
A171: Additional building after… | B171: add_2nd_building | C171: 10000 | D171: sf
A173: Residuals Discharge
A174: Add coagulant to holding tank? | B174: coag_res | C174: 0 | D174: <-- 1 for yes, 0 for no | E174: For additional TSS removal, if desired
A175: Type of coagulant added | B175: coag_type | C175: 1 | D175: <-- 1 for polymer, 2 for ferric chloride, 3 for both polymer & ferric chloride
A176: Minimum settling time when coagulant is used | B176: res_coag_settle_time | C176: 90 | D176: minutes | E176: When coagulant is used, holding tanks will be sized so that residuals are present for at least this long. Based on 90-120 minute settling time in sedimentation basins (Water Treatment Plant Design, 4th ed.)
A177: Polymer dosage | B177: polymer_dose | C177: 100 | D177: mg/L
A178: Polymer solution density | B178: polymer_density | C178: 9.6 | D178: lb/gal
A179: Polymer sludge production factor | B179: polymer_spf | C179: 1 | D179: lbs accumulated per pound added
A180: Chemical tank mixer horsepower | B180: cmix_hp_per | C180: 0.25 | D180: hp per 1000 gal
A181: Minimum chemical tank mixer horsepower | B181: min_cmix_hp | C181: =1/3 -> 0.3333333333 | D181: hp
A182: Include mixers for chemical tanks | B182: include_cmix | C182: 0 | D182: <--- enter 1 for yes, 0 for no
A183: Ferric chloride dosage | B183: coag_dose | C183: 10 | D183: mg/L
A184: Ferric chloride solution density | B184: coag_density | C184: 11.85 | D184: lb/gal
A185: Ferric chloride solution concentration | B185: coag_pct | C185: 0.4
A186: Ferric chloride sludge production factor | B186: coag_spf | C186: 0.99 | D186: lbs accumulated per pound added
A187: Days of coagulant storage | B187: cstore_days | C187: 30 | D187: days
A188: Residual solids storage height (for drying pad) | B188: solids_storage_height | C188: 2 | D188: ft
A189: Holding tank/basin solids density | B189: ht_solids_density | C189: 25 | D189: lb/ft3
A190: Holding tank/basin suspended solids removal efficiency without coagulant | B190: htank_TSSrem | C190: 0.25
A191: Holding tank/basin suspended solids removal efficiency with coagulant | B191: coag_TSSrem | C191: 0.5
A192: Clean holding tanks/basins when solids accumulation =x% of capacity | B192: htank_clean_pct | C192: 0.1
A193: Holding tank/basin capacity safety factor | B193: res_cap_factor | C193: 2 | E193: Holding tanks are designed with a capacity of one generation event, multiplied by this safety factor. This multiplier accounts for less than perfect staggering of generation events and provides for solids accumulation (i.e., it provides excess capacity).
A194: Default number of residuals basins | B194: hbasins_default | C194: 1 | D194: units | E194: This assumption applies if concrete basins are used. Additonal basins are used, however, if needed to achieve minimum holding time. If tanks are used, number calculated on design sheet.
A195: Holding basin depth to volume ratio | B195: holding_ratio | C195: =3/5 -> 0.6 | D195: depth:volume | E195: This assumption used only if concrete basins are used
A196: Holding basin freeboard | B196: holding_freeboard | C196: 3 | D196: feet | E196: This assumption used only if concrete basins are used
A197: Holding tank/basin mixer horsepower (if coagulant is used) | B197: hmix_hp_per | C197: 0.25 | D197: hp per 1,000 gallons
A198: Minimum holding tank mixer horsepower | B198: min_hmix_hp | C198: =1/3 -> 0.3333333333 | D198: hp
A199: Holding tank/basin solids transfer method | B199: res_transfer_method | C199: 3 | D199: <-- 1 for slurry pumps, 2 for eductors, 3 for manual trabsfer
A200: Include residuals pumps in add-on scenario | B200: res_pump_addon | C200: 0 | D200: <-- 1 for yes, 2 for no
A201: Redundant residuals pumps | B201: NRD_res_pump | C201: 1 | D201: units | E201: Applies only if pumping is included
A202: Minimum residuals pipe diameter | B202: min_res_pipe_size | C202: 1 | D202: in. diam.
A203: Residuals pipe length multiplier | B203: res_pipe_mult | C203: 1 | D203: times facility length
A204: Distance to discharge or recycle point | B204: add_res_pipe_length | C204: 40 | D204: ft
A205: Include piping to discharge point in add-on scenario | B205: include_add_res_pipe_addon | C205: 0 | D205: <-- 1 for yes, 2 for no
A206: Number of check valves on residuals line per residuals pump | B206: res_chv_pump | C206: 1 | D206: valves/pump
A207: Number of check valves on residuals line if no pumping | B207: res_chv_no_pump | C207: 1 | D207: valves
A208: Drive controllers per residuals pump | B208: S_res_pump | C208: 1 | D208: units
A209: Drive controllers per coagulant mixer | B209: S_mixer | C209: 1 | D209: units
A210: Flow meters for residuals line | B210: tot_fm_res | C210: 1 | D210: units
A211: High/Low alarms per holding tank/basin | B211: alarm_res | C211: 1 | D211: units/tank
A213: Include secondary containment (for ferric chloride residuals coagulant) | B213: include_sec_cont | C213: 1 | D213: <--- enter 1 for yes, 0 for no
A214: Volume required as a percentage of the largest tank | B214: sec_cont_pct_of_largest | C214: 1.1
A215: Volume required as a percentage of total storage | B215: sec_cont_pct_of_total | C215: 0.1
A216: Additional freeboard | B216: sec_cont_freeboard | C216: 6 | D216: inches | E216: Additional freeboard is typically required to contain precipitation when storage is outside; we also include freeboard indoors to ensure a minimum reasonable curb height
A217: Maximum curb thickness | B217: sec_cont_max_thick | C217: 1 | D217: foot | E217: Calculations assume thickness equal to height, up to this maximum
... 85 more rows

Sheet O&M Assumptions
A1: Default O&M Assumptions
A2: Users may change any of the cells in the Value column
A4: Assumption | B4: Range Name | C4: Value | D4: Units | E4: Guidance
A5: Materials
A6: Cost for parts & maintenance for pumps | B6: booster_pump_maintenance | C6: 0.01 | E6: For calculating cost of actual maintenance materials; not to be confused with depreciation; 5% would be too high (Richard E. Hubel, Peter Keenan, American Water Works Service Company, Inc)
A7: Annual contactor materials cost as a percent of capital | B7: Materials_pct | C7: 0.01 | E7: To account for vessel relining, as GAC can be corrosive
A9: Labor
A10: Mangerial LOE as a percent of average technical labor | B10: Manager_percent | C10: 0.1 | D10: fraction
A11: Clerical LOE as a percent of average technical labor | B11: Clerical_percent | C11: 0.1 | D11: fraction
A12: Labor hours per week for contact basins | B12: Weekly_labor | C12: 1 | D12: hr/week/basin or tank
A14: Operating LOE assumptions
A15: Minutes per instrument per day | B15: uloe_inst | C15: 5 | D15: min/day | E15: For manual systems only
A16: Recording operating paramenters for automated systems | B16: uloe_inst_auto | C16: 5 | D16: min/day | E16: For semiautomated and automated systems
A17: Minutes per pump per day | B17: uloe_pump | C17: 5 | D17: min/day | E17: For manual and semiautomated systems
A18: Minutes per valve per week | B18: uloe_valve | C18: 5 | D18: min/week | E18: For manual and semiautomated systems
A19: Minutes per 100 sf per week | B19: uloe_fp | C19: 1 | D19: min/100 sf/day
A20: Minutes per backwash for automated systems | B20: uloe_autoback | C20: 1 | D20: min/event | E20: Manual and semiautomated systems use 2x actual backwash time
A21: Hours per media changeout | B21: uloe_throwaway | C21: =8/(20*27) -> 0.01481481481 | D21: hours/cubic foot | E21: For systems using manual media transfer. Based on 20 cubic yards per day, applied separately to removal and replacement.
A23: Maintenance LOE assumptions
A24: For instruments (includes calibration) | B24: uloe_inst_maint | C24: 10 | D24: min/month
A25: For pumps | B25: uloe_pump_maint | C25: 30.25 | D25: hours/year | E25: Based on vendor recommended maintenance activities; applied to large, frequently operated pumps only
A26: For valves | B26: uloe_valve_maint | C26: 5 | D26: min/year | E26: Applied to main process valves only
A27: For chemical supply systems | B27: uloe_chem_maint | C27: 120 | D27: min/month
A29: Energy
A30: Pump head for booster pumps | B30: pump_head | C30: 44 | D30: feet
A31: Backwash pump head | B31: back_pump_head | C31: 33 | D31: feet
A32: Residuals pump head | B32: res_pump_psi | C32: 25 | D32: psi
A33: Pump efficiency | B33: pump_efficiency | C33: 0.75
A35: Lighting power per sf, low-quality buildings and sheds | B35: lighting_power_low | C35: 0.3 | D35: W/sf | E35: 0.3, 0.6, and 1.2 W/sf are the assumptions used for building capital costs
A36: Lighting power per sf, mid-quality buildings | B36: lighting_power_mid | C36: 0.6 | D36: W/sf
A37: Lighting power per sf, high-quality buildings | B37: lighting_power_high | C37: 1.2 | D37: W/sf
A39: Ventilation air change rate for contactor | B39: Air_changes_contactor | C39: 3 | D39: air changes/hr
A40: Ventilation air change rate for pump room | B40: Air_changes_pump | C40: 20 | D40: air changes/hr | E40: Could be lower (annual average 3 changes/hr) in a northern climate
A41: Ventilation air change rate for chemical storage | B41: Air_changes_chem_storage | C41: 2 | D41: air changes/hr
A42: Ventilation air change rate for offices | B42: Air_changes_office | C42: 2 | D42: air changes/hr
A43: Pressure drop across the fan | B43: Fan_pressure_drop | C43: 0.25 | D43: lbs/ft2
A44: Number of mechanical ventilation days per year first building (small system) | B44: fan_days_build1_small | C44: 90 | D44: days/year | E44: Number of days per year where natural ventilation is applicable cannot be greater than 365 days
A45: Number of mechanical ventilation days per year 2nd building (small system) | B45: fan_days_build2_small | C45: 90 | D45: days/year | E45: For small systems (<1 MGD)
A46: Number of mechanical ventilation days per year first building (medium system) | B46: fan_days_build1_medium | C46: 120 | D46: days/year | E46: For medium systems (1 - 10 MGD)
A47: Number of mechanical ventilation days per year 2nd building (medium system) | B47: fan_days_build2_medium | C47: 120 | D47: days/year
A48: Number of mechanical ventilation days per year first building (large system) | B48: fan_days_build1_large | C48: 185 | D48: days/year | E48: For large systems (> 10 MGD)
A49: Number of mechanical ventilation days per year 2nd building (large system) | B49: fan_days_build2_large | C49: 185 | D49: days/year
A51: R-value for walls | B51: R_wall | C51: 25 | D51: hr-sf-degF/BTU | E51: See Appendix E. If higher R-value materials are desired, user may also need to adjust the cost of building materials in cl.xls
A52: R-value for ceilings | B52: R_ceiling | C52: 49 | D52: hr-sf-degF/BTU | E52: See Appendix E. If higher R-value materials are desired, user may also need to adjust the cost of building materials in cl.xls
A53: Annual heating degree days | B53: heat_DD | C53: 4260 | D53: degree days | E53: Heating and cooling assumptions should be consistent with one another. Assumed values are for a climate that results in a total energy usage for heating and cooling equal to the national median.
A54: Annual cooling degree days | B54: cool_DD | C54: 1415 | D54: degree days | E54: Heating and cooling assumptions should be consistent with one another. Assumed values are for a climate that results in a total energy usage for heating and cooling equal to the national median.
A55: Heating ventilation/infiltration load | B55: heat_viload | C55: 168679 | D55: BTU/cfm | E55: Heating and cooling assumptions should be consistent with one another. Assumed values are for a climate that results in a total energy usage for heating and cooling equal to the national median.
A56: Cooling ventilation/infiltration load | B56: cool_viload | C56: 51771 | D56: BTU/cfm | E56: Heating and cooling assumptions should be consistent with one another. Assumed values are for a climate that results in a total energy usage for heating and cooling equal to the national median.
A57: Electric resistance heating efficiency | B57: resist_eff | C57: 0.98 | E57: See Appendix E
A58: Heat pump heating coefficient of performance | B58: COP | C58: 3.3 | E58: See Appendix E
A59: Natural gas non-condensing furnace efficiency | B59: gas_non_eff | C59: 0.85 | E59: See Appendix E
A60: Natural gas condensing furnace efficiency | B60: gas_eff | C60: 0.9 | E60: See Appendix E
A61: Standard oil furnace efficiency | B61: diesel_non_eff | C61: 0.82 | E61: See Appendix E
A62: Mid-efficiency oil furnace efficiency | B62: diesel_eff | C62: 0.9 | E62: See Appendix E
A63: Air conditioning EER | B63: EER | C63: 11.8 | D63: BTU/Whr | E63: See Appendix E
A64: Heat pump cooling mode EER | B64: hp_EER | C64: 11.8 | D64: BTU/Whr | E64: See Appendix E
A66: Heating Oil Heat Content | B66: diesel_heat_content | C66: 139000 | D66: BTU/gal | E66: U.S. DOE, Energy Information Administration

Sheet Indirect Assumptions
A1: Default Assumptions for Indirect and Add-On Costs
A2: Users may change any of the cells in the Value column
A4: Assumption | B4: Range Name | C4: Value | D4: Units | E4: Guidance
A5: Permits
A6: Include permit costs? | B6: include_permits | C6: 1 | D6: <--- enter 1 for yes, 0 for no
A7: Include NEPA compliance costs? | B7: include_NEPA | C7: 1 | D7: <--- enter 1 for default, enter 2 for yes, 3 for no | E7: Default of 1 means NEPA compliance is included only for systems that discharge to surface water. Selecting 2 means NEPA compliance will be included in all estimates. Selecting 3 means NEPA compliance will never be included.
A9: Pilot Study
A10: Include pilot study costs? | B10: include_pilot | C10: 1 | D10: <--- enter 1 for yes, 0 for no
A11: Include pilot study costs in add-on scenario? | B11: include_pilot_addon | C11: 1 | D11: <--- enter 1 for yes, 0 for no
A13: Mobilization and Demobilization
A14: Mobilization percentage for pre-engineered packages | B14: mob_pct_pre | C14: 0 | D14: of direct capital cost | E14: Typically 2-5% of the estimated construction cost. Enter 0% to exclude.
A15: Mobilization percentage for small systems | B15: mob_pct_small | C15: 0.05 | D15: of direct capital cost
A16: Mobilization percentage for medium systems | B16: mob_pct_medium | C16: 0.04 | D16: of direct capital cost
A17: Mobilization percentage for large systems | B17: mob_pct_large | C17: 0.02 | D17: of direct capital cost
A19: Architectural Fees for Treatment Building
A20: Include architectural fee? | B20: include_arch | C20: 1 | D20: <--- enter 1 for yes, 0 for no | E20: Must be added to building cost. Change for special considerations. Includes structural, mechanical, and electrical engineering for building only.
A21: Include architectural fee for small systems? | B21: include_arch_small | C21: 0 | D21: <--- enter 1 for yes, 0 for no
A23: Installation, Transportatation, and O&P
A24: Installation, Transportatation, and O&P percentage | B24: inst_pct | C24: 0 | D24: of direct capital cost | E24: Included in line item unit costs. Add a percentage for special considerations such as a remote site or high cost location.
A26: Sitework
A27: Include sitework costs? | B27: include_sitework | C27: 1 | D27: <--- enter 1 for yes, 0 for no
A29: Yard Piping
A30: Include yard piping costs? | B30: include_yardpipe | C30: 1 | D30: <--- enter 1 for yes, 0 for no
A31: Include yard piping costs in add-on scenario? | B31: include_yardpipe_addon | C31: 0 | D31: <--- enter 1 for yes, 0 for no
A32: Frost depth | B32: frost | C32: 38 | D32: inches | E32: Should be consistent with (reflect same climate as) heating and cooling assumptions on O&M assumptions page
A33: Minimum trench depth to top of pipe | B33: min_trench_depth | C33: 36 | D33: inches | E33: US Army Corps of Engineers recommended minimum cover for distribution pipes of 2.5 ft in grassed areas, 3 ft if buried under pavement or roadways but not less than frost penetration depth (USACOE 1984)
A34: Soil density | B34: soil_dens | C34: 97 | D34: lb/cubic ft. | E34: Based on soil density of loamy sand (1.55 gm/cc)
A35: Coefficient of passive pressure | B35: Coeff_Kp | C35: 3
A36: Reduction factor | B36: Reduction | C36: 0.467
A37: Bedding depth below pipe | B37: bedding_depth | C37: 6 | D37: inches
A38: Bedding depth surrounding the pipe | B38: bedding_pct | C38: 0.25 | D38: of pipe diameter
A39: Trench inside angle | B39: trench_angle | C39: =RADIANS(45) -> 0.7853981634 | D39: radians
A40: Pipe length from water source to the boundary of the 10 foot buffer | B40: yard_in | C40: 0 | D40: feet | E40: Use if technology is first step in treatment process
A41: Pipe length the boundary of the 10 foot buffer to distribution network | B41: yard_out | C41: 0 | D41: feet | E41: Use if technology is last step in treatment process
A43: Geotechnical
A44: Include geotechnical costs for low cost pressure systems? | B44: include_geo_low | C44: 0 | D44: <--- enter 1 for yes, 0 for no | E44: Note: geotechnical is always included with the septic system option, regardless of the numbers entered here
A45: Include geotechnical costs for medium cost pressure systems? | B45: include_geo_medium | C45: 0 | D45: <--- enter 1 for yes, 0 for no
A46: Include geotechnical costs for high cost pressure systems? | B46: include_geo_high | C46: 1 | D46: <--- enter 1 for yes, 0 for no
A47: Include geotechnical costs for low cost gravity systems? | B47: include_geo_low_g | C47: 1 | D47: <--- enter 1 for yes, 0 for no | E47: Geotechnical is always included for gravity systems, because of basin excavation
A48: Include geotechnical costs for medium cost gravity systems? | B48: include_geo_medium_g | C48: 1 | D48: <--- enter 1 for yes, 0 for no
A49: Include geotechnical costs for high cost gravity systems? | B49: include_geo_high_g | C49: 1 | D49: <--- enter 1 for yes, 0 for no
A50: Test pit length | B50: pit_length | C50: 4 | D50: feet
A51: Test pit width | B51: pit_width | C51: 4 | D51: feet
A52: Test pit depth | B52: pit_depth | C52: 7 | D52: feet
A53: Borehole depth (pressure systems) | B53: bore_depth_p | C53: 10 | D53: feet
A54: Borehole depth for shallow basins | B54: bore_depth_min | C54: 25 | D54: feet
A55: Borehole depth for deep basins | B55: bore_depth_max | C55: 50 | D55: feet
A56: Basin excavation depth above which deeper boreholes are needed | B56: deep_bore_need | C56: 20 | D56: feet | E56: Large gravity systems with deep basins require deeper investigation
A57: Technology footprint above which boreholes are needed | B57: bore_need | C57: 2000 | D57: square feet | E57: Small pressure system geotechnical investigation can be completed with test pits, larger systems and all gravity systems require boreholes
A58: Minimum number of boreholes | B58: min_holes | C58: 4
A59: Borehole needed every x square feet | B59: hole_per_sf | C59: 1000 | D59: square feet
A60: Boreholes per job | B60: hole_per_job | C60: 24 | D60: boreholes/job
A61: Linear feet bored per day | B61: hole_per_day | C61: 55.5 | D61: l.f./day | E61: RS Means Costworks 2001
A63: Standby Power
A64: Include standby power costs? | B64: include_standby | C64: 1 | D64: <--- enter 1 for yes, 0 for no
A65: Include standby power costs for small systems? | B65: include_standby_small | C65: 0 | D65: <--- enter 1 for yes, 0 for no
A66: Include standby power costs in add-on scenario? | B66: include_standby_addon | C66: 0 | D66: <--- enter 1 for yes, 0 for no
A67: Design safety factor for standby power | B67: std_safety_factor | C67: 0 | E67: Default 0%. Apply a percentage to increase standby power requirements.
A68: Include heating in standby power | B68: need_heat | C68: 0 | D68: <--- enter 1 for yes, 0 for no | E68: If a system uses gas or diesel heat, heating will not be included in standby power, regardless of this assumption.
A69: Include cooling in standby power | B69: need_cool | C69: 0 | D69: <--- enter 1 for yes, 0 for no | E69: If both heating and cooling are included, standby power requirements will be based on the maximum of the two.
A70: Minimum standby power generator size | B70: min_standby | C70: 1.5 | D70: kW
A72: Electrical (including yard wiring)
A73: Electrical percentage | B73: elect_pct | C73: 0.1 | D73: of direct cost
A75: Instrumentation and Control
A76: Instrumentation and control percentage | B76: i_c_pct | C76: 0 | D76: of direct cost | E76: Included as a direct cost line item
A78: Contingency
A79: Include contingency costs for low cost systems? | B79: include_conting_low | C79: 0 | D79: <--- enter 1 for yes, 0 for no
A80: Include contingency costs for medium cost systems? | B80: include_conting_medium | C80: 0 | D80: <--- enter 1 for yes, 0 for no
A81: Include contingency costs for high cost systems? | B81: include_conting_high | C81: 1 | D81: <--- enter 1 for yes, 0 for no
A82: Technology complexity factor | B82: complexity | C82: 1 | E82: Technology-specific factor. See Appendices for details. Low complexity = 0.5; Average complexity = 1.0; High complexity = 1.5; Very high complexity = 2.0.
A84: Process Engineering
A85: Engineering percentage for small systems | B85: eng_pct_small | C85: 0.2 | D85: of direct capital cost | E85: Enter 0% to exclude
A86: Engineering percentage for medium systems | B86: eng_pct_medium | C86: 0.12 | D86: of direct capital cost
A87: Engineering percentage for large systems | B87: eng_pct_large | C87: 0.08 | D87: of direct capital cost
A89: Miscellaneous Allowance
A90: Miscellaneous allowance percentage | B90: misc_pct | C90: 0.1 | D90: of direct capital cost | E90: Enter 0% to exclude
A92: Legal, Fiscal, and Administrative
A93: Legal percentage | B93: legal_pct | C93: 0.02 | D93: of direct capital cost | E93: Enter 0% to exclude. Highly site-specific. Can range from 2-5% of equipment, installation, construction, electrical, and standby power.
A95: Sales Tax
A96: Sales tax percentage | B96: tax_pct | C96: 0 | D96: of direct capital cost | E96: May be exempt if constructed with public funds. May be as high as 7.25% of equipment and construction, with national average 4.75%.
A98: Financing during Construction
A99: Financing percentage | B99: finance_pct | C99: 0.05 | D99: of direct capital cost | E99: Enter 0% to exclude. Typically assumed to be one year's interest on capital cost.
A100: Financing percentage for small systems | B100: finance_pct_small | C100: 0 | D100: of direct capital cost | E100: Small system construction assumed to take less than one year
A102: Construction Management and General Contractor Overhead
A103: Builder's risk insurance percentage | B103: br_ins_pct | C103: 0.0034 | E103: Enter 0% to exclude. 0.34% is national average rate. RSMeans Building Construction Cost Data 2009, reference section R01100-070
A104: Include performance bond cost? | B104: include_bond | C104: 1 | D104: <--- enter 1 for yes, 0 for no
A105: Include construction management cost? | B105: include_cm | C105: 1 | D105: <--- enter 1 for yes, 0 for no
A106: Include construction management cost for pre-engineered packages? | B106: include_cm_pre | C106: 0 | D106: <--- enter 1 for yes, 0 for no
A108: Concrete Pad
A109: Include concrete pad in total capital cost? | B109: include_pad | C109: 1 | D109: <--- enter 1 for yes, 0 for no
A111: Heating Table (1=include heating in buildings and O&M, 0 = do not include heating)
A112: Component Level | B112: Range Name | C112: System Size
C113: Small (<1 mgd) | D113: Medium (1-10 mgd) | E113: Large (>10 mgd)
A114: Buildings 500 square feet or greater
A115: low cost | B115: heating_table | C115: 0 | D115: 1 | E115: 1
A116: mid cost | C116: 1 | D116: 1 | E116: 1
A117: high cost | C117: 1 | D117: 1 | E117: 1
A118: Buildings less than 500 ft2 (other than those used for chlorine storage)
A119: low cost | B119: heating_table_shed | C119: 0 | D119: 0 | E119: 1
A120: mid cost | C120: 0 | D120: 0 | E120: 1
A121: high cost | C121: 1 | D121: 1 | E121: 1
A123: Cooling Table (1=include cooling in buildings and O&M, 0 = do not include cooling)
A124: Component Level | B124: Range Name | C124: System Size
C125: Small (<1 mgd) | D125: Medium (1-10 mgd) | E125: Large (>10 mgd)
A126: Buildings 500 square feet or greater
A127: low cost | B127: cooling_table | C127: 0 | D127: 0 | E127: 1
A128: mid cost | C128: 0 | D128: 1 | E128: 1
A129: high cost | C129: 1 | D129: 1 | E129: 1
A130: Buildings less than 500 ft2 (other than those used for chlorine storage)
A131: low cost | B131: cooling_table_shed | C131: 0 | D131: 0 | E131: 0
A132: mid cost | C132: 0 | D132: 0 | E132: 0
A133: high cost | C133: 0 | D133: 0 | E133: 0

Sheet Retrofit
A1: Retrofit Calculations
A3: Calculation | B3: Range Name | C3: Value | D3: Units | E3: Guidance
A4: Base Retrofit Calculations
A5: Is this a retrofit design? | B5: retrofit | C5: =IF(retrofit_I="",0,1) -> 0 | D5: 1 = retrofit, 0 = new treatment system
A6: Carbon life input type for retrofit | B6: r_freund_type | C6: =IF(r_freund_type_I="carbon life value- months",1,IF(r_freund_type_I="calculation from Freundlich isotherm",2,IF(r_freund_type_I="calculation from BDST",3,4))) -> 4 | D6: <-- 1 for bed life in months, 2 for calculation from Freundlich isotherms, 4 for bed life in bed volumes
A8: GAC in grams (unchanged) | B8: M | C8: =M -> 290698.9824 | D8: grams | E8: For Freundlich calculation, does not change in retrofit scenario, repeated here for reference
A9: Flow rate in L/min (unchanged) | B9: QL | C9: =QL -> 18.39930556 | D9: L/min | E9: For Freundlich calculation, does not change in retrofit scenario, repeated here for reference
A10: N0/e for retrofit | B10: r_N_0_e | C10: =r_freund_1*GAC_density*453.59/0.02832 -> 0 | D10: mg/cubic m | E10: For BDST calculation, recalculated for retrofit
A11: Fluid velocity (unchanged) | B11: v | C11: =v -> 0.03148753149 | D11: m/min | E11: For BDST calculation, does not change in retrofit scenario, repeated here for reference
A12: Bed depth in meters (unchanged) | B12: D | C12: =D -> 1.03632 | D12: m | E12: For BDST calculation, does not change in retrofit scenario, repeated here for reference
A13: Bed life for retrofit | B13: r_bed_life | C13: =CHOOSE(r_freund_type,r_freund_1,(M*(r_freund_1/1000)*(r_C_b*1000)^r_freund_2/(QL*(r_C_0-r_C_b)))/(30*24*60),(r_N_0_e/(1000*v*r_C_0)*D-LOG(r_C_0/r_C_b-1)/(r_freund_2*r_C_0))/(30*24*60),r_freund_1*IF(design_type=1,comm_SA*bed_depth*num_treat_lines,basin_width*basin_length*basin_op_depth*op_num_basins)*7.48/average_flow_rate/60/24/30) -> 0 | D13: months
A15: Average regeneration rate after retrofit | B15: r_regen_day | C15: =IF(retrofit=0,0,GAC_each*IF(design_type=1,op_num_tanks,op_num_basins)/(r_bed_life/12)/365) -> 0 | D15: lbs/day
A16: Total annual GAC needed after retrofit | B16: r_GAC_yr | C16: =r_regen_day*365 -> 0 | D16: lbs/yr | E16: When regenerating, this quantity is made up of regenerated GAC + makeup GAC
A17: Annual Regenerated GAC after retrofit | B17: r_regen_yr | C17: =CHOOSE(regen_type,(1-makeup_rate)*r_GAC_yr,(1-makeup_rate_off)*r_GAC_yr,0,(1-makeup_rate_off)*r_GAC_yr,0,0,0) -> 0 | D17: lbs/yr
A18: Annual Virgin GAC after retrofit | B18: r_GAC_makeup | C18: =CHOOSE(regen_type,makeup_rate*r_GAC_yr,makeup_rate_off*r_GAC_yr,r_GAC_yr,makeup_rate_off*r_GAC_yr,r_GAC_yr,r_GAC_yr,r_GAC_yr) -> 0 | D18: lbs/yr
A20: Spent media disposal frequency after retrofit | B20: r_disp_freq | C20: =IF(r_bed_life=0,0,IF(OR(regen_type=3,regen_type=5),12/r_bed_life,0)) -> 0 | D20: times per year
A21: Spent media quantity (average per year) after retrofit | B21: r_spent_media_yr | C21: =spent_media*r_disp_freq -> 0 | D21: tons
A22: Media changeouts per year after retrofit | B22: r_media_changes | C22: =IF(design_type=1,final_num_tanks,total_num_basins)*IF(OR(regen_type=3,regen_type=5),r_disp_freq,IF(OR(regen_type=2,regen_type=4),IF(r_bed_life=0,0,12/r_bed_life),0)) -> 0 | E22: For use with mechanical transfer, incorporates number of vessels. For onsite regeneration, media changeout labor is included in regen_labor, below
A23: Quantity of media handled per year after retrofit | B23: r_media_changes_cf | C23: =IF(OR(regen_type=3,regen_type=5),r_GAC_makeup+r_spent_media_yr*2000,IF(OR(regen_type=2,regen_type=4),r_GAC_makeup+2*r_regen_yr,0))/GAC_density -> 0 | D23: cf | E23: For use with manual transfer, incorporates both removal and refill. For onsite regeneration, media changeout labor is included in regen_labor, below
A24: Incremental operator labor for media changeouts after retrofit | B24: r_inc_Operator_LOE | C24: =IF(retrofit=0,0,IF(transfer_method=3,r_media_changes_cf*uloe_throwaway,r_media_changes*transfer_time)-IF(transfer_method=3,media_changes_cf*uloe_throwaway,media_changes*transfer_time)+r_regen_labor) -> 0 | D24: hr/yr
A26: Spent media disposal fee after retrofit | C26: =spent_media*r_disp_freq*CHOOSE(regen_type,0,0,nonhaz_disposal_cost_cl,0,haz_disposal_cost_cl,rad_disposal_cost_cl,hazrad_disposal_cost_cl) -> 0 | D26: $/year
A27: Spent media shipments per year after retrofit | C27: =CHOOSE(regen_type,r_disp_freq,r_disp_freq,r_disp_freq,r_disp_freq,IF(spent_media>max_waste_ship,ROUNDUP(spent_media/max_waste_ship,0)*r_disp_freq,r_disp_freq),IF(spent_media>max_waste_ship,ROUNDUP(spent_media/max_waste_ship,0)*r_disp_freq,r_disp_freq),IF(spent_media>max_waste_ship,ROUNDUP(spent_media/max_waste_ship,0)*r_disp_freq,r_disp_freq)) -> 0
A28: Transportation unit cost | C28: =CHOOSE(regen_type,0,0,nonhaz_transportation_cost_cl,0,haz_transportation_cost_cl,rad_transportation_cost_cl,hazrad_transportation_cost_cl) -> 0 | D28: $/ton-mile
A29: Transportation minimum charge per shipment | C29: =CHOOSE(regen_type,0,0,0,0,haz_trans_min_cost_cl,rad_trans_min_cost_cl,hazrad_trans_min_cost_cl) -> 0 | D29: $/shipment
A30: Transportation mileage | C30: =CHOOSE(regen_type,0,0,non_haz_miles,0,haz_miles,rad_miles,hazrad_miles) -> 0 | D30: miles
A31: Transportation | C31: =MAX(C27*C29,spent_media*C27*C30*C28) -> 0 | D31: $/year
A32: Annual fee | C32: =CHOOSE(regen_type,0,0,0,0,0,VLOOKUP(households*hh_size,rad_annual_fee_cl,2),VLOOKUP(households*hh_size,hazrad_annual_fee_cl,2)) -> 0 | D32: $/year
A33: Total annual spent media diposal fee after retrofit | B33: r_disposal_fee | C33: =C31+C26+C32 -> 0 | D33: $/year
A36: Regeneration frequency after retrofit | C36: =IF(r_bed_life=0,0,12/r_bed_life) -> 0
A37: Hazardous regeneration shipments per year after retrofit | C37: =IF(regen_type=4,IF(r_regen_yr/2000>max_waste_ship,ROUNDUP((r_regen_yr/2000)/max_waste_ship,0)*C36,C36),"NA") -> NA
A38: Additional transportation cost for hazardous regeneration after retrofit | B38: r_haz_regen_transp | C38: =IF(regen_type=4,MAX(C37*haz_trans_min_cost_cl,spent_media*C37*haz_miles*haz_transportation_cost_cl),0) -> 0 | D38: $/year
A40: Incremental lighting | B40: r_lighting | C40: =IF(include_buildings=0,0,MIN(1,(r_inc_Operator_LOE+Operator_LOE)/(24*365))*(build1_fp*lighting_energy_1+build2_fp*lighting_energy_2)/1000+r_furnace_lighting-lighting) -> 0 | D40: MWh/yr
A41: Incremental standby power for lighting | B41: r_std_lighting | C41: =IF(include_buildings=0,0,((build1_fp*lighting_energy_1+build2_fp*lighting_energy_2)/1000+r_furnace_lighting-lighting)/365/24*1000) -> 0.008958280313 | D41: kW
A42: Total standby power after retrofit | B42: r_std_power | C42: =ROUNDUP(2*MAX(min_standby,(IF(AND(need_heat=1,need_cool=1),MAX(std_heat,std_cool),need_heat*std_heat+need_cool*std_cool)+std_base+r_std_vent+r_std_lighting)*(1+std_safety_factor)),0)/2 -> 1.5 | D42: kW
A43: Incremental standby power required | B43: r_inc_std_power | C43: =r_std_power-std_power -> 0 | D43: kW
A44: Incremental standby power cost | B44: r_std_power_cost | C44: =VLOOKUP(r_std_power,std_gen_cost_cl,3)*r_inc_std_power -> 0
A46: Additional Calculations for Retrofit with On-site Regeneration
A47: Direct Equipment
A48: On-site regeneration capacity required for retrofit | B48: r_regen_capacity | C48: =(r_regen_day/regen_runtime)*regen_redund -> 0 | D48: lbs/day
A49: Incremental regeneration capacity required for retrofit | B49: r_inc_regen_capacity | C49: =MAX(0,C48-regen_capacity) -> 0 | D49: lbs/day
A50: Capacity expansion required? | B50: r_new_furnace | C50: =IF(AND(retrofit=1,regen_type=1,OUTPUT!G251>0),1,0) -> 0 | D50: 1=yes, 0=no | E50: This considers actual output sheet size of existing furnace when curve fitting isn't used
A52: Building and Land Usage
A53: On-site regeneration footprint for retrofit | B53: r_onsite_regeneration_fp | C53: =IF(r_new_furnace=0,0,IF(regen_type=1,121.3*r_regen_capacity^0.3656,0)) -> 0 | D53: square feet | E53: Equations developed in Working draft of "Design and Cost Estimates for Advanced Water Treatment Technologies", 9/30/00, include access space.
A54: Incremental footprint required for retrofit | B54: r_inc_fp_required | C54: =IF(OR(retrofit=0,r_new_furnace=0),0,r_onsite_regeneration_fp-Onsite_regeneration_fp) -> 0 | D54: square feet
A55: New footprint of building 1 | B55: r_build1_fp | C55: =IF(OR(retrofit=0,r_new_furnace=0),0,ROUNDUP(IF(fp_required<add_2nd_building,fp_required+r_onsite_regeneration_fp,vessel_fp),-1)) -> 0 | D55: square feet | E55: If total footprint is large, building 1 contains vessels only. If total footprint is small, building 1 contains all equipment.
A56: New footprint of building 2 | B56: r_build2_fp | C56: =IF(OR(retrofit=0,r_new_furnace=0),0,ROUNDUP(IF(fp_required<add_2nd_building,0,back_tank_fp+pump_fp+r_onsite_regeneration_fp+Virgin_GAC_storage_fp+Spent_GAC_storage_fp+Regenerated_GAC_storage_fp+office_fp+htank_fp+cstore_fp),-1)) -> 0 | D56: square feet | E56: If total footprint is large, a second building is used for pumps, backwash, onsite regeneration, and chemical storage
A57: Incremental building 1 floorplan required for retrofit | B57: r_inc_build1_fp | C57: =IF(OR(retrofit=0,r_new_furnace=0),0,r_build1_fp-build1_fp) -> 0 | D57: square feet
A58: Incremental building 2 floorplan required for retrofit | B58: r_inc_build2_fp | C58: =IF(OR(retrofit=0,r_new_furnace=0),0,r_build2_fp-build2_fp) -> 0 | D58: square feet
A59: New total footprint | B59: r_total_fp | C59: =r_build1_fp+r_build2_fp -> 0 | D59: square feet
A60: Incremental total footprint | B60: r_inc_total_fp | C60: =IF(OR(retrofit=0,r_new_furnace=0),0,r_total_fp-total_fp) -> 0 | D60: square feet
A61: Concrete pad for retrofit | B61: r_concrete | C61: =ROUNDUP(r_inc_fp_required*IF(ss_cat2=1,pad_thick_small,pad_thick)/27,0) -> 0 | D61: cubic yards
A62: Incremental land acquisition (opportunity cost) | B62: r_land_required | C62: =IF(OR(retrofit=0,r_new_furnace=0),0,ROUNDUP(((r_build1_fp)^0.5+(2*non_fire_buffer))*((r_build1_fp)^0.5+(non_fire_buffer+fire_buffer))+IF(r_build2_fp=0,0,((r_build2_fp)^0.5+(2*non_fire_buffer))*((r_build2_fp)^0.5+(non_fire_buffer+fire_buffer)))+sept_fp+solids_pad_area,-2)/43560-land_required) -> 0 | D62: acres
A64: Permits
A65: Building #1 additional value | C65: =SUMPRODUCT(OUTPUT!J305:J308,OUTPUT!L305:L308) -> 0 | E65: Determined using Use? Column of output sheet
A66: Building #2 additional value | C66: =SUMPRODUCT(OUTPUT!J310:J313,OUTPUT!L310:L313) -> 0 | E66: Determined using Use? Column of output sheet
A67: Building permit cost | C67: =BPCost_UBC97(C65)+BPCost_UBC97(C66) -> 0 | E67: Uses custom function to apply formulae developed in SAIC Permit Report 2004
A68: NPDES permit cost | C68: 0 | E68: Retrofit does not change NPDES status
A69: Storm water permit cost | C69: =VLOOKUP(land_required+r_land_required,SW_permit_cost_cl,2)-VLOOKUP(land_required,SW_permit_cost_cl,2) -> 0 | E69: Applies to systems where retrofit pushes land over 1 acre
A70: Risk management plan | C70: 0 | E70: Not applicable for this technology
A71: NEPA compliance | C71: =IF(OR(r_new_furnace=0,include_NEPA=2),0,IF(OR(component_level=2,include_NEPA=1),VLOOKUP(r_land_required+land_required,NEPA_cost_cl,2),0)) -> 0 | E71: Included only for high cost estimates, unless assumption "include_NEPA" is changed on CDA sheet
A72: Total permit cost | B72: r_permit_cost | C72: =SUM(C67:C71) -> 0
A74: Indirect
A75: Sitework cost for retrofit | B75: r_sitework_cost | C75: =r_inc_total_fp*sitework_sf_cl -> 0
A77: Building and HVAC Maintenance
A78: Cost excluding heating and cooling | C78: =IF(include_buildings=0,0,building_matl_rate_cl*r_inc_total_fp) -> 0 | D78: /yr | E78: Labor and materials; includes routine in-house maintenance and major repairs
A79: Cost to maintain heating system, building 1 | C79: =build1_need_heat*heating_matl_rate_cl*r_inc_build1_fp -> 0 | D79: /yr
A80: Cost to maintain cooling system, building 1 | C80: =build1_need_cool*cooling_matl_rate_cl*r_inc_build1_fp -> 0 | D80: /yr
A81: Cost to maintain heating system, building 2 | C81: =build2_need_heat*heating_matl_rate_cl*r_inc_build2_fp -> 0 | D81: /yr
A82: Cost to maintain cooling system, building 2 | C82: =build2_need_cool*cooling_matl_rate_cl*r_inc_build2_fp -> 0 | D82: /yr
A83: Total annual building and HVAC maintenance | B83: r_bldg_maint_cost | C83: =SUM(C78:C82) -> 0 | E83: Includes labor and materials
A85: On-site Regeneration O&M
A86: Incremental materials for on-site GAC Regeneration | B86: r_regen_materials | C86: =IF(retrofit=0,0,IF(regen_type=1,8451.4*r_regen_capacity^0.2017,0)-regen_materials) -> 0 | D86: /year | E86: Equations developed in Working draft of "Design and Cost Estimates for Advanced Water Treatment Technologies", 9/30/00.
A87: Incremental On-site GAC regeneration labor | B87: r_regen_labor | C87: =IF(retrofit=0,0,IF(regen_type=1,2.2515*r_regen_capacity^0.7554,0)-regen_labor) -> 0 | D87: hours/year | E87: Equations developed in Working draft of "Design and Cost Estimates for Advanced Water Treatment Technologies", 9/30/00.
A88: Incremental Energy | B88: r_regen_energy | C88: =IF(retrofit=0,0,IF(regen_type=1,9.1217*r_regen_capacity^1.0475/1000-regen_energy,0)) -> 0 | D88: MWh/yr | E88: Equations developed in Working draft of "Design and Cost Estimates for Advanced Water Treatment Technologies", 9/30/00.
A89: Incremental Natural Gas | B89: r_regen_ng | C89: =IF(retrofit=0,0,IF(regen_type=1,28.161*r_inc_regen_capacity,0)) -> 0 | D89: Therms/yr | E89: Equations developed in Working draft of "Design and Cost Estimates for Advanced Water Treatment Technologies", 9/30/00.
A91: Building Lighting and Ventilation
A92: Lighting for additional building floorplan | B92: r_furnace_lighting | C92: =IF(include_buildings=0,0,MIN(1,(r_inc_Operator_LOE+Operator_LOE)/(24*365))*(r_inc_build1_fp*lighting_energy_1+r_inc_build2_fp*lighting_energy_2)/1000) -> 0 | D92: MWh/yr
A94: Building 1 weighted average air changes after retrofit | B94: r_air_changes_build1 | C94: =IF(build2_fp=0,IF(r_build1_fp=0,0,(Air_changes_contactor*(vessel_fp+back_tank_fp+r_onsite_regeneration_fp+htank_fp)+Air_changes_pump*pump_fp+Air_changes_chem_storage*(Virgin_GAC_storage_fp+Spent_GAC_storage_fp+Regenerated_GAC_storage_fp+cstore_fp)+Air_changes_office*office_fp)/r_build1_fp),Air_changes_contactor) -> 0 | D94: air changes/hr
A95: Building 2 weighted average air changes after retrofit | B95: r_air_changes_build2 | C95: =IF(build2_fp=0,0,IF(r_build2_fp=0,0,(Air_changes_contactor*(back_tank_fp+r_onsite_regeneration_fp+htank_fp)+Air_changes_pump*pump_fp+Air_changes_chem_storage*(Virgin_GAC_storage_fp+Spent_GAC_storage_fp+Regenerated_GAC_storage_fp+cstore_fp)+Air_changes_office*office_fp)/r_build2_fp)) -> 0 | D95: air changes/hr
A96: Building 1 ventilation after retrofit | C96: =CHOOSE(ss_cat2,fan_days_build1_small,fan_days_build1_medium,fan_days_build1_large)*24*0.746*Fan_pressure_drop*r_build1_fp*Building_height*r_air_changes_build1/33000 -> 0 | D96: kWh/yr
A97: Building 2 ventilation after retrofit | C97: =CHOOSE(ss_cat2,fan_days_build2_small,fan_days_build2_medium,fan_days_build2_large)*24*0.746*Fan_pressure_drop*r_build2_fp*Building_height*r_air_changes_build2/33000 -> 0 | D97: kWh/yr
A98: Total ventilation | B98: r_ventilation | C98: =IF(include_HVAC=0,0,IF(SUM(C96:C97)=0,0,SUM(C96:C97)/1000-ventilation)) -> 0 | D98: MWh/yr
A100: Building 1 ventilation | C100: =0.746*Fan_pressure_drop*r_inc_build1_fp*Building_height*air_changes_build1/33000 -> 0 | D100: kW
A101: Building 2 ventilation | C101: =0.746*Fan_pressure_drop*r_inc_build2_fp*Building_height*air_changes_build2/33000 -> 0 | D101: kW
A102: Incremental standby power for ventilation | B102: r_std_vent | C102: =IF(include_HVAC=0,0,SUM(C100:C101)) -> 0 | D102: kW

Sheet Contactor Constraints
A1: Contactor Constraint Calculations
A2: This sheet performs calculations to confirm that the contactor design on the Input page meets engineering constraints
A4: Calculation | B4: Range Name | C4: Value | D4: Units | E4: Guidance
A5: From Inputs
A6: Design Flow | B6: design_flow | C6: =IF(df_units="gpm",(1-bp_pct)*design_flow_I*24*60/1000000,(1-bp_pct)*design_flow_I) -> 0.03 | D6: MGD | E6: From input
A7: Average Flow | B7: average_flow | C7: =(1-bp_pct)*IF(af_units="gpm",average_flow_I*24*60/1000000,IF(af_units="fraction of design flow",average_flow_I*design_flow,average_flow_I)) -> 0.007 | D7: MGD | E7: From input
A8: Design Flow Rate | B8: design_flow_rate | C8: =design_flow*1000000/(24*60) -> 20.83333333 | D8: gpm | E8: Design flow expressed in gpm
A9: Average Flow Rate | B9: average_flow_rate | C9: =average_flow*1000000/(24*60) -> 4.861111111 | D9: gpm | E9: Average flow expressed in gpm
A10: Bypass Flow Rate | B10: bp_flow_rate | C10: =bp_pct/(1-bp_pct)*design_flow_rate -> 0 | D10: gpm
A11: Contaminant removal requirements | B11: EBCT_type | C11: =IF(EBCT_type_I="contaminant removal %",1,IF(EBCT_type_I="influent and effluent concentrations",2, 3)) -> 3 | D11: <--1 for contaminant removal %, 2 for influent and effluent concentrations, 3 for EBCT
A12: Target Contaminant | B12: contam_type | C12: 8 | D12: <-- Click here for list
A13: Design type chosen | B13: design_type | C13: 1 | D13: <-- 1 for Pressure, 2 for Gravity
A14: Empty Bed Contact Time | B14: EBCT | C14: =IF(EBCT_type=1,(LN(1/(1-EBCT_I))/Kss)*60,IF(EBCT_type=2,(LN(EBCT_I/EBCT_O)/Kss)*60,EBCT_I)) -> 7.5 | D14: minutes | E14: Ce/C0 = e-Kss*EBCT
A15: Is this an add-on (pre- or post-treatment) | B15: add_on | C15: =IF(addon_I="add-on",1,0) -> 0
A17: PRESSURE VESSELS
A18: Minimum number of vessels in series | B18: Num_tanks | C18: =IF(design_type=2,1,Num_tanks_I) -> 1 | D18: units
A19: Vessel geometry | B19: tank_geom | C19: =IF(tank_geom_I="upright",1,2) -> 1 | D19: <-1 for upright cylindrical, 2 for horizontal-laid cylinder
A21: From Central Cost Database
A22: Maximum Standard Vessel Diameter | B22: max_diam_std_size | C22: =IF(design_type=2,"-",max_vessel_diam_cl) -> 14 | D22: feet
A23: Minimum Vessel Diameter | B23: min_diam | C23: =IF(design_type=2,"-",min_vessel_diam_cl) -> 1.5 | D23: feet
A24: Maximum Vessel Diameter | B24: max_diam | C24: =IF(design_type=2,"-",IF(max_diam_override>0,max_diam_override,max_diam_std_size)) -> 14 | D24: feet | E24: Standard unless overridden on CDA's
A26: Vessel Constraints
A27: EBCT per vessel | B27: EBCT_tank | C27: =IF(design_type=2,"-",EBCT/Num_tanks) -> 7.5 | D27: minutes
A28: Vessel surface area | B28: max_sa | C28: =IF(tank_geom=1,(comm_diam-(2*Vessel_thickness))^2*PI()/4,IF(tank_geom=2,(comm_diam-(2*Vessel_thickness))*comm_height_length)) -> 3.141592654 | D28: square feet
A29: Height available above media bed (for horizontal vessels) | B29: distance_above | C29: =IF(design_type=2,"-",IF(tank_geom=2,comm_diam-bed_depth-horiz_underdrain,"NA")) -> NA | D29: ft
A30: Void space above media bed (for horizontal vessels) | B30: void_above | C30: =IF(design_type=2,"-",IF(tank_geom=2,comm_height_length*(comm_diam*comm_diam/2*ASIN(SQRT(distance_above/comm_diam))-(comm_diam/2-distance_above)*SQRT((comm_diam-distance_above)*distance_above)),"NA")) -> NA | D30: cubic feet
A31: Maximum flow per vessel | B31: flow_per_vessel | C31: =IF(design_type=2,"-",IF(tank_geom=1,(max_sa*bed_depth*7.48)/EBCT_tank,media_volume*7.48/EBCT_tank)) -> 10.65293125 | D31: gpm
A32: Number of parallel treatment trains | B32: num_treat_lines | C32: =IF(design_type=2,"-",ROUNDUP(design_flow_rate/flow_per_vessel,0)) -> 2 | D32: lines
A33: Number of vessels excluding redundancy | B33: op_num_tanks | C33: =IF(design_type=2,"-",ROUNDUP(design_flow_rate/flow_per_vessel,0)*Num_tanks) -> 2 | D33: units
A34: Number of redundant units | B34: NRD | C34: =IF(design_type=2,"-",IF(NRD_I<>"",NRD_I,IF(design_flow>=1,ROUNDUP(num_treat_lines/redund_freq,0),IF(op_num_tanks=1,NRD_small_1,NRD_small)))) -> 0 | D34: units
A35: Total number of vessels including redundancy | B35: final_num_tanks | C35: =IF(design_type=2,0,op_num_tanks+NRD) -> 2 | D35: units
A37: Vessel requirements based on bed depth and contact time
A38: Minimum total contact material needed | B38: contact_material | C38: =IF(design_type=2,"-",design_flow_rate*EBCT/(7.481)) -> 20.88624515 | D38: cubic feet
A39: Minimum volume of contact material per vessel | B39: contact_mat_per_vessel | C39: =IF(design_type=2,"-",contact_material/op_num_tanks) -> 10.44312258 | D39: cubic feet
A40: Minimum surface area of contact material | B40: SA | C40: =IF(design_type=2,"-",contact_mat_per_vessel/(bed_depth)) -> 3.07150664 | D40: square feet
A42: Quantities based on user-specified vessel dimensions
A43: Final surface area of contact material | B43: comm_SA | C43: =IF(design_type=2,"-",IF(tank_geom=1,(comm_diam-(2*Vessel_thickness))^2*PI()/4,IF(tank_geom=2,(comm_diam-(2*Vessel_thickness))*comm_height_length))) -> 3.141592654 | D43: square feet
A44: Final surface loading rate | B44: comm_load_rate | C44: =IF(design_type=2,"-",(design_flow_rate/num_treat_lines)/comm_SA) -> 3.315727981 | D44: gpm/square ft
A45: Total vessel volume | B45: comm_vol | C45: =IF(design_type=2,"-",PI()*comm_diam^2/4*comm_height_length) -> 18.84955592 | D45: cubic feet
B46: comm_vol_gal | C46: =IF(design_type=2,"-",comm_vol*7.48) -> 140.9946783 | D46: gal
A48: Checks on user-specified dimensions
A49: Design dimensions for vertical vessels:
A50: Height of vessel required | B50: height | C50: =IF(design_type=2,"-",bed_depth*(1+bed_expansion)+free_board) -> 5.6 | D50: feet
A51: Required vessel diameter (circular vessels) | B51: diameter | C51: =IF(design_type=2,"-",(SA*4/PI())^0.5+(2*Vessel_thickness)) -> 1.977565098 | D51: feet
A52: Minimum commercial height given diameter | B52: min_comm_height | C52: =IF(design_type=2,"-",VLOOKUP(comm_diam,vessel_size_table_cl,2)) -> 3.5 | D52: feet
A53: Maximum commercial height given diameter | B53: max_comm_height | C53: =IF(design_type=2,"-",VLOOKUP(comm_diam,vessel_size_table_cl,3)) -> 7.5 | D53: feet
A55: Void space required for horizontal vessels:
A56: For freeboard | B56: freeboard_horiz_void | C56: =IF(design_type=2,"-",comm_height_length*(comm_diam*comm_diam/2*ASIN(SQRT(free_board/comm_diam))-(comm_diam/2-free_board)*SQRT((comm_diam-free_board)*free_board))) -> 3.685109096 | D56: cubic feet | E56: Volume of a horizontal slice taken out of a cylinder
A57: For underdrain | B57: underdrain_horiz_void | C57: =IF(design_type=2,"-",comm_height_length*(comm_diam*comm_diam/2*ASIN(SQRT(horiz_underdrain/comm_diam))-(comm_diam/2-horiz_underdrain)*SQRT((comm_diam-horiz_underdrain)*horiz_underdrain))) -> 15.16444683 | D57: cubic feet
A58: Total | B58: horiz_void | C58: =IF(design_type=2,"-",freeboard_horiz_void+underdrain_horiz_void) -> 18.84955592 | D58: cubic feet
A60: Volume available for media and expansion:
A61: Vertical vessel | B61: vert_vol_available | C61: =IF(design_type=2,"-",(comm_height_length-free_board)*PI()*comm_diam^2/4) -> 17.27875959 | D61: cubic feet
A62: Horizontal vessel | B62: horiz_vol_available | C62: =IF(design_type=2,"-",comm_vol-horiz_void) -> 0 | D62: cubic feet
A63: For selected vessel geometry | B63: input_vol_vess | C63: =IF(design_type=2,"-",CHOOSE(tank_geom,vert_vol_available,horiz_vol_available)) -> 17.27875959 | D63: cubic feet | E63: To be compared to vol_vessel, to determine whether vessel is oversized.
A65: GRAVITY CONTACT BASINS
A66: Minimum volume required | B66: min_basin_vol | C66: =IF(design_type=1,"-",design_flow_rate*EBCT/7.48) -> - | D66: cubic ft
A67: Number of basins (no redundancy) | B67: op_num_basins | C67: =IF(design_type=1,"-",ROUNDUP(min_basin_vol/(basin_width*basin_length*basin_op_depth),0)) -> -
A68: Basin depth including freeboard | B68: basin_depth | C68: =IF(design_type=1,"-",basin_op_depth*(1+bed_expansion)+basin_freeboard) -> - | D68: ft
A69: Total basin volume | B69: basin_vol | C69: =IF(design_type=1,"-",basin_width*basin_length*basin_depth*7.48) -> - | D69: gal
A70: Basin loading rate | B70: surface_loading_rate_g | C70: =IF(design_type=1,"-",design_flow_rate/(op_num_basins*(basin_width*basin_length))) -> - | D70: gpm/square ft
A71: Number of reduntant basins | B71: NRD_g | C71: =IF(design_type=1,"-",IF(NRD_I<>"",NRD_I,IF(op_num_basins=1,NRD_small_1,CHOOSE(ss_cat2,NRD_small,NRD_basins_medium,NRD_basins_large)))) -> - | D71: units
A72: Total number of basins (incl. redundancy) | B72: total_num_basins | C72: =IF(design_type=1,0,op_num_basins+NRD_g) -> 0 | D72: units
A73: Concrete volume | B73: basin_conc_vol | C73: =IF(design_type=1,0,(2*(basin_width*total_num_basins+conc_thick*(total_num_basins+1))*basin_depth*conc_thick+(total_num_basins+1)*basin_length*basin_depth*conc_thick+(basin_length+2*conc_thick)*(basin_width*total_num_basins+conc_thick*(total_num_basins+1))*conc_thick)/27) -> 0 | D73: cubic yd | E73: incorporates common wall design
A74: Excavation volume | B74: excavation_vol | C74: =IF(design_type=1,"-",((total_num_basins*basin_width+(total_num_basins+1)*conc_thick+overexcavate)*(basin_length+2*conc_thick+overexcavate)*(basin_depth+conc_thick+overexcavate)+0.5*(3*(basin_depth+conc_thick+overexcavate)*(basin_depth+conc_thick+overexcavate)*(basin_length+2*conc_thick+overexcavate)))/27) -> - | D74: cubic yd | E74: incorporates common wall design, includes ramping for moving earth out of excavated area, assumes flush with grade (conservative)
A75: Backfill volume | B75: backfill_vol | C75: =IF(design_type=1,"-",excavation_vol-(total_num_basins*basin_width+(total_num_basins+1)*conc_thick)*(basin_length+2*conc_thick)*(basin_depth+conc_thick)/27) -> - | D75: cubic yd
A76: Railing length | B76: railing | C76: =IF(design_type=1,"-",2*(total_num_basins*basin_width+2*conc_thick/2+(total_num_basins-1)*conc_thick)+2*(basin_length+2*conc_thick/2)) -> - | D76: lf | E76: incorporates common wall design, single railing (concrete thickness is not sufficient to provide walkway)
A77: Surface area each contactor | B77: basin_area | C77: =IF(design_type=1,"-",basin_width*basin_length) -> - | D77: square ft | E77: for internals costing
A79: MEDIA QUANITITIES
A80: GAC volume per contactor | B80: media_volume | C80: =IF(design_type=1,IF(tank_geom=1,comm_SA*bed_depth,IF(tank_geom=2,comm_vol-underdrain_horiz_void-void_above)),basin_width*basin_length*basin_op_depth) -> 10.68141502 | D80: cubic feet
A81: GAC quantity each contactor | B81: GAC_each | C81: =media_volume*GAC_density -> 320.4424507 | D81: lbs
A82: Total GAC quanity | B82: GAC | C82: =GAC_each*IF(design_type=1,final_num_tanks,total_num_basins) -> 640.8849013 | D82: lbs
A83: GAC volume when expanded | B83: media_volume_expanded | C83: =media_volume*(1+bed_expansion) -> 16.02212253 | D83: cubic feet

Sheet Backwash and Regeneration
A1: Backwash and Regeneration Calculations
A3: Calculation | B3: Range Name | C3: Value | D3: Units | E3: Guidance
A4: From Input
A5: Carbon life input type | B5: freund_type | C5: =IF(freund_type_I="carbon life value- months",1,IF(freund_type_I="calculation from Freundlich isotherm",2,IF(freund_type_I="calculation from BDST",3,4))) -> 4 | D5: <-- 1 for bed life in months, 2 for calculation from Freundlich isotherms, 4 for bed life in bed volumes
A6: Spent media regeneration method | B6: regen_type | C6: =IF(regen_type_I="regeneration on-site",1,IF(regen_type_I="regeneration off-site (non-hazardous)",2,IF(regen_type_I="throwaway (non-hazardous)",3,IF(regen_type_I="regeneration off-site (hazardous)",4,IF(regen_type_I="throwaway (hazardous)",5,IF(regen_type_I="throwaway (radioactive)",6,7)))))) -> 2 | D6: <-- 1 for regeneration on-site, 2 for regeneration off-site (non-hazardous), 3 for throwaway (non-hazardous), 4 for regeneration off-site (hazardous), 5 for throwaway (hazardous), 6 for throwaway (radioactive), 7 for throwaway (hazardous & radioactive)
A8: Interval between backwashes | B8: back_interval | C8: =back_interval_I -> 168 | D8: hours
A9: No backwash pumps | B9: no_backwash | C9: =IF(no_backwash_I="existing pumps",1,IF(no_backwash_I="new pumps","",IF(ss_cat2=1,1,""))) -> 1 | D9: <-- 1 = backwash using existing supply or treated water pumps, blank = include backwash pumps in costs
A10: No backwash tanks | B10: no_back_tank | C10: =IF(no_back_tank_I="existing storage",1,IF(no_back_tank_I="new storage","",IF(ss_cat2=2,"",1))) -> 1 | D10: <-- 1 = backwash from existing storage or supply, blank = include backwash tanks in costs
A12: Backwash
A13: Backwash flow | B13: water_flush | C13: =ROUND(h2oflush_backwash_rate*IF(design_type=1,comm_SA,basin_width*basin_length),0) -> 38 | D13: gpm
A14: Total backwash volume | B14: total_backwash | C14: =water_flush*backwash_time -> 380 | D14: gallons
A15: Backwash storage volume in cubic feet | B15: back_vol_ft | C15: =total_backwash*back_multiplier/7.48 -> 50.80213904 | D15: cubic ft | E15: If concrete basins are used, rather than tanks
A16: Number of backwash basins | B16: back_basins | C16: =IF(no_back_tank=1,0,back_basins_default) -> 0 | D16: units | E16: If concrete basins are used, rather than tanks
A17: Backwash basin operating depth | B17: back_basin_op_depth | C17: =IF(back_basins=0,0,ROUNDUP((back_vol_ft/back_basins)^(1/3)*back_ratio,0)) -> 0 | D17: feet | E17: If concrete basins are used, rather than tanks
A18: Backwash basin width | B18: back_basin_width | C18: =IF(back_basins=0,0,ROUNDUP(((back_vol_ft/back_basins)/back_basin_op_depth)^0.5,0)) -> 0 | D18: feet | E18: If concrete basins are used, rather than tanks
A19: Backwash basin length | B19: back_basin_length | C19: =back_basin_width -> 0 | D19: feet | E19: If concrete basins are used, rather than tanks
A20: Backwash basin depth including freeboard | B20: back_basin_depth | C20: =IF(back_basins=0,0,back_basin_op_depth+back_freeboard) -> 0 | D20: feet | E20: If concrete basins are used, rather than tanks
A21: Backwash basin volume | B21: back_basin_vol | C21: =ROUND(back_basin_width*back_basin_length*back_basin_depth*7.48,0) -> 0 | D21: gal | E21: If concrete basins are used, rather than tanks
A22: Concrete volume | B22: back_conc_vol | C22: =(2*(back_basin_width*back_basins+conc_thick*(back_basins+1))*back_basin_depth*conc_thick+(back_basins+1)*back_basin_length*back_basin_depth*conc_thick+(back_basin_length+2*conc_thick)*(back_basin_width*back_basins+conc_thick*(back_basins+1))*conc_thick)/27 -> 0.07407407407 | D22: cubic yd | E22: If concrete basins are used, rather than tanks
A23: Excavation volume | B23: back_excavation_vol | C23: =IF(back_basins=0,0,((back_basins*back_basin_width+(back_basins+1)*conc_thick+overexcavate)*(back_basin_length+2*conc_thick+overexcavate)*(back_basin_depth+conc_thick+overexcavate)+0.5*(3*(back_basin_depth+conc_thick+overexcavate)*(back_basin_depth+conc_thick+overexcavate)*(back_basin_length+2*conc_thick+overexcavate)))/27) -> 0 | D23: cubic yd | E23: If concrete basins are used, rather than tanks
A24: Backfill volume | B24: back_backfill_vol | C24: =IF(back_basins=0,0,back_excavation_vol-(back_basins*back_basin_width+(back_basins+1)*conc_thick)*(back_basin_length+2*conc_thick)*(back_basin_depth+conc_thick)/27) -> 0 | D24: cubic yd | E24: If concrete basins are used, rather than tanks
A25: Railing length | B25: back_railing | C25: =IF(back_basins=0,0,2*(back_basins*back_basin_width+2*conc_thick/2+(back_basins-1)*conc_thick)+2*(back_basin_length+2*conc_thick/2)) -> 0 | D25: lf | E25: If concrete basins are used, rather than tanks
A26: Maximum backwash tank size | B26: max_back_tank_size | C26: =MAX(VLOOKUP(10^6,st_bwt_cost_cl,1)-1,VLOOKUP(10^6,fg_bwt_cost_cl,1)-1,VLOOKUP(10^6,hdpe_bwt_cost_cl,1)-1) -> 289000 | D26: gallons | E26: The largest size for which costs are available. Applies to backwash tanks and steel GAC storage tanks (below).
A27: Number of backwash tanks | B27: num_back_tanks | C27: =IF(no_back_tank=1,0,ROUNDUP(total_backwash*back_multiplier/max_back_tank_size,0)) -> 0 | D27: units
A28: Backwash tank volume | B28: back_tank_vol | C28: =IF(no_back_tank=1,0,total_backwash*back_multiplier/num_back_tanks) -> 0 | D28: gallons
A30: Regeneration
A31: GAC in grams | B31: M | C31: =IF(design_type=1,GAC_each*num_treat_lines,GAC)*453.59 -> 290698.9824 | D31: grams | E31: For Freundlich calculation
A32: Flow rate in L/min | B32: QL | C32: =average_flow_rate*3.785 -> 18.39930556 | D32: L/min | E32: For Freundlich calculation
A33: N0/e | B33: N_0_e | C33: =freund_1*GAC_density*453.59/0.02832 -> 3.20011589e+10 | D33: mg/cubic m | E33: For BDST calculation
A34: Fluid velocity | B34: v | C34: =QL*0.001/IF(design_type=1,comm_SA*num_treat_lines*0.093,basin_width*basin_length*total_num_basins*0.093) -> 0.03148753149 | D34: m/min | E34: For BDST calculation
A35: Bed depth in meters | B35: D | C35: =IF(design_type=1,bed_depth,basin_op_depth)*0.3048 -> 1.03632 | D35: m | E35: For BDST calculation
A36: Bed life | B36: bed_life | C36: =CHOOSE(freund_type,freund_1,(M*(freund_1/1000)*(C_0*1000)^freund_2/(QL*(C_0-C_b)))/(30*24*60),(N_0_e/(1000*v*C_0)*D-LOG(C_0/C_b-1)/(freund_2*C_0))/(30*24*60),freund_1*IF(design_type=1,media_volume*num_treat_lines*IF(BV_definition="EBCT per vessel",1,Num_tanks),media_volume*op_num_basins)*7.48/average_flow_rate/60/24/30) -> 50.6775158 | D36: months
A38: Average regeneration rate | B38: regen_day | C38: =GAC_each*IF(design_type=1,num_treat_lines,op_num_basins)/(bed_life/12)/365 -> 0.4157699565 | D38: lbs/day
A39: Regeneration capacity needed (on-site only) | B39: regen_capacity | C39: =(regen_day/regen_runtime)*regen_redund -> 0.4891411253 | D39: lbs/day | E39: Capacity of on-site regeneration increased to account for system runtime and redundancy needs
A40: Maximum furnace capacity | B40: max_furnace_size | C40: =VLOOKUP(10^6,on_regen_cost_cl,1)-1 -> 100000 | D40: lbs/day | E40: The largest size for which costs are available
A41: Number of furnaces for on-site regeneration | B41: num_furnaces | C41: =IF(regen_type=1,ROUNDUP(regen_capacity/max_furnace_size,0),0) -> 0 | D41: units
A42: Capacity of each furnace | B42: furnace_size | C42: =IF(num_furnaces=0,0,regen_capacity/num_furnaces) -> 0 | D42: lbs/day
A43: Total annual GAC needed | B43: GAC_yr | C43: =regen_day*365 -> 151.7560341 | D43: lbs/yr | E43: When regenerating, this quantity is made up of regenerated GAC + makeup GAC
A44: Annual Regenerated GAC | B44: regen_yr | C44: =CHOOSE(regen_type,(1-makeup_rate)*GAC_yr,(1-makeup_rate_off)*GAC_yr,0,(1-makeup_rate_off)*GAC_yr,0,0,0) -> 106.2292239 | D44: lbs/yr
A45: Annual Virgin GAC | B45: GAC_makeup | C45: =CHOOSE(regen_type,makeup_rate*GAC_yr,makeup_rate_off*GAC_yr,GAC_yr,makeup_rate_off*GAC_yr,GAC_yr,GAC_yr,GAC_yr) -> 45.52681023 | D45: lbs/yr
A47: GAC Storage (when on-site regeneration is used)
A48: Virgin GAC storage (on-site only) | B48: virgin_storage | C48: =(GAC_each/GAC_density)*virgin_storage_bv -> 14.20628198 | D48: cubic ft
A49: Spent GAC storage (on-site only) | B49: spent_storage | C49: =(GAC_each/GAC_density)*spent_storage_bv -> 14.20628198 | D49: cubic ft
A50: Regenerated GAC storage (on-site only) | B50: regen_storage | C50: =(GAC_each/GAC_density)*regen_storage_bv -> 14.20628198 | D50: cubic ft
A52: Virgin GAC Storage basin operating depth | B52: virgin_basin_op_depth | C52: =ROUNDUP((virgin_storage/storage_basins)^(1/3)*storage_ratio,0) -> 2 | D52: feet | E52: If concrete basins are used, rather than tanks
A53: Virgin GAC Storage basin width | B53: virgin_basin_width | C53: =ROUNDUP(((virgin_storage/storage_basins)/virgin_basin_op_depth)^0.5,0) -> 3 | D53: feet | E53: If concrete basins are used, rather than tanks
A54: Virgin GAC Storage basin length | B54: virgin_basin_length | C54: =virgin_basin_width -> 3 | D54: feet | E54: If concrete basins are used, rather than tanks
A55: Depth including freeboard | B55: virgin_basin_depth | C55: =virgin_basin_op_depth+storage_freeboard -> 5 | D55: feet | E55: If concrete basins are used, rather than tanks
A56: Virgin GAC Storage basin volume | B56: virgin_basin_vol | C56: =ROUND(virgin_basin_width*virgin_basin_length*virgin_basin_depth*7.48,0) -> 337 | D56: gal | E56: If concrete basins are used, rather than tanks
A57: Concrete volume | B57: virgin_conc_vol | C57: =ROUNDUP(((2*virgin_basin_depth*virgin_basin_length+2*virgin_basin_depth*virgin_basin_width+virgin_basin_width*virgin_basin_length)*1.2*conc_thick*storage_basins)/27,0) -> 4 | D57: cubic yd | E57: If concrete basins are used, rather than tanks
B58: virgin_excavation_vol | C58: =ROUNDUP(((virgin_basin_width+overexcavate)*(virgin_basin_length+overexcavate)*(virgin_basin_depth+overexcavate)+0.5*(3*(virgin_basin_depth+overexcavate)*(virgin_basin_width+overexcavate)*(virgin_basin_depth+overexcavate)))*storage_basins/27,0) -> 48 | D58: cubic yd | E58: If concrete basins are used, rather than tanks
A59: Backfill volume | B59: virgin_backfill_vol | C59: =ROUNDUP(virgin_excavation_vol-(virgin_basin_width*virgin_basin_length*virgin_basin_depth*storage_basins)/27,0) -> 47 | D59: cubic yd | E59: If concrete basins are used, rather than tanks
A60: Railing length | B60: virgin_railing | C60: =(virgin_basin_width*2+virgin_basin_length*2)*storage_basins*2 -> 24 | D60: lf | E60: If concrete basins are used, rather than tanks
A61: Number of Virgin GAC Storage tanks | B61: virgin_tanks | C61: =ROUNDUP(virgin_storage*7.48/max_back_tank_size,0) -> 1 | D61: units | E61: If tanks are used, rather than concrete basins
A62: Virgin GAC Storage tank volume | B62: virgin_tank_vol | C62: =virgin_storage*7.48/virgin_tanks -> 106.2629892 | D62: gal | E62: If tanks are used, rather than concrete basins
A64: Spent GAC Storage basin operating depth | B64: spent_basin_op_depth | C64: =ROUNDUP((spent_storage/storage_basins)^(1/3)*storage_ratio,0) -> 2 | D64: feet | E64: If concrete basins are used, rather than tanks
A65: Spent GAC Storage basin width | B65: spent_basin_width | C65: =ROUNDUP(((spent_storage/storage_basins)/spent_basin_op_depth)^0.5,0) -> 3 | D65: feet | E65: If concrete basins are used, rather than tanks
A66: Spent GAC Storage basin length | B66: spent_basin_length | C66: =spent_basin_width -> 3 | D66: feet | E66: If concrete basins are used, rather than tanks
A67: Depth including freeboard | B67: spent_basin_depth | C67: =spent_basin_op_depth+storage_freeboard -> 5 | D67: feet | E67: If concrete basins are used, rather than tanks
A68: Spent GAC Storage basin volume | B68: spent_basin_vol | C68: =ROUND(spent_basin_width*spent_basin_length*spent_basin_depth*7.48,0) -> 337 | D68: gal | E68: If concrete basins are used, rather than tanks
A69: Concrete volume | B69: spent_conc_vol | C69: =ROUNDUP(((2*spent_basin_depth*spent_basin_length+2*spent_basin_depth*spent_basin_width+spent_basin_width*spent_basin_length)*1.2*conc_thick*storage_basins)/27,0) -> 4 | D69: cubic yd | E69: If concrete basins are used, rather than tanks
B70: spent_excavation_vol | C70: =ROUNDUP(((spent_basin_width+overexcavate)*(spent_basin_length+overexcavate)*(spent_basin_depth+overexcavate)+0.5*(3*(spent_basin_depth+overexcavate)*(spent_basin_width+overexcavate)*(spent_basin_depth+overexcavate)))*storage_basins/27,0) -> 48 | D70: cubic yd | E70: If concrete basins are used, rather than tanks
A71: Backfill volume | B71: spent_backfill_vol | C71: =ROUNDUP(spent_excavation_vol-(spent_basin_width*spent_basin_length*spent_basin_depth*storage_basins)/27,0) -> 47 | D71: cubic yd | E71: If concrete basins are used, rather than tanks
A72: Railing length | B72: spent_railing | C72: =(spent_basin_width*2+spent_basin_length*2)*storage_basins*2 -> 24 | D72: lf | E72: If concrete basins are used, rather than tanks
A73: Number of Spent GAC Storage tanks | B73: spent_tanks | C73: =ROUNDUP(spent_storage*7.48/max_back_tank_size,0) -> 1 | D73: units | E73: If tanks are used, rather than concrete basins
A74: Spent GAC Storage tank volume | B74: spent_tank_vol | C74: =spent_storage*7.48/spent_tanks -> 106.2629892 | D74: gal | E74: If tanks are used, rather than concrete basins
A76: Regenerated GAC Storage basin operating depth | B76: regen_basin_op_depth | C76: =ROUNDUP((regen_storage/storage_basins)^(1/3)*storage_ratio,0) -> 2 | D76: feet | E76: If concrete basins are used, rather than tanks
A77: Regenerated GAC Storage basin width | B77: regen_basin_width | C77: =ROUNDUP(((regen_storage/storage_basins)/regen_basin_op_depth)^0.5,0) -> 3 | D77: feet | E77: If concrete basins are used, rather than tanks
A78: Regenerated GAC Storage basin length | B78: regen_basin_length | C78: =regen_basin_width -> 3 | D78: feet | E78: If concrete basins are used, rather than tanks
A79: Depth including freeboard | B79: regen_basin_depth | C79: =regen_basin_op_depth+storage_freeboard -> 5 | D79: feet | E79: If concrete basins are used, rather than tanks
A80: Regenerated GAC Storage basin volume | B80: regen_basin_vol | C80: =ROUND(regen_basin_width*regen_basin_length*regen_basin_depth*7.48,0) -> 337 | D80: gal | E80: If concrete basins are used, rather than tanks
A81: Concrete volume | B81: regen_conc_vol | C81: =ROUNDUP(((2*regen_basin_depth*regen_basin_length+2*regen_basin_depth*regen_basin_width+regen_basin_width*regen_basin_length)*1.2*conc_thick*storage_basins)/27,0) -> 4 | D81: cubic yd | E81: If concrete basins are used, rather than tanks
B82: regen_excavation_vol | C82: =ROUNDUP(((regen_basin_width+overexcavate)*(regen_basin_length+overexcavate)*(regen_basin_depth+overexcavate)+0.5*(3*(regen_basin_depth+overexcavate)*(regen_basin_width+overexcavate)*(regen_basin_depth+overexcavate)))*storage_basins/27,0) -> 48 | D82: cubic yd | E82: If concrete basins are used, rather than tanks
A83: Backfill volume | B83: regen_backfill_vol | C83: =ROUNDUP(regen_excavation_vol-(regen_basin_width*regen_basin_length*regen_basin_depth*storage_basins)/27,0) -> 47 | D83: cubic yd | E83: If concrete basins are used, rather than tanks
A84: Railing length | B84: regen_railing | C84: =(regen_basin_width*2+regen_basin_length*2)*storage_basins*2 -> 24 | D84: lf | E84: If concrete basins are used, rather than tanks
A85: Number of Regenerated GAC Storage tanks | B85: regen_tanks | C85: =ROUNDUP(regen_storage*7.48/max_back_tank_size,0) -> 1 | D85: units | E85: If tanks are used, rather than concrete basins
A86: Regenerated GAC Storage tank volume | B86: regen_tank_vol | C86: =regen_storage*7.48/regen_tanks -> 106.2629892 | D86: gal | E86: If tanks are used, rather than concrete basins

Sheet Pumps Pipe Structure
A1: Pumps, Piping, and Structure Calculations
A3: Calculation | B3: Range Name | C3: Value | D3: Units | E3: Guidance
A4: Pumps and Transfer Equipment
A5: GAC transfer method | B5: transfer_method | C5: =IF(transfer_method_I="slurry pumps",1,IF(transfer_method_I="eductors",2,3)) -> 3 | D5: <-- 1 for slurry pumps, 2 for eductors, 3 for manual transfer
A7: Booster pump rating | B7: pump_rating | C7: =IF(lines_pump_I="",IF(AND(ss_cat2=1,design_type=1),0,MIN(MAX(average_flow_rate+bp_flow_rate*average_flow_rate/design_flow_rate,(design_flow_rate+bp_flow_rate)/2)*(1+pump_safety_factor),max_pump_size)),IF(lines_pump_I=0,0,(design_flow_rate+bp_flow_rate)*(1+pump_safety_factor)/lines_pump_I)) -> 0 | D7: gpm | E7: Includes safety factor
A8: Maximum pump size | B8: max_pump_size | C8: =VLOOKUP(10^6,pump_cost_cl,1)-1 -> 10000 | D8: gpm | E8: The largest pump size for which costs are available. Applies to booster pumps and backwash pumps. For booster pumps, will override lines per pump input, if this input results in pumps that are too large.
A9: Number of booster pumps | B9: booster_pumps | C9: =IF(pump_rating=0,0,ROUNDUP((design_flow_rate+bp_flow_rate)*(1+pump_safety_factor)/pump_rating,0)) -> 0 | D9: units | E9: Operating pumps
A10: Total booster pumps | B10: total_booster_pumps | C10: =IF(booster_pumps=0,0,booster_pumps+NRD_pumps) -> 0 | D10: units | E10: Includes redundancy
A12: Backwash pumping flow needed | B12: back_pump_flow_total | C12: =water_flush*(1+pump_safety_factor) -> 47.5 | D12: gpm | E12: Includes safety factor
A13: Number of backwash pumps | B13: backwash_pumps | C13: =IF(no_backwash=1,0,ROUNDUP(back_pump_flow_total/max_pump_size,0)+NRD_back_pumps) -> 0 | D13: pumps | E13: Multiple pumps used if total backwash flow is very high, includes redundant pumps
A14: Backwash pump rating | B14: back_pump_rating | C14: =IF(no_backwash=1,0,back_pump_flow_total/(backwash_pumps-NRD_back_pumps)) -> 0 | D14: gpm
A16: Transfer rate required | B16: transfer_rate | C16: =GAC_each/transfer_time -> 80.11061267 | D16: lbs/hr
A17: Maximum eductor size | B17: max_eductor_size | C17: =VLOOKUP(10^6,eductor_size_table_cl,1)*GAC_density/7.48*60 -> 12874.33155 | D17: lbs/hr | E17: The largest size for which costs are available. Assumption used only if tanks are used.
A18: Number of eductors | B18: eductors | C18: =IF(transfer_method=2,ROUNDUP(transfer_rate/max_eductor_size,0)+NRD_eductors,0) -> 0 | D18: units
A19: Eductor size | B19: eductor_size | C19: =IF(transfer_method=2,VLOOKUP(transfer_rate/(eductors-NRD_eductors),eductor_size_table,2),"NA") -> NA | D19: inches
A21: Piping Design
A22: Influent and treated water pipe length | B22: in_out_pipe_length | C22: =in_out_pipe_mult*facil_length -> 20 | D22: linear feet
A23: Influent and treated water pipe flow | B23: in_out_pipe_flow | C23: =design_flow_rate -> 20.83333333 | D23: gpm
A24: Influent and treated water piping diameter | B24: in_out_pipe_diam | C24: =VLOOKUP(in_out_pipe_flow,pipe_size_table_cl,2) -> 1.5 | D24: inches
A25: Process piping length | B25: proc_pipe_length | C25: =proc_pipe_mult*facil_length -> 20 | D25: linear feet
A26: Process pipe flow | B26: proc_pipe_flow | C26: =IF(design_type=1,flow_per_vessel,design_flow_rate/op_num_basins) -> 10.65293125 | D26: gpm
A27: Process pipe diameter | B27: proc_pipe_diam | C27: =VLOOKUP(proc_pipe_flow,pipe_size_table_cl,2) -> 1.5 | D27: inches
A28: Backwash piping length | B28: back_pipe_length | C28: =back_pipe_mult*facil_length -> 25 | D28: linear feet
A29: Backwash pipe flow | B29: back_pipe_flow | C29: =water_flush -> 38 | D29: gpm
A30: Backwash pipe diameter | B30: back_pipe_diam | C30: =VLOOKUP(back_pipe_flow,pipe_size_table_cl,2) -> 2 | D30: inches
A31: Bypass piping length | B31: bp_pipe_length | C31: =IF(bp_pct>0,bp_pipe_mult*facil_length,0) -> 0 | D31: linear feet
A32: Bypass pipe diameter | B32: bp_pipe_diam | C32: =IF(bp_pct>0,VLOOKUP(bp_flow_rate,pipe_size_table_cl,2),0) -> 0 | D32: inches
A33: Ferric chloride addition pipe length | B33: coag_pipe_length | C33: =IF(coag_day_gal=0,0,chem_pipe_mult*facil_length) -> 0 | D33: linear feet
A34: Ferric chloride pipe flow | B34: coag_pipe_flow | C34: =coag_rate/60 -> 0 | D34: gpm
A35: Ferric chloride pipe diameter | B35: coag_pipe_diam | C35: =IF(coag_day_gal=0,0,VLOOKUP(coag_pipe_flow,pipe_size_table_cl,2)) -> 0 | D35: inches
A36: Polymer addition pipe length | B36: polymer_pipe_length | C36: =IF(polymer_day=0,0,chem_pipe_mult*facil_length) -> 0 | D36: linear feet
A37: Polymer pipe flow | B37: polymer_pipe_flow | C37: =polymer_rate/60 -> 0 | D37: gpm
A38: Polymer pipe diameter | B38: polymer_pipe_diam | C38: =IF(polymer_day=0,0,VLOOKUP(polymer_pipe_flow,pipe_size_table_cl,2)) -> 0 | D38: inches
A40: Building Structure
A41: Backwash tank diameter | B41: bt_diam | C41: =ROUNDUP(2*(MAX((2*back_tank_vol/7.48/PI())^(1/3),(4*back_tank_vol/7.48/PI()/(Building_height-ceiling_clearance))^(1/2))),0)/2 -> 0 | D41: feet
A42: Virgin GAC storage tank diameter | B42: vt_diam | C42: =ROUNDUP(2*(MAX((2*virgin_tank_vol/7.48/PI())^(1/3),(4*virgin_tank_vol/7.48/PI()/(Building_height-ceiling_clearance))^(1/2))),0)/2 -> 2.5 | D42: feet
A43: Spent GAC storage tank diameter | B43: st_diam | C43: =ROUNDUP(2*(MAX((2*spent_tank_vol/7.48/PI())^(1/3),(4*spent_tank_vol/7.48/PI()/(Building_height-ceiling_clearance))^(1/2))),0)/2 -> 2.5 | D43: feet
A44: Regenerated GAC storage tank diameter | B44: rt_diam | C44: =ROUNDUP(2*(MAX((2*regen_tank_vol/7.48/PI())^(1/3),(4*regen_tank_vol/7.48/PI()/(Building_height-ceiling_clearance))^(1/2))),0)/2 -> 2.5 | D44: feet
A45: Residuals holding tank diameter | B45: ht_diam | C45: =ROUNDUP(2*(MAX((2*htank_vol/7.48/PI())^(1/3),(4*htank_vol/7.48/PI()/(Building_height-ceiling_clearance))^(1/2))),0)/2 -> 0 | D45: feet
A46: Ferric chloride storage tank diameter | B46: coag_st_diam | C46: =ROUNDUP(2*(MAX((2*coag_tank_vol/7.48/PI())^(1/3),(4*coag_tank_vol/7.48/PI()/(Building_height-ceiling_clearance))^(1/2))),0)/2 -> 0 | D46: feet
A47: Polymer storage tank diameter | B47: polymer_st_diam | C47: =ROUNDUP(2*(MAX((2*polymer_tank_vol/7.48/PI())^(1/3),(4*polymer_tank_vol/7.48/PI()/(Building_height-ceiling_clearance))^(1/2))),0)/2 -> 0 | D47: feet
A48: Maximum access space per vessel or tank | B48: max_space_vessels | C48: =IF(AND(design_type=1,ss_cat2=1),max_space_vessels_pre,max_space_vessels_cust) -> 1 | D48: feet
A49: Access space per pressure vessel | B49: space_vessels | C49: =IF(tank_geom=2,max_space_vessels,IF(comm_diam>max_space_vessels,max_space_vessels,comm_diam)) -> 1 | D49: feet
A50: Access space per backwash tank | B50: space_bt | C50: =IF(bt_diam>max_space_vessels,max_space_vessels,bt_diam) -> 0 | D50: feet
A51: Access space per virgin GAC storage tank | B51: space_vt | C51: =IF(vt_diam>max_space_vessels,max_space_vessels,vt_diam) -> 1 | D51: feet
A52: Access space per spent GAC storage tank | B52: space_st | C52: =IF(st_diam>max_space_vessels,max_space_vessels,st_diam) -> 1 | D52: feet
A53: Access space per regenerated GAC storage tank | B53: space_rt | C53: =IF(rt_diam>max_space_vessels,max_space_vessels,rt_diam) -> 1 | D53: feet
A54: Access space per residuals holding tank | B54: space_ht | C54: =IF(ht_diam>max_space_vessels,max_space_vessels,ht_diam) -> 0 | D54: feet
A55: Access space per ferric chloride storage tank | B55: space_coag_st | C55: =IF(coag_st_diam>max_space_vessels,max_space_vessels,coag_st_diam) -> 0 | D55: feet
A56: Access space per polymer storage tank | B56: space_polymer_st | C56: =IF(polymer_st_diam>max_space_vessels,max_space_vessels,polymer_st_diam) -> 0 | D56: feet
A57: Access space per pump | B57: space_pumps | C57: =IF(AND(design_type=1,ss_cat2=1),space_pumps_pre,space_pumps_cust) -> 0 | D57: feet
A58: Footprint for pressure vessels (large system assumptions) | C58: =IF(design_type=2,0,IF(tank_geom=1,ROUNDUP(((comm_diam+2*space_vessels)^2+(final_num_tanks-1)*(comm_diam+2*space_vessels)*(comm_diam+space_vessels)),0),IF(tank_geom=2,ROUNDUP((comm_diam+2*space_vessels)*(comm_height_length+2*space_vessels)+(final_num_tanks-1)*(comm_height_length+2*space_vessels)*(comm_diam+space_vessels),0)))) -> 28 | D58: square feet
A59: Footprint for pressure vessels (skid mounted small system) | C59: =IF(design_type=2,0,IF(tank_geom=1,ROUNDUP(((comm_diam+2*space_vessels)^2+(final_num_tanks-1)*(comm_diam+2*space_vessels)*(comm_diam+space_vessels/2)),0),IF(tank_geom=2,ROUNDUP((comm_diam+2*space_vessels)*(comm_height_length+2*space_vessels)+(final_num_tanks-1)*(comm_height_length+2*space_vessels)*(comm_diam+space_vessels/2),0)))) -> 26 | D59: square feet | E59: Space between skid mounted vessels is reduced, outside access space remains the same
A60: Footprint for gravity contactors | C60: =ROUNDUP(total_num_basins*basin_length*basin_width*2,0) -> 0 | D60: square feet | E60: Two times basin area for walkways and equipment
A61: Footprints for contactors and GAC transfer equipment | B61: vessel_fp | C61: =IF(ss_cat2=1,C59,C58)+C60+IF(transfer_method=1,ROUNDUP(IF(transfer_rate<40000,99.152*transfer_rate^0.0434,0.8761*transfer_rate^0.49),0),0) -> 26 | D61: square feet
A62: Footprint for backwash tank | B62: back_tank_fp | C62: =IF(OUTPUT!L53=1,ROUNDUP(back_basins*back_basin_length*back_basin_width*2,0),IF(num_back_tanks=0,0,ROUNDUP((bt_diam+2*space_bt)^2+(num_back_tanks-1)*(bt_diam+2*space_bt)*(bt_diam+space_bt),0))) -> 0 | D62: square feet
A63: Footprint for booster pumps | C63: =IF(total_booster_pumps=0,0,ROUNDUP((VLOOKUP(pump_rating,pump_dim_table_cl,3)+space_pumps)*(VLOOKUP(pump_rating,pump_dim_table_cl,4)+2*space_pumps)+(total_booster_pumps-1)*(VLOOKUP(pump_rating,pump_dim_table_cl,3)+space_pumps)*(VLOOKUP(pump_rating,pump_dim_table_cl,4)+space_pumps),0)) -> 0 | D63: square feet
A64: Footprint for backwash pumps | C64: =IF(backwash_pumps=0,0,ROUNDUP((VLOOKUP(back_pump_rating,pump_dim_table_cl,3)+space_pumps)*(VLOOKUP(back_pump_rating,pump_dim_table_cl,4)+2*space_pumps)+(backwash_pumps-1)*(VLOOKUP(back_pump_rating,pump_dim_table_cl,3)+2*space_pumps)*(VLOOKUP(back_pump_rating,pump_dim_table_cl,4)+space_pumps),0)) -> 0 | D64: square feet
A65: Residuals pump footprint | C65: =IF(res_pumps=0,0,ROUNDUP((VLOOKUP(res_pump_rating,pump_dim_table_cl,3)+space_pumps)*(VLOOKUP(res_pump_rating,pump_dim_table_cl,4)+2*space_pumps)+(res_pumps-1)*(VLOOKUP(res_pump_rating,pump_dim_table_cl,3)+2*space_pumps)*(VLOOKUP(res_pump_rating,pump_dim_table_cl,4)+space_pumps),0)) -> 0 | D65: square feet
A66: Total footprint for pumps | B66: pump_fp | C66: =C63+C64+C65 -> 0 | D66: square feet
A67: On-site regeneration footprint | B67: Onsite_regeneration_fp | C67: =IF(regen_type=1,num_furnaces*(121.3*furnace_size^0.3656),0) -> 0 | D67: square feet | E67: Equations developed in Working draft of "Design and Cost Estimates for Advanced Water Treatment Technologies", 9/30/00, include access space.
A68: Virgin GAC storage footprint (for on-site regeneration) | B68: Virgin_GAC_storage_fp | C68: =IF(regen_type=1,IF(OUTPUT!L254=1,ROUNDUP((vt_diam+2*space_vt)^2+(virgin_tanks-1)*(vt_diam+2*space_vt)*(vt_diam+space_vt),0),ROUNDUP(virgin_basin_length*virgin_basin_width*2,0)),0) -> 0 | D68: square feet
A69: Spent GAC storage footprint (for on-site regeneration) | B69: Spent_GAC_storage_fp | C69: =IF(regen_type=1,IF(OUTPUT!L257=1,ROUNDUP((st_diam+2*space_st)^2+(spent_tanks-1)*(st_diam+2*space_st)*(st_diam+space_st),0),ROUNDUP(spent_basin_length*spent_basin_width*2,0)),0) -> 0 | D69: square feet
A70: Regenerated GAC storage footprint (for on-site regeneration) | B70: Regenerated_GAC_storage_fp | C70: =IF(regen_type=1,IF(OUTPUT!L260=1,ROUNDUP((rt_diam+2*space_rt)^2+(regen_tanks-1)*(rt_diam+2*space_rt)*(rt_diam+space_rt),0),ROUNDUP(regen_basin_length*regen_basin_width*2,0)),0) -> 0 | D70: square feet
A71: Residuals holding tank footprint | B71: htank_fp | C71: =IF(res_holding<>"tanks",0,ROUNDUP((ht_diam+2*space_ht)^2+(htanks-1)*(ht_diam+2*space_ht)*(ht_diam+space_ht),0)) -> 0 | D71: square feet
A72: Residuals holding basin footprint | B72: hbasin_fp | C72: =IF(res_holding<>"basins",0,ROUNDUP(hbasins*hbasin_length*hbasin_width*2,0)) -> 0 | D72: square feet
A73: Polymer storage tank footprint | B73: polymer_fp | C73: =ROUNDUP((polymer_st_diam+2*space_polymer_st)^2+(polymer_tanks-1)*(polymer_st_diam+2*space_polymer_st)*(polymer_st_diam+space_polymer_st),0) -> 0 | D73: square feet
A74: Ferric chloride storage tank footprint | B74: cstore_fp | C74: =ROUNDUP((coag_st_diam+2*space_coag_st)^2+(coag_tanks-1)*(coag_st_diam+2*space_coag_st)*(coag_st_diam+space_coag_st),0) -> 0 | D74: square feet
A75: Office space | B75: office_fp | C75: =VLOOKUP(design_flow,labor_table_cl,3)*IF(ss_cat2=1,space_office_small,space_office) -> 0 | D75: square feet
A76: Exact building footprint required | B76: fp_required | C76: =vessel_fp+back_tank_fp+pump_fp+Onsite_regeneration_fp+Virgin_GAC_storage_fp+Spent_GAC_storage_fp+Regenerated_GAC_storage_fp+office_fp+htank_fp+hbasin_fp+cstore_fp+polymer_fp -> 26 | D76: square feet
A77: Footprint of building 1 | B77: build1_fp | C77: =ROUNDUP(IF(fp_required<add_2nd_building,fp_required,vessel_fp),-1) -> 30 | D77: square feet | E77: If total footprint is large, building 1 contains vessels only. If total footprint is small, building 1 contains all equipment.
A78: Footprint of building 2 | B78: build2_fp | C78: =ROUNDUP(IF(fp_required<add_2nd_building,0,back_tank_fp+pump_fp+Onsite_regeneration_fp+Virgin_GAC_storage_fp+Spent_GAC_storage_fp+Regenerated_GAC_storage_fp+office_fp+htank_fp+hbasin_fp+cstore_fp+polymer_fp),-1) -> 0 | D78: square feet | E78: If total footprint is large, a second building is used for pumps, backwash, onsite regeneration, and chemical storage
A79: Total footprint | B79: total_fp | C79: =build1_fp+build2_fp -> 30 | D79: square feet
A80: Concrete Class A for vessel and pumps padding | B80: concrete | C80: =ROUNDUP((fp_required-office_fp)*IF(ss_cat2=1,pad_thick_small,pad_thick)/27,0) -> 1 | D80: cubic yards
A81: Facility dimension assumed square | B81: facil_length | C81: =ROUNDUP(total_fp^0.5,-1) -> 10 | D81: feet
A82: Additional footprint for evaporation pond | B82: ep_fp | C82: =IF(ep_cells=0,0,ROUNDUP((ep_cell_side+2*non_fire_buffer)^2+(ep_cells-1)*(ep_cell_side+2*non_fire_buffer)*(ep_cell_side+non_fire_buffer),0)) -> 0 | D82: square feet
A83: Land acquisition required | B83: land_required | C83: =ROUNDUP(((build1_fp)^0.5+(2*non_fire_buffer))*((build1_fp)^0.5+(non_fire_buffer+fire_buffer))+IF(build2_fp=0,0,((build2_fp)^0.5+(2*non_fire_buffer))*((build2_fp)^0.5+(non_fire_buffer+fire_buffer)))+sept_fp+ep_fp+solids_pad_area,-2)/43560 -> 0.03443526171 | D83: acres
A84: Land Cost per acre | B84: land_cost | C84: =VLOOKUP(design_flow,land_cost_cl,3) -> 21165.71325 | D84: $/acre

Sheet Instrumentation and Control
A1: Instrumentation and Control Calculations
A3: Calculation | B3: Range Name | C3: Value | D3: Units | E3: Guidance
A4: From Inputs
A5: Component level | B5: component_level | C5: =IF(component_level_I="high cost",2,IF(component_level_I="mid cost",1,"")) ->  | D5: blank = low cost, 1 = mid cost, 2 = high cost
A6: Manual system controls | B6: manual | C6: =IF(manual_I="manual",1,IF(manual_I="semi-automated",2,IF(manual_I="fully automated",3,IF(component_level="",1,IF(component_level=2,3,CHOOSE(ss_cat2,1,3,3)))))) -> 3 | D6: 1 = fully manual system, 2 = semi-automated system, 3 = fully automated system. | E6: Based on system size and component level (see cell comment), unless user overrides on input sheet
A8: Valves and Instrumentation
A9: Size of valves for influent and treated water lines | B9: in_valve_size | C9: =in_out_pipe_diam -> 1.5 | D9: inches
A10: Size of valves for process line | B10: tank_valve_size | C10: =proc_pipe_diam -> 1.5 | D10: inches
A11: Size of valves for backwash pipe line | B11: back_valve_size | C11: =back_pipe_diam -> 2 | D11: inches
A12: Size of valves for bypass line | B12: bypass_valve_size | C12: =bp_pipe_diam -> 0 | D12: inches
A13: Size of valves for ferric chloride line | B13: coag_valve_size | C13: =coag_pipe_diam -> 0 | D13: inches
A14: Size of valves for polymer line | B14: polymer_valve_size | C14: =polymer_pipe_diam -> 0 | D14: inches
A16: Number of MOVs on process line per contactor | B16: proc_MOV_vessel | C16: =VLOOKUP(IF(Num_tanks=1,"proc_mov_vessel_par","proc_mov_vessel_ser"),valve_table,manual+1,FALSE) -> 2 | D16: valves/contactor
A17: Number of MOVs for process line | B17: tot_proc_MOVs | C17: =IF(design_type=1,final_num_tanks,total_num_basins)*proc_MOV_vessel+total_booster_pumps*VLOOKUP("proc_MOV_pump",valve_table,manual+1,FALSE) -> 4 | D17: valves
A18: Number of MOVs for backwash line | B18: tot_back_MOVs | C18: =IF(design_type=1,final_num_tanks,total_num_basins)*VLOOKUP("back_MOV_vessel",valve_table,manual+1,FALSE)+backwash_pumps*VLOOKUP("back_MOV_pump",valve_table,manual+1,FALSE)+IF(OUTPUT!L53=1,back_basins,num_back_tanks)*VLOOKUP("back_MOV_tank",valve_table,manual+1,FALSE)+IF(no_back_tank=1,VLOOKUP("back_MOV_no_back",valve_table,manual+1,FALSE),0) -> 5 | D18: valves
A19: Number of MOVs for bypass line | B19: tot_bp_MOVs | C19: =IF(bp_pct=0,0,VLOOKUP("tot_bp_movs",valve_table,manual+1,FALSE)) -> 0 | D19: valves
A20: Number of MOVs for ferric chloride line | B20: tot_coag_MOVs | C20: =IF(coag_day_gal=0,0,(cm_pumps_coag)*VLOOKUP("chem_MOV_pump",valve_table,manual+1,FALSE)) -> 0 | D20: valves
A21: Number of MOVs for polymer line | B21: tot_polymer_MOVs | C21: =IF(polymer_day=0,0,(cm_pumps_polymer)*VLOOKUP("chem_MOV_pump",valve_table,manual+1,FALSE)) -> 0 | D21: valves
A22: Total number of MOVs | B22: tot_MOVs | C22: =tot_proc_MOVs+tot_back_MOVs+tot_bp_MOVs+tot_coag_MOVs+tot_polymer_MOVs+total_res_MOVs -> 9 | D22: valves
A24: Number of manual valves on influent and treated water line | B24: tot_in_man | C24: =IF(add_on=1,in_man_addon,in_man) -> 2 | D24: valves
A25: Number of manual valves on process line per contactor | B25: proc_man_vessel_cont | C25: =VLOOKUP(IF(Num_tanks=1,"proc_man_vessel_par","proc_man_vessel_ser"),valve_table,manual+1,FALSE) -> 0 | D25: valves/contactor
A26: Number of manual valves for process line | B26: tot_proc_man | C26: =IF(design_type=1,(proc_man_vessel_cont+proc_man_vessel)*final_num_tanks,proc_man_vessel_cont*total_num_basins)+total_booster_pumps*VLOOKUP("proc_man_pump",valve_table,manual+1,FALSE) -> 2 | D26: valves
A27: Number of manual valves for backwash line | B27: tot_back_man | C27: =IF(design_type=1,final_num_tanks,total_num_basins)*VLOOKUP("back_man_vessel",valve_table,manual+1,FALSE)+backwash_pumps*VLOOKUP("back_man_pump",valve_table,manual+1,FALSE)+IF(OUTPUT!L53=1,back_basins,num_back_tanks)*VLOOKUP("back_man_tank",valve_table,manual+1,FALSE)+IF(no_back_tank=1,VLOOKUP("back_man_no_back",valve_table,manual+1,FALSE),0) -> 0 | D27: valves
A28: Number of manual valves for bypass line | B28: tot_bp_man | C28: =IF(bp_pct=0,0,VLOOKUP("tot_bp_man",valve_table,manual+1,FALSE)) -> 0 | D28: valves
A29: Number of manual valves for ferric chloride line | B29: tot_coag_man | C29: =IF(coag_day_gal=0,0,(cm_pumps_coag)*VLOOKUP("chem_man_pump",valve_table,manual+1,FALSE)) -> 0 | D29: valves
A30: Number of manual valves for polymer line | B30: tot_polymer_man | C30: =IF(polymer_day=0,0,(cm_pumps_polymer)*VLOOKUP("chem_man_pump",valve_table,manual+1,FALSE)) -> 0 | D30: valves
A32: Number of check valves on influent line | B32: tot_in_chv | C32: =IF(add_on=1,in_chv_addon,in_chv) -> 1 | D32: valves
A33: Number of check valves for backwash line | B33: tot_back_chv | C33: =back_chv_pump*backwash_pumps+IF(no_backwash=1,back_chv_no_back,0) -> 1 | D33: valves
A34: Number of check valves for ferric chloride line | B34: tot_coag_chv | C34: =coag_chv_pump*cm_pumps_coag -> 0 | D34: valves
A35: Number of check valves for polymer line | B35: tot_polymer_chv | C35: =polymer_chv_pump*cm_pumps_polymer -> 0 | D35: valves
A37: Size of flow meters for influent line | B37: in_meter_size | C37: =in_out_pipe_diam -> 1.5 | D37: inches
A38: Size of flow meters for process line | B38: proc_meter_size | C38: =proc_pipe_diam -> 1.5 | D38: inches
A39: Size of flow meters for backwash line | B39: back_meter_size | C39: =back_pipe_diam -> 2 | D39: inches
A40: Number of flow meters for process line | B40: tot_fm_proc | C40: =fm_proc*IF(design_type=1,final_num_tanks,total_num_basins) -> 0 | D40: units
A41: Number of flow meters for influent and treated water line | B41: tot_fm_in | C41: =IF(add_on=1,fm_in_addon,fm_in) -> 1 | D41: units
A43: Total level switch/alarms | B43: tot_level_switch | C43: =IF(design_type=1,final_num_tanks*IF(ss_cat2=1,level_switch_small,level_switch),total_num_basins*IF(ss_cat2=1,level_switch_small_g,level_switch_g)) -> 0 | D43: units
A44: Total high/low alarms | B44: tot_back_alarm | C44: =IF(OUTPUT!L53=1,back_basins,num_back_tanks)*alarm_back -> 0 | D44: units
A45: Total pH controls | B45: pH_controls | C45: =IF(design_type=2,total_num_basins*IF(ss_cat2=1,pH_controls_small_g,pH_controls_g),IF(ss_cat2=1,add_pH_controls_small,add_pH_controls)) -> 0 | D45: units
A46: Total temperature meters | B46: tot_temp_meters | C46: =IF(ss_cat2=1,temp_meters_small,temp_meters) -> 0 | D46: units
A47: Total turbidity meters | B47: tot_turb_meters | C47: =IF(design_type=1,turb_tank*final_num_tanks,turb_tank_g*total_num_basins)+IF(ss_cat2=1,add_turb_small,add_turb)+IF(design_type=1,IF(ss_cat2=1,add_turb_small_p,add_turb_p),0) -> 0 | D47: units
A48: Total head loss sensors | B48: tot_head_sens | C48: =IF(ss_cat2=1,head_tank_small,head_tank)*IF(design_type=1,final_num_tanks,total_num_basins) -> 0 | D48: units
A49: Sampling ports | B49: ports | C49: =ports_tank*IF(design_type=1,final_num_tanks,total_num_basins)+add_ports+IF(bp_pct>0,ports_bp,0) -> 5 | D49: units
A50: Total drive controllers | B50: tot_switches | C50: =IF(manual=2,0,S_booster_pump*total_booster_pumps+S_back_pump*backwash_pumps+S_res_pump*(res_pumps+cm_pumps_coag+cm_pumps_polymer)+CHOOSE(transfer_method,S_slurry,S_eductor*eductors,0)+CHOOSE(res_transfer_method,S_slurry*(res_slurry_pumps),S_eductor*(res_eductors),0)+S_mixer*(polymer_cmixers+coag_cmixers+hmixers)) -> 0 | D50: units
A52: System Controls
A53: Flow meter lookup code - influent and treated water | B53: fm_lkp_io | C53: =IF(OUTPUT!L180=1,"flow_op",IF(OUTPUT!L181=1,"flow_prop",IF(OUTPUT!L182=1,"flow_ven","flow_mag"))) -> flow_prop | E53: These codes are used to look up SCADA requirements, which depend on the type of flow meter selected.
A54: Flow meter lookup code - process | B54: fm_lkp_proc | C54: =IF(OUTPUT!L185=1,"flow_op",IF(OUTPUT!L186=1,"flow_prop",IF(OUTPUT!L187=1,"flow_ven","flow_mag"))) -> flow_mag
A55: Flow meter lookup code - backwash | B55: fm_lkp_back | C55: =IF(OUTPUT!L190=1,"flow_op",IF(OUTPUT!L191=1,"flow_prop",IF(OUTPUT!L192=1,"flow_ven","flow_mag"))) -> flow_prop
A56: Flow meter lookup code - residuals | B56: fm_lkp_res | C56: =IF(OUTPUT!L195=1,"flow_op",IF(OUTPUT!L196=1,"flow_prop",IF(OUTPUT!L197=1,"flow_ven","flow_mag"))) -> flow_prop
A57: Total discrete inputs | B57: discrete_inputs | C57: =VLOOKUP(fm_lkp_io,port_table,2,FALSE)*tot_fm_in+VLOOKUP(fm_lkp_proc,port_table,2,FALSE)*tot_fm_proc+VLOOKUP(fm_lkp_back,port_table,2,FALSE)*tot_fm_back+VLOOKUP(fm_lkp_res,port_table,2,FALSE)*tot_fm_res+VLOOKUP("alarm",port_table,2,FALSE)*(tot_level_switch+tot_back_alarm+tot_res_alarm)+VLOOKUP("ph",port_table,2,FALSE)*pH_controls+VLOOKUP("temp",port_table,2,FALSE)*tot_temp_meters+VLOOKUP("turb",port_table,2,FALSE)*tot_turb_meters+VLOOKUP("head",port_table,2,FALSE)*tot_head_sens+VLOOKUP("port",port_table,2,FALSE)*ports+VLOOKUP("switch",port_table,2,FALSE)*tot_switches+VLOOKUP("valve",port_table,2,FALSE)*tot_MOVs -> 5 | D57: units
A58: Total discrete outputs | B58: discrete_outputs | C58: =IF(manual=2,0,VLOOKUP(fm_lkp_io,port_table,3,FALSE)*tot_fm_in+VLOOKUP(fm_lkp_proc,port_table,3,FALSE)*tot_fm_proc+VLOOKUP(fm_lkp_back,port_table,3,FALSE)*tot_fm_back+VLOOKUP(fm_lkp_res,port_table,3,FALSE)*tot_fm_res+VLOOKUP("alarm",port_table,3,FALSE)*(tot_level_switch+tot_back_alarm+tot_res_alarm)+VLOOKUP("ph",port_table,3,FALSE)*pH_controls+VLOOKUP("temp",port_table,3,FALSE)*tot_temp_meters+VLOOKUP("turb",port_table,3,FALSE)*tot_turb_meters+VLOOKUP("head",port_table,3,FALSE)*tot_head_sens+VLOOKUP("port",port_table,3,FALSE)*ports+VLOOKUP("switch",port_table,3,FALSE)*tot_switches+VLOOKUP("valve",port_table,3,FALSE)*tot_MOVs) -> 0 | D58: units
A59: Total analog inputs | B59: analog_inputs | C59: =VLOOKUP(fm_lkp_io,port_table,4,FALSE)*tot_fm_in+VLOOKUP(fm_lkp_proc,port_table,4,FALSE)*tot_fm_proc+VLOOKUP(fm_lkp_back,port_table,4,FALSE)*tot_fm_back+VLOOKUP(fm_lkp_res,port_table,4,FALSE)*tot_fm_res+VLOOKUP("alarm",port_table,4,FALSE)*(tot_level_switch+tot_back_alarm+tot_res_alarm)+VLOOKUP("ph",port_table,4,FALSE)*pH_controls+VLOOKUP("temp",port_table,4,FALSE)*tot_temp_meters+VLOOKUP("turb",port_table,4,FALSE)*tot_turb_meters+VLOOKUP("head",port_table,4,FALSE)*tot_head_sens+VLOOKUP("port",port_table,4,FALSE)*ports+VLOOKUP("switch",port_table,4,FALSE)*tot_switches+VLOOKUP("valve",port_table,4,FALSE)*tot_MOVs -> 12 | D59: units
A60: Total analog outputs | B60: analog_outputs | C60: =IF(manual=2,0,VLOOKUP(fm_lkp_io,port_table,5,FALSE)*tot_fm_in+VLOOKUP(fm_lkp_proc,port_table,5,FALSE)*tot_fm_proc+VLOOKUP(fm_lkp_back,port_table,5,FALSE)*tot_fm_back+VLOOKUP(fm_lkp_res,port_table,5,FALSE)*tot_fm_res+VLOOKUP("alarm",port_table,5,FALSE)*(tot_level_switch+tot_back_alarm+tot_res_alarm)+VLOOKUP("ph",port_table,5,FALSE)*pH_controls+VLOOKUP("temp",port_table,5,FALSE)*tot_temp_meters+VLOOKUP("turb",port_table,5,FALSE)*tot_turb_meters+VLOOKUP("head",port_table,5,FALSE)*tot_head_sens+VLOOKUP("port",port_table,5,FALSE)*ports+VLOOKUP("switch",port_table,5,FALSE)*tot_switches+VLOOKUP("valve",port_table,5,FALSE)*tot_MOVs) -> 9 | D60: units
A62: I/O Discrete Output Modules | B62: plc_discrete_output | C62: =ROUNDUP(discrete_outputs/32,0) -> 0 | D62: units
A63: I/O Discrete Input Modules | B63: plc_discrete_input | C63: =ROUNDUP(discrete_inputs/32,0) -> 1 | D63: units
A64: I/O Combination Analog Modules | B64: plc_combination_analog | C64: =ROUNDUP((analog_inputs + analog_outputs)/12,0) -> 2 | D64: units
A65: Number of CPUs | B65: plc_cpu | C65: =IF(add_on=1,plc_cpu_addon,plc_cpu_standalone) -> 2 | D65: units
A66: Ethernet modules | B66: plc_ethernet | C66: =IF(add_on=1,plc_ethernet_addon,plc_ethernet_standalone) -> 2 | D66: units
A67: Total number of PLC slots used | B67: plc_slots | C67: =plc_cpu + plc_ethernet + plc_discrete_input + plc_discrete_output + plc_combination_analog -> 7 | D67: units
A68: Expansions required | B68: plc_expansions | C68: =IF(plc_slots<=9,0,ROUNDUP((plc_slots-9)/8,0)) -> 0 | D68: units
A69: PLC Rack/Power Supplies | B69: plc_rack | C69: =IF(AND(add_on=1,plc_rack_addon=0),0,1+plc_expansions) -> 1 | D69: units
A70: Base Expansion Modules | B70: plc_base_expansion | C70: =plc_expansions -> 0 | D70: units
A71: Base Expansion Controller Modules | B71: plc_base_expansion_controller | C71: =plc_expansions -> 0 | D71: units
A72: Operator interfaces | B72: plc_interface | C72: =IF(add_on=1,plc_interface_addon,plc_interface_standalone) -> 2 | D72: units
A73: UPSs | B73: ups | C73: =IF(add_on=1,ups_addon,ups_standalone) -> 1 | D73: units
A74: Number of computer workstations | B74: workstations | C74: =IF(AND(add_on=1,workstation_addon=0),0,ROUNDUP(Operator_LOE/2080/shifts_day/workstation_ratio,0)) -> 1 | D74: units
A75: Number of printers | B75: printers | C75: =IF(AND(add_on=1,printer_addon=0),0,ROUNDUP(workstations/printer_ratio,0)) -> 1 | D75: units

Sheet Residuals Management
A1: Residuals Management Calculations
A3: Calculation | B3: Range Name | C3: Value | D3: Units | E3: Guidance
A4: From Inputs
A5: Discharge option for spent backwash | B5: res_s2_opt | C5: =IF(res_s2_opt_I="surface water",1,IF(res_s2_opt_I="POTW",2,IF(res_s2_opt_I="recycle",3,IF(res_s2_opt_I="septic system",4,5)))) -> 2 | D5: <-- 1 for surface water, 2 for POTW, 3 for recycle,4 for septic system, 5 for evaporation pond
A6: Holding tank for spent backwash | B6: res_s1_opt | C6: =IF(OR(res_s2_opt=4,res_s2_opt=5),2,IF(OR(res_s2_opt=3,res_s1_opt_I="holding tank"),1,2)) -> 2 | D6: <-- 1 for holding tank, 2 for no holding tank
A7: Characteristics of holding tank solids | B7: solids_haz | C7: =IF(solids_haz_I="non-hazardous",1,IF(solids_haz_I="hazardous",2,IF(solids_haz_I="radioactive",3,4))) -> 4 | D7: <-- 1 for non-hazardous, 2 for hazardous, 3 for radioactive, 4 for hazardous radioactive
A9: Spent Backwash
A10: Single event volume | B10: res_vol | C10: =total_backwash -> 380 | D10: gal | E10: Backwashing one vessel
A11: Time between events | B11: res_stagger_time | C11: =back_interval*60/IF(design_type=1,final_num_tanks,total_num_basins) -> 5040 | D11: minutes
A12: Actual residuals discharge flow rate | B12: res_flow_actual | C12: =IF(OR(res_s1_opt=1,res_s2_opt=3),res_vol/res_stagger_time,res_vol/backwash_time) -> 38 | D12: gpm | E12: Accounts for flow equalization if holding tanks used
A13: Design residuals discharge flow rate | B13: res_flow | C13: =IF(OR(res_s1_opt=1,res_s2_opt=3),res_cap_factor*res_vol/res_stagger_time,res_flow_actual) -> 38 | D13: gpm | E13: Accounts for less than perfect staggering if holding tanks are used
A14: Annual residuals dischage | B14: res_flow_annual | C14: =res_vol*IF(design_type=1,final_num_tanks,total_num_basins)*(365*24/back_interval) -> 39628.57143 | D14: gal
A16: Evaporation Pond or Holding/Septic Tank Solids
A17: TSS in residuals | B17: TSS_residuals | C17: =(influent_TSS-effluent_TSS)*average_flow*1000000*(back_interval/24)/(res_vol*IF(design_type=1,final_num_tanks,total_num_basins)) -> 96.71052632 | D17: ppm
A18: Evaporation pond TSS accumulation | B18: ep_solids | C18: =IF(res_s2_opt=5,TSS_residuals*res_flow_annual*3.785/1000/453.59/dredging_freq,0) -> 0 | D18: lbs
A19: Holding tank annual TSS accumulation | C19: =IF(OR(res_s2_opt=5,AND(res_holding="none",num_sept_tanks=0)),0,TSS_residuals*IF(coag_res=1,coag_TSSrem,htank_TSSrem)*res_flow_annual*3.785/1000/453.59) -> 0 | D19: lbs/year
A20: Holding tank annual coagulant accumulation | C20: =IF(AND(res_holding<>"none",coag_res=1),IF(coag_type<>1,coag_dose*coag_spf*8.34*res_flow_annual/10^6)+IF(coag_type<>2,polymer_dose*polymer_spf*8.34*res_flow_annual/10^6),0) -> 0 | D20: lbs/year
A21: Holding tank annual solids accumulation | B21: ht_solids | C21: =C20+C19 -> 0 | D21: lbs/year
A22: Holding tank cleaning frequency | B22: sol_disp_freq | C22: =IF(res_s2_opt=5,dredging_freq,IF(res_holding="none",0,ROUNDUP((ht_solids/ht_solids_density*7.48)/(IF(res_holding="tanks",htanks*htank_vol,hbasins*hbasin_vol)*htank_clean_pct),0))) -> 0 | D22: times per year
A23: Septic tank cleaning frequency | B23: septic_disp_freq | C23: =IF(num_sept_tanks=0,0,(ht_solids/ht_solids_density*7.48)/(num_sept_tanks*sept_tank_vol*htank_clean_pct)) -> 0 | D23: times per year
A24: Residual solids quantity (total per event) | B24: res_solids | C24: =IF(AND(res_holding="none",num_sept_tanks=0,ep_solids=0),0,IF(res_s2_opt=5,ep_solids/2000,ht_solids/IF(res_holding="none",septic_disp_freq,sol_disp_freq)/2000)) -> 0 | D24: tons
A26: Spent Media
A27: Replacement/disposal frequency | B27: disp_freq | C27: =IF(OR(regen_type=3,regen_type=5,regen_type=6,regen_type=7),12/bed_life,0) -> 0 | D27: times per year
A28: Spent media quantity (total per event) | B28: spent_media | C28: =IF(OR(regen_type=3,regen_type=5,regen_type=6,regen_type=7),GAC/2000,0) -> 0 | D28: tons
A29: Spent media quantity (average per year) | B29: spent_media_yr | C29: =spent_media*disp_freq -> 0 | D29: tons
A31: Capital Items
A32: Holding tanks (for flow equalization)
A33: Maximum holding tank size | B33: max_htank_size | C33: =MAX(VLOOKUP(10^6,st_bwt_cost_cl,1)-1,VLOOKUP(10^6,fg_bwt_cost_cl,1)-1,VLOOKUP(10^6,hdpe_bwt_cost_cl,1)-1) -> 289000 | D33: gal | E33: The largest size for which costs are available.
A34: Number of holding tanks | B34: htanks | C34: =IF(coag_res=1,0,IF(OR(res_s1_opt=1,res_s2_opt=3),ROUNDUP(res_cap_factor*res_vol/max_htank_size,0),0)) -> 0 | D34: units | E34: Use basins, instead of tanks, when cogulant is added
A35: Holding tank volume | B35: htank_vol | C35: =IF(htanks=0,0,res_cap_factor*res_vol/htanks) -> 0 | D35: gal
A37: Holding basins (for flow equalization)
A38: Holding basin redundancy factor | B38: hbasin_redun | C38: =IF(coag_res=1,ROUNDUP(res_coag_settle_time/res_stagger_time,0),1) -> 1 | E38: To account for minumum coagulation time, when concrete basins are used, rather than tanks
A39: Number of holding basins | B39: hbasins | C39: =IF(OR(res_s1_opt=1,res_s2_opt=3),hbasins_default*hbasin_redun,0) -> 0 | D39: units | E39: If concrete basins are used, rather than tanks
A40: Total residuals storage volume in cubic feet | B40: total_hvol_ft | C40: =IF(hbasins=0,0,res_cap_factor*res_vol*hbasin_redun/7.48) -> 0 | D40: cubic feet | E40: If concrete basins are used, rather than tanks
A41: Residuals storage volume per basin in cubic feet | B41: hvol_ft | C41: =IF(hbasins=0,0,total_hvol_ft/hbasins) -> 0 | D41: cubic feet | E41: If concrete basins are used, rather than tanks
A42: Holdin basin operating depth | B42: hbasin_op_depth | C42: =IF(hbasins=0,0,ROUNDUP(hvol_ft^(1/3)*holding_ratio,0)) -> 0 | D42: ft | E42: If concrete basins are used, rather than tanks
A43: Holding basin width | B43: hbasin_width | C43: =IF(hbasins=0,0,ROUNDUP((hvol_ft/hbasin_op_depth)^0.5,0)) -> 0 | D43: ft | E43: If concrete basins are used, rather than tanks
A44: Holding basin length | B44: hbasin_length | C44: =hbasin_width -> 0 | D44: ft | E44: If concrete basins are used, rather than tanks
A45: Holding basin depth including freeboard | B45: hbasin_depth | C45: =IF(hbasins=0,0,hbasin_op_depth+holding_freeboard) -> 0 | D45: ft | E45: If concrete basins are used, rather than tanks
A46: Holding basin volume | B46: hbasin_vol | C46: =ROUND(hbasin_width*hbasin_length*hbasin_depth*7.48,0) -> 0 | D46: gal | E46: If concrete basins are used, rather than tanks
A47: Concrete volume | B47: hconc_vol | C47: =(2*(hbasin_width*hbasins+conc_thick*(hbasins+1))*hbasin_depth*conc_thick+(hbasins+1)*hbasin_length*hbasin_depth*conc_thick+(hbasin_length+2*conc_thick)*(hbasin_width*hbasins+conc_thick*(hbasins+1))*conc_thick)/27 -> 0.07407407407 | D47: cubic yards | E47: If concrete basins are used, rather than tanks
A48: Excavation volume | B48: hexcavation_vol | C48: =IF(hbasins=0,0,((hbasins*hbasin_width+(hbasins+1)*conc_thick+overexcavate)*(hbasin_length+2*conc_thick+overexcavate)*(hbasin_depth+conc_thick+overexcavate)+0.5*(3*(hbasin_depth+conc_thick+overexcavate)*(hbasin_depth+conc_thick+overexcavate)*(hbasin_length+2*conc_thick+overexcavate)))/27) -> 0 | D48: cubic yards | E48: If concrete basins are used, rather than tanks
A49: Backfill volume | B49: hbackfill_vol | C49: =IF(hbasins=0,0,hexcavation_vol-(hbasins*hbasin_width+(hbasins+1)*conc_thick)*(hbasin_length+2*conc_thick)*(hbasin_depth+conc_thick)/27) -> 0 | D49: cubic yards | E49: If concrete basins are used, rather than tanks
A50: Railing length | B50: hrailing | C50: =IF(hbasins=0,0,2*(hbasins*hbasin_width+2*conc_thick/2+(hbasins-1)*conc_thick)+2*(hbasin_length+2*conc_thick/2)) -> 0 | D50: lf | E50: If concrete basins are used, rather than tanks
A52: Residuals holding type selected | B52: res_holding | C52: =IF(OR(res_s2_opt=5,res_s1_opt=2),"none",IF(AND(hbasins<>0,coag_res=1),"basins",IF(OUTPUT!L58=1,"basins","tanks"))) -> none | E52: Based on priority lookups on the output sheet, always basins when coagulant is added
A54: Holding Tank Mixers (if coagulant is used)
A55: Mixers per holding tank | B55: hmix_per_tank | C55: =IF(AND(res_holding<>"none",coag_res=1),ROUNDUP(IF(res_holding="tanks",htank_vol,hbasin_vol)/1000*hmix_hp_per/hmix_hp_max,0),0) -> 0 | D55: units
A56: Max holding tank mixer horsepower | B56: hmix_hp_max | C56: =VLOOKUP(10^6,imp_mix_cost_cl,1)-0.1 -> 30 | D56: hp | E56: The largest impeller mixer size available
A57: Number of holding tank mixers | B57: hmixers | C57: =IF(AND(res_holding<>"none",coag_res=1),IF(res_holding="tanks",htanks,hbasins)*hmix_per_tank,0) -> 0 | D57: units
A58: Mixer size for holding tanks | B58: hmix_size | C58: =IF(AND(res_holding<>"none",coag_res=1),MAX(min_hmix_hp,IF(res_holding="tanks",htank_vol,hbasin_vol)/1000*hmix_hp_per/hmix_per_tank),0) -> 0 | D58: hp
A60: Maximum chemical storage tank size | B60: max_chem_tank_size | C60: =MAX(VLOOKUP(10^6,pl_cst_cost_cl,1)-1,VLOOKUP(10^6,fg_cst_cost_cl,1)-1,VLOOKUP(10^6,ss_cst_cost_cl,1)-1) -> 30000 | D60: gallons | E60: The largest size for which costs are available
A61: Maximum chemical storage tank size excluding stainless steel | B61: max_chem_tank_size_noSS | C61: =MAX(VLOOKUP(10^6,pl_cst_cost_cl,1)-1,VLOOKUP(10^6,fg_cst_cost_cl,1)-1) -> 30000 | D61: gallons | E61: The largest size for which costs are available, excluding stainless steel
A62: Maximum chemical metering pump size | B62: max_cm_pump_size | C62: =MAX(VLOOKUP(10^6,ss_empump_cost_cl,1)-0.01,VLOOKUP(10^6,ss_mmpump_cost_cl,1)-0.01,VLOOKUP(10^6,pvc_empump_cost_cl,1)-0.01,VLOOKUP(10^6,pvc_mmpump_cost_cl,1)-0.01) -> 132 | D62: gph | E62: The largest size for which costs are available
A63: Maximum chemical metering pump size excluding stainless steel | B63: max_cm_pump_size_noSS | C63: =MAX(VLOOKUP(10^6,pvc_empump_cost_cl,1)-0.01,VLOOKUP(10^6,pvc_mmpump_cost_cl,1)-0.01) -> 132 | D63: gph | E63: The largest size for which costs are available, excluding stainless steel
A64: Maximum chemical tank mixer horsepower | B64: cmix_hp_max | C64: =MAX(VLOOKUP(10^6,port_mix_cost_cl,1)-0.1,VLOOKUP(10^6,mount_mix_cost_cl,1)-0.1,VLOOKUP(10^6,imp_mix_cost_cl,1)-0.1) -> 30 | D64: hp | E64: The largest size for which costs are available
A66: Ferric Chloride Addition
A67: Pounds of pure ferric chloride needed per event | B67: coag_day_lbs | C67: =IF(AND(res_holding<>"none",coag_res=1,coag_type<>1),coag_dose*8.34*res_vol/10^6,0) -> 0 | D67: lbs
A68: Gallons of solution needed per event | B68: coag_day_gal | C68: =coag_day_lbs/coag_pct/coag_density -> 0 | D68: gal
A69: Pounds of pure ferric chloride in storage | B69: coag_storage_lbs | C69: =IF(AND(res_holding<>"none",coag_res=1,coag_type<>1),coag_dose*8.34*res_flow_annual/10^6/365*cstore_days,0) -> 0 | D69: lbs
A70: Ferric chloride storage in gallons | B70: coag_storage_gal | C70: =coag_storage_lbs/coag_pct/coag_density -> 0 | D70: gal
A71: Number of ferric chloride storage tanks | B71: coag_tanks | C71: =ROUNDUP(coag_storage_gal/max_chem_tank_size_noSS,0) -> 0 | D71: units
A72: Ferric chloride storage tank size | B72: coag_tank_vol | C72: =IF(coag_tanks>0,ROUNDUP(coag_storage_gal/coag_tanks,0),0) -> 0 | D72: gal
A73: Mixers per ferric chloride storage tank | B73: coag_cmix_per_tank | C73: =IF(AND(include_cmix=1,coag_tanks<>0),ROUNDUP(coag_tank_vol/1000*cmix_hp_per/cmix_hp_max,0),0) -> 0 | D73: units
A74: Number of ferric chloride storage tank mixers | B74: coag_cmixers | C74: =IF(AND(res_holding<>"none",coag_res=1,coag_type<>1),coag_tanks*coag_cmix_per_tank,0) -> 0 | D74: units
A75: Mixer size for storage tanks | B75: coag_cmix_size | C75: =IF(coag_cmixers<>0,MAX(min_cmix_hp,coag_tank_vol/1000*cmix_hp_per/coag_cmix_per_tank),0) -> 0 | D75: hp
A76: Ferric chloride solution feed rate | B76: coag_rate | C76: =coag_day_gal/backwash_time*60 -> 0 | D76: gph
A77: Number of ferric chloride metering pumps | B77: cm_pumps_coag | C77: =IF(coag_day_gal=0,0,ROUNDUP(coag_rate/max_cm_pump_size_noSS,0)+NRD_cm_pump) -> 0 | D77: units
A78: Ferric chloride metering pump rating | B78: cm_pump_rating_coag | C78: =IF(coag_day_gal=0,0,MAX(min_chem_flow,coag_rate*(1+pump_safety_factor)/(cm_pumps_coag-NRD_cm_pump))) -> 0 | D78: gph
A79: Pounds of bulk ferric chloride solution in storage | B79: coag_storage_lbs_bulk | C79: =coag_storage_gal*coag_density -> 0 | D79: lbs
A81: Secondary Containment for Ferric Chloride
